Workbook

Sheet Source
B2: This spreadsheet contains data for all the figures in Andrew Leigh, 2013, Battlers and Billionaires: The Story of Inequality in Australia, Black Inc, Melbourne.
B3: Feel free to use or adapt data in this spreadsheet, so long as you cite that book.
B5: Data underlying the figures is in spreadsheets with the same numbering as the figures (eg. the sheet called 'Data 2' contains the data in Figure 2).
B7: For detailed descriptions of the figures, see the text and notes of Battlers and BIllionaires.

Sheet Data 1
B1: 1966 | C1: 2010 | D1: 1915
A2: Q1 | B2: 0.91% | C2: 0.90% | D2: 0.03%
A3: Q2 | B3: 7.81% | C3: 5.40% | D3: 0.43%
A4: Q3 | B4: 15.06% | C4: 11.90% | D4: 2.01%
A5: Q4 | B5: 22.72% | C5: 20% | D5: 7.80%
A6: Q5 | B6: 53.51% | C6: 61.80% | D6: 89.71%
B8: Distribution II | C8: Distribution I
A9: Poorest | B9: 0.90% | C9: 0.91%
B10: 5.40% | C10: 7.81%
B11: 11.90% | C11: 15.06%
B12: 20% | C12: 22.72%
A13: Richest | B13: 61.80% | C13: 53.51%

Sheet Data 2
A1: year | B1: richlisters | C1: richlisters_last 20 yrs of life | D1: share of all richlisters then alive | I1: year
A2: 1788 | B2: 7 | C2: 0 | D2: =C2/249 -> 0% | I2: 1788
A3: 1789 | B3: 15 | C3: 0 | D3: =C3/249 -> 0% | I3: 1789
A4: 1790 | B4: 19 | C4: 0 | D4: 0% | I4: 1790
A5: 1791 | B5: 24 | C5: 0 | D5: 0% | I5: 1791
A6: 1792 | B6: 29 | C6: 0 | D6: 0% | I6: 1792
A7: 1793 | B7: 35 | C7: 0 | D7: 0% | I7: 1793
A8: 1794 | B8: 36 | C8: 1 | D8: 0% | I8: 1794
A9: 1795 | B9: 39 | C9: 2 | D9: 1% | I9: 1795
A10: 1796 | B10: 41 | C10: 5 | D10: 2% | I10: 1796
A11: 1797 | B11: 43 | C11: 6 | D11: 2% | I11: 1797
A12: 1798 | B12: 47 | C12: 7 | D12: 3% | I12: 1798
A13: 1799 | B13: 49 | C13: 15 | D13: 6% | I13: 1799
A14: 1800 | B14: 49 | C14: 19 | D14: 8% | I14: 1800
A15: 1801 | B15: 49 | C15: 24 | D15: 10% | I15: 1801
A16: 1802 | B16: 50 | C16: 29 | D16: 12% | I16: 1802
A17: 1803 | B17: 53 | C17: 35 | D17: 14% | I17: 1803
A18: 1804 | B18: 56 | C18: 36 | D18: 14% | I18: 1804
A19: 1805 | B19: 56 | C19: 39 | D19: 16% | I19: 1805
A20: 1806 | B20: 57 | C20: 41 | D20: 16% | I20: 1806
A21: 1807 | B21: 70 | C21: 43 | D21: 17% | I21: 1807
A22: 1808 | B22: 79 | C22: 47 | D22: 19% | I22: 1808
A23: 1809 | B23: 81 | C23: 49 | D23: 20% | I23: 1809
A24: 1810 | B24: 85 | C24: 49 | D24: 20% | I24: 1810
A25: 1811 | B25: 88 | C25: 49 | D25: 20% | I25: 1811
A26: 1812 | B26: 98 | C26: 50 | D26: 20% | I26: 1812
A27: 1813 | B27: 102 | C27: 53 | D27: 21% | I27: 1813
A28: 1814 | B28: 103 | C28: 56 | D28: 22% | I28: 1814
A29: 1815 | B29: 103 | C29: 55 | D29: 22% | I29: 1815
A30: 1816 | B30: 106 | C30: 55 | D30: 22% | I30: 1816
A31: 1817 | B31: 105 | C31: 65 | D31: 26% | I31: 1817
A32: 1818 | B32: 105 | C32: 73 | D32: 29% | I32: 1818
A33: 1819 | B33: 105 | C33: 74 | D33: 30% | I33: 1819
A34: 1820 | B34: 98 | C34: 70 | D34: 28% | I34: 1820
A35: 1821 | B35: 95 | C35: 69 | D35: 28% | I35: 1821
A36: 1822 | B36: 90 | C36: 74 | D36: 30% | I36: 1822
A37: 1823 | B37: 85 | C37: 73 | D37: 29% | I37: 1823
A38: 1824 | B38: 80 | C38: 68 | D38: 27% | I38: 1824
A39: 1825 | B39: 79 | C39: 68 | D39: 27% | I39: 1825
A40: 1826 | B40: 76 | C40: 69 | D40: 28% | I40: 1826
A41: 1827 | B41: 74 | C41: 69 | D41: 28% | I41: 1827
A42: 1828 | B42: 73 | C42: 68 | D42: 27% | I42: 1828
A43: 1829 | B43: 70 | C43: 65 | D43: 26% | I43: 1829
A44: 1830 | B44: 69 | C44: 64 | D44: 26% | I44: 1830
A45: 1831 | B45: 71 | C45: 65 | D45: 26% | I45: 1831
A46: 1832 | B46: 71 | C46: 65 | D46: 26% | I46: 1832
A47: 1833 | B47: 71 | C47: 64 | D47: 26% | I47: 1833
A48: 1834 | B48: 68 | C48: 62 | D48: 25% | I48: 1834
A49: 1835 | B49: 66 | C49: 59 | D49: 24% | I49: 1835
A50: 1836 | B50: 68 | C50: 59 | D50: 24% | I50: 1836
A51: 1837 | B51: 68 | C51: 58 | D51: 23% | I51: 1837
A52: 1838 | B52: 55 | C52: 46 | D52: 18% | I52: 1838
A53: 1839 | B53: 46 | C53: 38 | D53: 15% | I53: 1839
A54: 1840 | B54: 44 | C54: 37 | D54: 15% | I54: 1840
A55: 1841 | B55: 42 | C55: 35 | D55: 14% | I55: 1841
A56: 1842 | B56: 40 | C56: 32 | D56: 13% | I56: 1842
A57: 1843 | B57: 30 | C57: 23 | D57: 9% | I57: 1843
A58: 1844 | B58: 29 | C58: 19 | D58: 8% | I58: 1844
A59: 1845 | B59: 31 | C59: 19 | D59: 8% | I59: 1845
A60: 1846 | B60: 32 | C60: 20 | D60: 8% | I60: 1846
A61: 1847 | B61: 30 | C61: 17 | D61: 7% | I61: 1847
A62: 1848 | B62: 29 | C62: 15 | D62: 6% | I62: 1848
A63: 1849 | B63: 30 | C63: 14 | D63: 6% | I63: 1849
A64: 1850 | B64: 31 | C64: 13 | D64: 5% | I64: 1850
A65: 1851 | B65: 32 | C65: 14 | D65: 6% | I65: 1851
A66: 1852 | B66: 33 | C66: 14 | D66: 6% | I66: 1852
A67: 1853 | B67: 33 | C67: 14 | D67: =C67/249 -> 6% | I67: 1853
A68: 1854 | B68: 35 | C68: 17 | D68: 7% | I68: 1854
A69: 1855 | B69: 36 | C69: 19 | D69: 8% | I69: 1855
A70: 1856 | B70: 37 | C70: 21 | D70: 8% | I70: 1856
A71: 1857 | B71: 38 | C71: 23 | D71: 9% | I71: 1857
A72: 1858 | B72: 43 | C72: 24 | D72: 10% | I72: 1858
A73: 1859 | B73: 45 | C73: 25 | D73: 10% | I73: 1859
A74: 1860 | B74: 47 | C74: 26 | D74: 10% | I74: 1860
A75: 1861 | B75: 48 | C75: 27 | D75: 11% | I75: 1861
A76: 1862 | B76: 47 | C76: 27 | D76: 11% | I76: 1862
A77: 1863 | B77: 49 | C77: 27 | D77: 11% | I77: 1863
A78: 1864 | B78: 52 | C78: 28 | D78: 11% | I78: 1864
A79: 1865 | B79: 54 | C79: 30 | D79: 12% | I79: 1865
A80: 1866 | B80: 59 | C80: 30 | D80: 12% | I80: 1866
A81: 1867 | B81: 63 | C81: 29 | D81: 12% | I81: 1867
A82: 1868 | B82: 64 | C82: 33 | D82: 13% | I82: 1868
A83: 1869 | B83: 65 | C83: 36 | D83: 14% | I83: 1869
A84: 1870 | B84: 68 | C84: 39 | D84: 16% | I84: 1870
A85: 1871 | B85: 69 | C85: 41 | D85: 16% | I85: 1871
A86: 1872 | B86: 68 | C86: 40 | D86: 16% | I86: 1872
A87: 1873 | B87: 70 | C87: 41 | D87: 16% | I87: 1873
A88: 1874 | B88: 72 | C88: 45 | D88: 18% | I88: 1874
A89: 1875 | B89: 73 | C89: 44 | D89: 18% | I89: 1875
A90: 1876 | B90: 73 | C90: 47 | D90: 19% | I90: 1876
A91: 1877 | B91: 71 | C91: 51 | D91: 20% | I91: 1877
A92: 1878 | B92: 70 | C92: 51 | D92: 20% | I92: 1878
A93: 1879 | B93: 73 | C93: 51 | D93: 20% | I93: 1879
A94: 1880 | B94: 71 | C94: 52 | D94: 21% | I94: 1880
A95: 1881 | B95: 71 | C95: 51 | D95: 20% | I95: 1881
A96: 1882 | B96: 69 | C96: 50 | D96: 20% | I96: 1882
A97: 1883 | B97: 67 | C97: 51 | D97: 20% | I97: 1883
A98: 1884 | B98: 68 | C98: 53 | D98: 21% | I98: 1884
A99: 1885 | B99: 68 | C99: 55 | D99: 22% | I99: 1885
A100: 1886 | B100: 67 | C100: 56 | D100: 22% | I100: 1886
A101: 1887 | B101: 66 | C101: 55 | D101: 22% | I101: 1887
A102: 1888 | B102: 66 | C102: 55 | D102: 22% | I102: 1888
A103: 1889 | B103: 62 | C103: 54 | D103: 22% | I103: 1889
A104: 1890 | B104: 59 | C104: 51 | D104: 20% | I104: 1890
A105: 1891 | B105: 56 | C105: 50 | D105: 20% | I105: 1891
A106: 1892 | B106: 54 | C106: 48 | D106: 19% | I106: 1892
A107: 1893 | B107: 53 | C107: 47 | D107: 19% | I107: 1893
A108: 1894 | B108: 51 | C108: 46 | D108: 18% | I108: 1894
A109: 1895 | B109: 47 | C109: 44 | D109: 18% | I109: 1895
A110: 1896 | B110: 46 | C110: 43 | D110: 17% | I110: 1896
A111: 1897 | B111: 40 | C111: 37 | D111: 15% | I111: 1897
A112: 1898 | B112: 34 | C112: 32 | D112: 13% | I112: 1898
A113: 1899 | B113: 32 | C113: 31 | D113: 12% | I113: 1899
A114: 1900 | B114: 31 | C114: 30 | D114: 12% | I114: 1900
A115: 1901 | B115: 28 | C115: 27 | D115: 11% | I115: 1901
A116: 1902 | B116: 27 | C116: 26 | D116: 10% | I116: 1902
A117: 1903 | B117: 27 | C117: 25 | D117: 10% | I117: 1903
A118: 1904 | B118: 25 | C118: 22 | D118: 9% | I118: 1904
A119: 1905 | B119: 23 | C119: 20 | D119: 8% | I119: 1905
A120: 1906 | B120: 19 | C120: 17 | D120: 7% | I120: 1906
A121: 1907 | B121: 16 | C121: 14 | D121: 6% | I121: 1907
A122: 1908 | B122: 16 | C122: 14 | D122: 6% | I122: 1908
A123: 1909 | B123: 16 | C123: 13 | D123: 5% | I123: 1909
A124: 1910 | B124: 12 | C124: 10 | D124: 4% | I124: 1910
A125: 1911 | B125: 12 | C125: 11 | D125: 4% | I125: 1911
A126: 1912 | B126: 10 | C126: 9 | D126: 4% | I126: 1912
A127: 1913 | B127: 10 | C127: 11 | D127: 4% | I127: 1913
A128: 1914 | B128: 10 | C128: 13 | D128: 5% | I128: 1914
A129: 1915 | B129: 9 | C129: 13 | D129: 5% | I129: 1915
A130: 1916 | B130: 7 | C130: 11 | D130: 4% | I130: 1916
A131: 1917 | B131: 6 | C131: 10 | D131: =C131/249 -> 4% | I131: 1917
A132: 1918 | B132: 6 | C132: 11 | D132: 4% | I132: 1918
A133: 1919 | B133: 5 | C133: 11 | D133: 4% | I133: 1919
A134: 1920 | B134: 4 | C134: 10 | D134: 4% | I134: 1920
A135: 1921 | B135: 4 | C135: 10 | D135: 4% | I135: 1921
A136: 1922 | B136: 4 | C136: 10 | D136: 4% | I136: 1922
A137: 1923 | B137: 4 | C137: 10 | D137: 4% | I137: 1923
A138: 1924 | B138: 4 | C138: 10 | D138: 4% | I138: 1924
A139: 1925 | B139: 4 | C139: 10 | D139: 4% | I139: 1925
A140: 1926 | B140: 4 | C140: 10 | D140: 4% | I140: 1926
A141: 1927 | B141: 3 | C141: 9 | D141: 4% | I141: 1927
A142: 1928 | B142: 3 | C142: 9 | D142: 4% | I142: 1928
A143: 1929 | B143: 3 | C143: 9 | D143: 4% | I143: 1929
A144: 1930 | B144: 3 | C144: 9 | D144: 4% | I144: 1930
A145: 1931 | B145: 3 | C145: 8 | D145: 3% | I145: 1931
A146: 1932 | B146: 3 | C146: 7 | D146: 3% | I146: 1932
A147: 1933 | B147: 3 | C147: 7 | D147: 3% | I147: 1933
A148: 1934 | B148: 2 | C148: 5 | D148: 2% | I148: 1934
A149: 1935 | B149: 1 | C149: 3 | D149: 1% | I149: 1935
A150: 1936 | B150: 1 | C150: 2 | D150: 1% | I150: 1936
A151: 1937 | B151: 1 | C151: 2 | D151: 1% | I151: 1937
A152: 1938 | B152: 1 | C152: 2 | D152: 1% | I152: 1938
A153: 1939 | B153: 1 | C153: 1 | D153: 0% | I153: 1939
A154: 1940 | B154: 0 | C154: 0 | D154: 0% | I154: 1940
A155: 1941 | B155: 0 | C155: 0 | D155: 0% | I155: 1941
A156: 1942 | B156: 0 | C156: 0 | D156: 0% | I156: 1942
A157: 1943 | B157: 0 | C157: 0 | D157: 0% | I157: 1943
A158: 1944 | B158: 0 | C158: 0 | D158: 0% | I158: 1944
A159: 1945 | B159: 0 | C159: 0 | D159: 0% | I159: 1945
A160: 1946 | B160: 0 | C160: 0 | D160: 0% | I160: 1946
A161: 1947 | B161: 0 | C161: 0 | D161: 0% | I161: 1947
A162: 1948 | B162: 0 | C162: 0 | D162: 0% | I162: 1948
A163: 1949 | B163: 0 | C163: 0 | D163: 0% | I163: 1949
A164: 1950 | B164: 0 | C164: 0 | D164: 0% | I164: 1950
A165: 1951 | B165: 0 | C165: 0 | D165: 0% | I165: 1951
A166: 1952 | B166: 0 | C166: 0 | D166: 0% | I166: 1952
A167: 1953 | B167: 0 | C167: 0 | D167: 0% | I167: 1953
A168: 1954 | B168: 0 | C168: 0 | D168: 0% | I168: 1954
A169: 1955 | B169: 0 | C169: 0 | D169: 0% | I169: 1955
A170: 1956 | B170: 0 | C170: 0 | D170: 0% | I170: 1956
A171: 1957 | B171: 0 | C171: 0 | D171: 0% | I171: 1957
A172: 1958 | B172: 0 | C172: 0 | D172: 0% | I172: 1958
A173: 1959 | B173: 0 | C173: 0 | D173: 0% | I173: 1959
A174: 1960 | B174: 0 | C174: 0 | D174: 0% | I174: 1960
A175: 1961 | B175: 0 | C175: 0 | D175: 0% | I175: 1961
A176: 1962 | B176: 0 | C176: 0 | D176: 0% | I176: 1962
A177: 1963 | B177: 0 | C177: 0 | D177: 0% | I177: 1963
A178: 1964 | B178: 0 | C178: 0 | D178: 0% | I178: 1964
A179: 1965 | B179: 0 | C179: 0 | D179: 0% | I179: 1965
A180: 1966 | B180: 0 | C180: 0 | D180: 0% | I180: 1966
A181: 1967 | B181: 0 | C181: 0 | D181: 0% | I181: 1967
A182: 1968 | B182: 0 | C182: 0 | D182: 0% | I182: 1968
A183: 1969 | B183: 0 | C183: 0 | D183: 0% | I183: 1969
A184: 1970 | B184: 0 | C184: 0 | D184: 0% | I184: 1970
A185: 1971 | B185: 0 | C185: 0 | D185: 0% | I185: 1971
A186: 1972 | B186: 0 | C186: 0 | D186: 0% | I186: 1972
A187: 1973 | B187: 0 | C187: 0 | D187: 0% | I187: 1973
A188: 1974 | B188: 0 | C188: 0 | D188: 0% | I188: 1974
A189: 1975 | B189: 0 | C189: 0 | D189: 0% | I189: 1975
A190: 1976 | B190: 0 | C190: 0 | D190: 0% | I190: 1976
A191: 1977 | B191: 0 | C191: 0 | D191: 0% | I191: 1977
A192: 1978 | B192: 0 | C192: 0 | D192: 0% | I192: 1978
A193: 1979 | B193: 0 | C193: 0 | D193: 0% | I193: 1979
A194: 1980 | B194: 0 | C194: 0 | D194: 0% | I194: 1980
A195: 1981 | B195: 0 | C195: 0 | D195: =C195/249 -> 0% | I195: 1981
A196: 1982 | B196: 0 | C196: 0 | D196: 0% | I196: 1982
A197: 1983 | B197: 0 | C197: 0 | D197: 0% | I197: 1983
A198: 1984 | B198: 0 | C198: 0 | D198: 0% | I198: 1984
A199: 1985 | B199: 0 | C199: 0 | D199: 0% | I199: 1985
A200: 1986 | B200: 0 | C200: 3 | D200: 1% | I200: 1986
... 28 more rows

Sheet Data 3
B1: Average annual earnings in manufacturing, Victoria ($). Source: Australians Historical Statistics, LAB 182, p.160 | C1: Converted to £ | D1: Average annual male earnings in manufacturing, Victoria ($). Source: Australians Historical Statistics, LAB 196, p.161 | E1: Converted to £ | F1: Combined wage series (missing years 1901-1908, 1940-43 are linearly interpolated) | G1: Local government assessments of rural land in Victoria (£/acre). Source: Taylor 1992, Table 10, Col 1. | H1: Unimproved capital values of land in Australia - All private land ($ millions). Source: Scott 1969, p.57 Vic column | I1: Land area in Australia - Private Lands (millions of acres). Source: Scott 1969, p.55, Vic column | J1: Value of land (£/acre) based on Scott | K1: Scott value scaled down to match Taylor series (using 1901-1913 overlap ratio of 0.818) | L1: Taylor series to 1913, Scott series from 1914 (note: this is per acre - multiply by 2.47105 to get per hectare) | M1: Taylor series to 1913, Scott series from 1914 (note: this is per hectare) | N1: Days' work for a manufacturing worker to buy a hectare of farm land | O1: 5 year moving average | Q1: Withers average earnings for all of Australia (annual, pounds) from http://www.measuringworth.com/auswages/auswagesources.php | R1: Diff (Vic minus Aust) | S1: Ratio (vic/Aust)
A2: 1860
A3: 1861 | Q3: £53.0
A4: 1862 | B4: $152.2 | C4: =B4/2 -> £76.1 | F4: =C4 -> £76.1 | Q4: £52.5 | R4: =F4-Q4 -> £23.6 | S4: =F4/Q4 -> 145%
A5: 1863 | B5: $132.6 | C5: =B5/2 -> £66.3 | F5: =C5 -> £66.3 | Q5: £50.4 | R5: =F5-Q5 -> £15.9 | S5: =F5/Q5 -> 131%
A6: 1864 | B6: $133.8 | C6: £66.9 | F6: £66.9 | Q6: £50.4 | R6: £16.5 | S6: 133%
A7: 1865 | B7: $137.0 | C7: £68.5 | F7: £68.5 | G7: £0.298 | L7: =G7 -> £0.30 | M7: =L7*2.47105 -> £0.74 | N7: =2.47105*365/(F7/L7) -> 4 | Q7: £51.0 | R7: £17.5 | S7: 134%
A8: 1866 | B8: $137.0 | C8: £68.5 | F8: £68.5 | G8: £0.348 | L8: =G8 -> £0.35 | M8: =L8*2.47105 -> £0.86 | N8: =2.47105*365/(F8/L8) -> 5 | Q8: £51.0 | R8: £17.5 | S8: 134%
A9: 1867 | B9: $137.0 | C9: £68.5 | F9: £68.5 | G9: £0.393 | L9: £0.39 | M9: £0.97 | N9: 5 | O9: =AVERAGE(N7:N11) -> 5 | Q9: £51.5 | R9: £17.0 | S9: 133%
A10: 1868 | B10: $132.6 | C10: £66.3 | F10: £66.3 | G10: £0.413 | L10: £0.41 | M10: £1.02 | N10: 6 | O10: =AVERAGE(N8:N12) -> 5 | Q10: £51.0 | R10: £15.3 | S10: 130%
A11: 1869 | B11: $132.6 | C11: £66.3 | F11: £66.3 | G11: £0.445 | L11: £0.45 | M11: £1.10 | N11: 6 | O11: 6 | Q11: £51.5 | R11: £14.8 | S11: 129%
A12: 1870 | B12: $155.2 | C12: £77.6 | F12: £77.6 | G12: £0.462 | L12: £0.46 | M12: £1.14 | N12: 5 | O12: 6 | Q12: £53.6 | R12: £24.0 | S12: 145%
A13: 1871 | B13: $137.0 | C13: £68.5 | F13: £68.5 | G13: £0.491 | L13: £0.49 | M13: £1.21 | N13: 6 | O13: 6 | Q13: £52.5 | R13: £16.0 | S13: 130%
A14: 1872 | B14: $153.8 | C14: £76.9 | F14: £76.9 | G14: £0.531 | L14: £0.53 | M14: £1.31 | N14: 6 | O14: 6 | Q14: £54.1 | R14: £22.8 | S14: 142%
A15: 1873 | B15: $155.2 | C15: £77.6 | F15: £77.6 | G15: £0.574 | L15: £0.57 | M15: £1.42 | N15: 7 | O15: 7 | Q15: £58.8 | R15: £18.8 | S15: 132%
A16: 1874 | B16: $155.2 | C16: £77.6 | F16: £77.6 | G16: £0.637 | L16: £0.64 | M16: £1.57 | N16: 7 | O16: 8 | Q16: £60.8 | R16: £16.8 | S16: 128%
A17: 1875 | B17: $156.4 | C17: £78.2 | F17: £78.2 | G17: £0.727 | L17: £0.73 | M17: £1.80 | N17: 8 | O17: 9 | Q17: £62.4 | R17: £15.8 | S17: 125%
A18: 1876 | B18: $154.0 | C18: £77.0 | F18: £77.0 | G18: £0.856 | L18: £0.86 | M18: £2.12 | N18: 10 | O18: 10 | Q18: £64.0 | R18: £13.0 | S18: 120%
A19: 1877 | B19: $154.0 | C19: £77.0 | F19: £77.0 | G19: £0.909 | L19: £0.91 | M19: £2.25 | N19: 11 | O19: 11 | Q19: £64.5 | R19: £12.5 | S19: 119%
A20: 1878 | B20: $154.4 | C20: £77.2 | F20: £77.2 | G20: £1.004 | L20: £1.00 | M20: £2.48 | N20: 12 | O20: 11 | Q20: £63.4 | R20: £13.8 | S20: 122%
A21: 1879 | B21: $154.8 | C21: £77.4 | F21: £77.4 | G21: £1.007 | L21: £1.01 | M21: £2.49 | N21: 12 | O21: 12 | Q21: £64.0 | R21: £13.4 | S21: 121%
A22: 1880 | B22: $152.4 | C22: £76.2 | F22: £76.2 | G22: £1.038 | L22: £1.04 | M22: £2.56 | N22: 12 | O22: 12 | Q22: £66.6 | R22: £9.6 | S22: 114%
A23: 1881 | B23: $151.2 | C23: £75.6 | F23: £75.6 | G23: £1.013 | L23: £1.01 | M23: £2.50 | N23: 12 | O23: 12 | Q23: £67.1 | R23: £8.5 | S23: 113%
A24: 1882 | B24: $153.6 | C24: £76.8 | F24: £76.8 | G24: £0.978 | L24: £0.98 | M24: £2.42 | N24: 11 | O24: 11 | Q24: £69.2 | R24: £7.6 | S24: 111%
A25: 1883 | B25: $156.8 | C25: £78.4 | F25: £78.4 | G25: £0.933 | L25: £0.93 | M25: £2.31 | N25: 11 | O25: 11 | Q25: £71.8 | R25: £6.6 | S25: 109%
A26: 1884 | B26: $159.8 | C26: £79.9 | F26: £79.9 | G26: £0.943 | L26: £0.94 | M26: £2.33 | N26: 11 | O26: 11 | Q26: £72.3 | R26: £7.6 | S26: 111%
A27: 1885 | B27: $159.8 | C27: £79.9 | F27: £79.9 | G27: £0.953 | L27: £0.95 | M27: £2.35 | N27: 11 | O27: 11 | Q27: £72.3 | R27: £7.6 | S27: 111%
A28: 1886 | B28: $156.4 | C28: £78.2 | F28: £78.2 | G28: £1.032 | L28: £1.03 | M28: £2.55 | N28: 12 | O28: 12 | Q28: £72.3 | R28: £5.9 | S28: 108%
A29: 1887 | B29: $156.4 | C29: £78.2 | F29: £78.2 | G29: £1.111 | L29: £1.11 | M29: £2.75 | N29: 13 | O29: 14 | Q29: £72.8 | R29: £5.4 | S29: 107%
A30: 1888 | B30: $154.8 | C30: £77.4 | F30: £77.4 | G30: £1.315 | L30: £1.32 | M30: £3.25 | N30: 15 | O30: 15 | Q30: £72.8 | R30: £4.6 | S30: 106%
A31: 1889 | B31: $155.0 | C31: £77.5 | F31: £77.5 | G31: £1.498 | L31: £1.50 | M31: £3.70 | N31: 17 | O31: 17 | Q31: £72.3 | R31: £5.2 | S31: 107%
A32: 1890 | B32: $156.8 | C32: £78.4 | F32: £78.4 | G32: £1.593 | L32: £1.59 | M32: £3.94 | N32: 18 | O32: 18 | Q32: £71.8 | R32: £6.6 | S32: 109%
A33: 1891 | B33: $160.0 | C33: £80.0 | F33: £80.0 | G33: £1.672 | L33: £1.67 | M33: £4.13 | N33: 19 | O33: 19 | Q33: £71.8 | R33: £8.2 | S33: 111%
A34: 1892 | B34: $154.0 | C34: £77.0 | F34: £77.0 | G34: £1.649 | L34: £1.65 | M34: £4.07 | N34: 19 | O34: 20 | Q34: £70.7 | R34: £6.3 | S34: 109%
A35: 1893 | B35: $154.2 | C35: £77.1 | F35: £77.1 | G35: £1.679 | L35: £1.68 | M35: £4.15 | N35: 20 | O35: 20 | Q35: £67.6 | R35: £9.5 | S35: 114%
A36: 1894 | B36: $135.6 | C36: £67.8 | F36: £67.8 | G36: £1.618 | L36: £1.62 | M36: £4.00 | N36: 22 | O36: 20 | Q36: £65.5 | R36: £2.3 | S36: 103%
A37: 1895 | B37: $136.4 | C37: £68.2 | F37: £68.2 | G37: £1.591 | L37: £1.59 | M37: £3.93 | N37: 21 | O37: 21 | Q37: £65.5 | R37: £2.7 | S37: 104%
A38: 1896 | B38: $136.4 | C38: £68.2 | F38: £68.2 | G38: £1.568 | L38: £1.57 | M38: £3.87 | N38: 21 | O38: 21 | Q38: £66.0 | R38: £2.2 | S38: 103%
A39: 1897 | B39: $129.2 | C39: £64.6 | F39: £64.6 | G39: £1.530 | L39: £1.53 | M39: £3.78 | N39: 21 | O39: 21 | Q39: £67.1 | R39: -£2.5 | S39: 96%
A40: 1898 | B40: $131.4 | C40: £65.7 | F40: £65.7 | G40: £1.477 | L40: £1.48 | M40: £3.65 | N40: 20 | O40: 20 | Q40: £67.1 | R40: -£1.4 | S40: 98%
A41: 1899 | B41: $126.0 | C41: £63.0 | F41: £63.0 | G41: £1.432 | L41: £1.43 | M41: £3.54 | N41: 21 | O41: 20 | Q41: £67.6 | R41: -£4.6 | S41: 93%
A42: 1900 | B42: $132.8 | C42: £66.4 | F42: £66.4 | G42: £1.416 | I42: 40.7 | L42: £1.42 | M42: £3.50 | N42: 19 | O42: 20 | Q42: £68.1 | R42: -£1.7 | S42: 97%
A43: 1901 | F43: £69.6 | G43: £1.577 | H43: $194 | I43: 40.9 | J43: =H43/I43/2 -> £2.4 | L43: £1.58 | M43: £3.90 | N43: 20 | O43: 21 | Q43: £69.2 | R43: £0.5 | S43: 101%
A44: 1902 | F44: £72.9 | G44: £1.715 | H44: $203 | I44: 41.3 | J44: =H44/I44/2 -> £2.5 | L44: £1.72 | M44: £4.24 | N44: 21 | O44: 22 | Q44: £70.7 | R44: £2.1 | S44: 103%
A45: 1903 | F45: £76.1 | G45: £1.928 | H45: $219 | I45: 34.1 | J45: £3.2 | L45: £1.93 | M45: £4.76 | N45: 23 | O45: 23 | Q45: £70.7 | R45: £5.4 | S45: 108%
A46: 1904 | F46: £79.3 | G46: £2.179 | H46: $225 | I46: 39.5 | J46: £2.8 | L46: £2.18 | M46: £5.38 | N46: 25 | O46: 24 | Q46: £70.2 | R46: £9.1 | S46: 113%
A47: 1905 | F47: £82.6 | G47: £2.410 | H47: $225 | I47: 44.3 | J47: £2.5 | L47: £2.41 | M47: £5.96 | N47: 26 | O47: 24 | Q47: £69.2 | R47: £13.4 | S47: 119%
A48: 1906 | F48: £85.8 | G48: £2.343 | H48: $231 | I48: 43.5 | J48: £2.7 | L48: £2.34 | M48: £5.79 | N48: 25 | O48: 25 | Q48: £68.6 | R48: £17.2 | S48: 125%
A49: 1907 | F49: £89.0 | G49: £2.351 | H49: $236 | I49: 44 | J49: £2.7 | L49: £2.35 | M49: £5.81 | N49: 24 | O49: 24 | Q49: £72.3 | R49: £16.8 | S49: 123%
A50: 1908 | F50: £92.3 | G50: £2.408 | H50: $247 | I50: 43.9 | J50: £2.8 | L50: £2.41 | M50: £5.95 | N50: 24 | O50: 24 | Q50: £75.4 | R50: £16.9 | S50: 122%
A51: 1909 | D51: $191 | E51: =D51/2 -> £95.5 | F51: £95.5 | G51: £2.466 | H51: $259 | I51: 44.9 | J51: £2.9 | L51: £2.47 | M51: £6.09 | N51: 23 | O51: 23 | Q51: £77.5 | R51: £18.0 | S51: 123%
A52: 1910 | D52: $202 | E52: =D52/2 -> £101.0 | F52: =E52 -> £101.0 | G52: £2.506 | H52: $265 | I52: 44.8 | J52: £3.0 | L52: £2.51 | M52: £6.19 | N52: 22 | O52: 23 | Q52: £81.1 | R52: £19.9 | S52: 125%
A53: 1911 | D53: $213 | E53: £106.5 | F53: =E53 -> £106.5 | G53: £2.640 | H53: $274 | I53: 44.8 | J53: £3.1 | L53: £2.64 | M53: £6.52 | N53: 22 | O53: 22 | Q53: £86.3 | R53: £20.2 | S53: 123%
A54: 1912 | D54: $230 | E54: £115.0 | F54: £115.0 | G54: £2.719 | H54: $278 | I54: 45.5 | J54: £3.1 | L54: £2.72 | M54: £6.72 | N54: 21 | O54: 21 | Q54: £93.1 | R54: £21.9 | S54: 124%
A55: 1913 | D55: $238 | E55: £119.0 | F55: £119.0 | G55: £2.793 | H55: $282 | I55: 44.4 | J55: £3.2 | L55: £2.79 | M55: £6.90 | N55: 21 | O55: 20 | Q55: £97.2 | R55: £21.8 | S55: 122%
A56: 1914 | D56: $248 | E56: £124.0 | F56: £124.0 | H56: $289 | I56: 44.8 | J56: £3.2 | K56: =J56*(SUM(G$43:G55)/SUM(J$43:J$55)) -> £2.6 | L56: =K56 -> £2.64 | M56: £6.52 | N56: 19 | O56: 20 | Q56: £100.4 | R56: £23.6 | S56: 124%
A57: 1915 | D57: $258 | E57: £129.0 | F57: £129.0 | H57: $291 | I57: 45.4 | J57: £3.2 | K57: =J57*(SUM(G$43:G56)/SUM(J$43:J$55)) -> £2.6 | L57: =K57 -> £2.62 | M57: £6.48 | N57: 18 | O57: 19 | Q57: £100.9 | R57: £28.1 | S57: 128%
A58: 1916 | D58: $258 | E58: £129.0 | F58: £129.0 | H58: $294 | I58: 45.1 | J58: £3.3 | K58: =J58*(SUM(G$43:G57)/SUM(J$43:J$55)) -> £2.7 | L58: £2.67 | M58: £6.59 | N58: 19 | O58: 19 | Q58: £104.0 | R58: £25.0 | S58: 124%
A59: 1917 | D59: $273 | E59: £136.5 | F59: £136.5 | H59: $301 | I59: 45 | J59: £3.3 | K59: =J59*(SUM(G$43:G58)/SUM(J$43:J$55)) -> £2.7 | L59: £2.74 | M59: £6.76 | N59: 18 | O59: 18 | Q59: £110.8 | R59: £25.7 | S59: 123%
A60: 1918 | D60: $282 | E60: £141.0 | F60: £141.0 | H60: $304 | I60: 43.3 | J60: £3.5 | K60: =J60*(SUM(G$43:G59)/SUM(J$43:J$55)) -> £2.9 | L60: £2.87 | M60: £7.10 | N60: 18 | O60: 17 | Q60: £113.9 | R60: £27.1 | S60: 124%
A61: 1919 | D61: $312 | E61: £156.0 | F61: £156.0 | H61: $313 | I61: 44.4 | J61: £3.5 | K61: =J61*(SUM(G$43:G60)/SUM(J$43:J$55)) -> £2.9 | L61: £2.88 | M61: £7.13 | N61: 17 | O61: 17 | Q61: £127.9 | R61: £28.1 | S61: 122%
A62: 1920 | D62: $345 | E62: £172.5 | F62: £172.5 | H62: $319 | I62: 43.6 | J62: £3.7 | K62: =J62*(SUM(G$43:G61)/SUM(J$43:J$55)) -> £3.0 | L62: £2.99 | M62: £7.40 | N62: 16 | O62: 16 | Q62: £140.9 | R62: £31.6 | S62: 122%
A63: 1921 | D63: $405 | E63: £202.5 | F63: £202.5 | H63: $347 | I63: 42.7 | J63: £4.1 | K63: =J63*(SUM(G$43:G62)/SUM(J$43:J$55)) -> £3.3 | L63: £3.32 | M63: £8.22 | N63: 15 | O63: 15 | Q63: £166.9 | R63: £35.6 | S63: 121%
A64: 1922 | D64: $437 | E64: £218.5 | F64: £218.5 | H64: $359 | I64: 43.1 | J64: £4.2 | K64: =J64*(SUM(G$43:G63)/SUM(J$43:J$55)) -> £3.4 | L64: £3.41 | M64: £8.42 | N64: 14 | O64: 15 | Q64: £174.7 | R64: £43.8 | S64: 125%
A65: 1923 | D65: $442 | E65: £221.0 | F65: £221.0 | H65: $370 | I65: 43.2 | J65: £4.3 | K65: =J65*(SUM(G$43:G64)/SUM(J$43:J$55)) -> £3.5 | L65: £3.50 | M65: £8.66 | N65: 14 | O65: 15 | Q65: £175.2 | R65: £45.8 | S65: 126%
A66: 1924 | D66: $460 | E66: £230.0 | F66: £230.0 | H66: $394 | I66: 42.6 | J66: £4.6 | K66: =J66*(SUM(G$43:G65)/SUM(J$43:J$55)) -> £3.8 | L66: £3.78 | M66: £9.35 | N66: 15 | O66: 15 | Q66: £182.0 | R66: £48.0 | S66: 126%
A67: 1925 | D67: $461 | E67: £230.5 | F67: £230.5 | H67: $428 | I67: 42.2 | J67: £5.1 | K67: =J67*(SUM(G$43:G66)/SUM(J$43:J$55)) -> £4.1 | L67: £4.15 | M67: £10.25 | N67: 16 | O67: 16 | Q67: £185.1 | R67: £45.4 | S67: 125%
A68: 1926 | D68: $472 | E68: £236.0 | F68: £236.0 | H68: $450 | I68: 41.3 | J68: £5.4 | K68: =J68*(SUM(G$43:G67)/SUM(J$43:J$55)) -> £4.5 | L68: £4.46 | M68: £11.01 | N68: 17 | O68: 16 | Q68: £194.0 | R68: £42.0 | S68: 122%
A69: 1927 | D69: $485 | E69: £242.5 | F69: £242.5 | H69: $477 | I69: 43.8 | J69: £5.4 | K69: =J69*(SUM(G$43:G68)/SUM(J$43:J$55)) -> £4.5 | L69: £4.46 | M69: £11.01 | N69: 17 | O69: 17 | Q69: £194.5 | R69: =F69-Q69 -> £48.0 | S69: =F69/Q69 -> 125%
A70: 1928 | D70: $493 | E70: £246.5 | F70: £246.5 | H70: $503 | I70: 43.5 | J70: £5.8 | K70: =J70*(SUM(G$43:G69)/SUM(J$43:J$55)) -> £4.7 | L70: £4.73 | M70: £11.69 | N70: 17 | O70: 18 | Q70: £198.1 | R70: £48.4 | S70: 124%
A71: 1929 | D71: $483 | E71: £241.5 | F71: £241.5 | H71: $535 | I71: 41.7 | J71: £6.4 | K71: =J71*(SUM(G$43:G70)/SUM(J$43:J$55)) -> £5.2 | L71: £5.25 | M71: £12.97 | N71: 20 | O71: 19 | Q71: £196.6 | R71: £44.9 | S71: 123%
A72: 1930 | D72: $484 | E72: £242.0 | F72: £242.0 | H72: $525 | I72: 40.3 | J72: £6.5 | K72: =J72*(SUM(G$43:G71)/SUM(J$43:J$55)) -> £5.3 | L72: £5.33 | M72: =L72*2.47105 -> £13.17 | N72: =2.47105*365/(F72/L72) -> 20 | O72: 20 | Q72: £197.1 | R72: £44.9 | S72: 123%
A73: 1931 | D73: $443 | E73: £221.5 | F73: £221.5 | H73: $483 | I73: 39 | J73: £6.2 | K73: =J73*(SUM(G$43:G72)/SUM(J$43:J$55)) -> £5.1 | L73: £5.07 | M73: £12.52 | N73: 21 | O73: 21 | Q73: £181.0 | R73: £40.5 | S73: 122%
A74: 1932 | D74: $401 | E74: £200.5 | F74: £200.5 | H74: $468 | I74: 38.9 | J74: £6.0 | K74: =J74*(SUM(G$43:G73)/SUM(J$43:J$55)) -> £4.9 | L74: £4.92 | M74: £12.16 | N74: 22 | O74: =AVERAGE(N72:N76) -> 22 | Q74: £163.3 | R74: £37.2 | S74: 123%
A75: 1933 | D75: $389 | E75: £194.5 | F75: £194.5 | H75: $471 | I75: 39.2 | J75: £6.0 | K75: =J75*(SUM(G$43:G74)/SUM(J$43:J$55)) -> £4.9 | L75: £4.92 | M75: £12.15 | N75: 23 | O75: 22 | Q75: £157.0 | R75: £37.5 | S75: 124%
A76: 1934 | D76: $383 | E76: £191.5 | F76: £191.5 | H76: $456 | I76: 39.2 | J76: £5.8 | K76: =J76*(SUM(G$43:G75)/SUM(J$43:J$55)) -> £4.8 | L76: £4.76 | M76: £11.76 | N76: 22 | O76: 22 | Q76: £155.5 | R76: £36.0 | S76: 123%
A77: 1935 | D77: $387 | E77: £193.5 | F77: £193.5 | H77: $458 | I77: 38.9 | J77: £5.9 | K77: =J77*(SUM(G$43:G76)/SUM(J$43:J$55)) -> £4.8 | L77: £4.82 | M77: £11.90 | N77: 22 | O77: 22 | Q77: £158.1 | R77: £35.4 | S77: 122%
A78: 1936 | D78: $398 | E78: £199.0 | F78: £199.0 | H78: $471 | I78: 38.8 | J78: £6.1 | K78: =J78*(SUM(G$43:G77)/SUM(J$43:J$55)) -> £5.0 | L78: £4.97 | M78: £12.27 | N78: 23 | O78: 22 | Q78: £162.2 | R78: £36.8 | S78: 123%
A79: 1937 | D79: $412 | E79: £206.0 | F79: £206.0 | H79: $479 | I79: 38.7 | J79: £6.2 | K79: =J79*(SUM(G$43:G78)/SUM(J$43:J$55)) -> £5.1 | L79: £5.06 | M79: £12.51 | N79: 22 | O79: 21 | Q79: £166.9 | R79: £39.1 | S79: 123%
A80: 1938 | D80: $438 | E80: £219.0 | F80: £219.0 | H80: $489 | I80: 41.6 | J80: £5.9 | K80: =J80*(SUM(G$43:G79)/SUM(J$43:J$55)) -> £4.8 | L80: £4.81 | M80: £11.88 | N80: 20 | O80: 20 | Q80: £177.3 | R80: £41.7 | S80: 124%
A81: 1939 | D81: $449 | E81: £224.5 | F81: £224.5 | H81: $497 | I81: 41.6 | J81: £6.0 | K81: =J81*(SUM(G$43:G80)/SUM(J$43:J$55)) -> £4.9 | L81: £4.89 | M81: £12.08 | N81: 20 | O81: 19 | Q81: £183.6 | R81: £40.9 | S81: 122%
A82: 1940 | F82: £249.4 | H82: $507 | I82: 42.1 | J82: £6.0 | K82: =J82*(SUM(G$43:G81)/SUM(J$43:J$55)) -> £4.9 | L82: £4.93 | M82: £12.17 | N82: 18 | O82: 18 | Q82: £200.7 | R82: £48.7 | S82: 124%
A83: 1941 | F83: £274.3 | H83: $515 | I83: 42.6 | J83: £6.0 | K83: =J83*(SUM(G$43:G82)/SUM(J$43:J$55)) -> £4.9 | L83: £4.95 | M83: £12.22 | N83: 16 | O83: 16 | Q83: £213.2 | R83: £61.1 | S83: 129%
A84: 1942 | F84: £299.2 | I84: 41.9 | J84: =((H83+H85)/2)/I84/2 -> £6.2 | K84: =J84*(SUM(G$43:G83)/SUM(J$43:J$55)) -> £5.0 | L84: £5.03 | M84: £12.44 | N84: 15 | O84: 15 | Q84: £227.8 | R84: £71.4 | S84: 131%
A85: 1943 | F85: £324.1 | H85: $516 | I85: 43.3 | J85: £6.0 | K85: =J85*(SUM(G$43:G84)/SUM(J$43:J$55)) -> £4.9 | L85: £4.88 | M85: £12.05 | N85: 14 | O85: 14 | Q85: £252.2 | R85: £71.9 | S85: 129%
A86: 1944 | D86: $698 | E86: £349.0 | F86: £349.0 | I86: 42.5 | J86: =((H85+H87)/2)/I86/2 -> £6.1 | K86: =J86*(SUM(G$43:G85)/SUM(J$43:J$55)) -> £5.0 | L86: £5.00 | M86: £12.36 | N86: 13 | O86: 14 | Q86: £272.0 | R86: £77.0 | S86: 128%
A87: 1945 | D87: $672 | E87: £336.0 | F87: £336.0 | H87: $523 | I87: 42.1 | J87: £6.2 | K87: =J87*(SUM(G$43:G86)/SUM(J$43:J$55)) -> £5.1 | L87: £5.08 | M87: £12.56 | N87: 14 | O87: 13 | Q87: £266.2 | R87: £69.8 | S87: 126%
A88: 1946 | D88: $662 | E88: £331.0 | F88: £331.0 | H88: $525 | I88: 43.1 | J88: £6.1 | K88: =J88*(SUM(G$43:G87)/SUM(J$43:J$55)) -> £5.0 | L88: £4.98 | M88: £12.31 | N88: 14 | O88: 13 | Q88: £266.2 | R88: £64.8 | S88: 124%
A89: 1947 | D89: $699 | E89: £349.5 | F89: £349.5 | H89: $543 | I89: 41.9 | J89: £6.5 | K89: =J89*(SUM(G$43:G88)/SUM(J$43:J$55)) -> £5.3 | L89: £5.30 | M89: £13.10 | N89: 14 | O89: 13 | Q89: £285.0 | R89: £64.5 | S89: 123%
A90: 1948 | D90: $803 | E90: £401.5 | F90: £401.5 | H90: $575 | I90: 42.7 | J90: £6.7 | K90: =J90*(SUM(G$43:G89)/SUM(J$43:J$55)) -> £5.5 | L90: £5.51 | M90: £13.61 | N90: 12 | O90: 12 | Q90: £326.0 | R90: £75.5 | S90: 123%
A91: 1949 | D91: $916 | E91: £458.0 | F91: £458.0 | H91: $606 | I91: 42.8 | J91: £7.1 | K91: =J91*(SUM(G$43:G90)/SUM(J$43:J$55)) -> £5.8 | L91: £5.79 | M91: £14.31 | N91: 11 | O91: 12 | Q91: £369.2 | R91: £88.8 | S91: 124%
A92: 1950 | D92: $1,022 | E92: £511.0 | F92: £511.0 | H92: $646 | I92: 42.6 | J92: £7.6 | K92: =J92*(SUM(G$43:G91)/SUM(J$43:J$55)) -> £6.2 | L92: £6.20 | M92: £15.33 | N92: 11 | O92: 11 | Q92: £407.7 | R92: £103.3 | S92: 125%
A93: 1951 | D93: $1,221 | E93: £610.5 | F93: £610.5 | H93: $705 | I93: 42.7 | J93: £8.3 | K93: =J93*(SUM(G$43:G92)/SUM(J$43:J$55)) -> £6.8 | L93: £6.75 | M93: £16.69 | N93: 10 | O93: 10 | Q93: £491.4 | R93: £119.1 | S93: 124%
A94: 1952 | D94: $1,473 | E94: £736.5 | F94: £736.5 | H94: $786 | J94: =H94/((I93+I95)/2)/2 -> £9.3 | K94: =J94*(SUM(G$43:G93)/SUM(J$43:J$55)) -> £7.6 | L94: £7.64 | M94: £18.87 | N94: 9 | O94: 10 | Q94: £607.4 | R94: £129.1 | S94: 121%
A95: 1953 | D95: $1,586 | E95: £793.0 | F95: £793.0 | H95: $906 | I95: 41.5 | J95: £10.9 | K95: =J95*(SUM(G$43:G94)/SUM(J$43:J$55)) -> £8.9 | L95: £8.93 | M95: £22.07 | N95: 10 | O95: 10 | Q95: £663.0 | R95: £130.0 | S95: 120%
A96: 1954 | D96: $1,667 | E96: £833.5 | F96: £833.5 | H96: $1,003 | I96: 42.3 | J96: £11.9 | K96: =J96*(SUM(G$43:G95)/SUM(J$43:J$55)) -> £9.7 | L96: £9.70 | M96: £23.97 | N96: 10 | O96: 10 | Q96: £693.2 | R96: £140.3 | S96: 120%
A97: 1955 | D97: $1,783 | E97: £891.5 | F97: £891.5 | H97: $1,081 | I97: 43.7 | J97: £12.4 | K97: =J97*(SUM(G$43:G96)/SUM(J$43:J$55)) -> £10.1 | L97: £10.12 | M97: £25.01 | N97: 10 | O97: 11 | Q97: £737.4 | R97: £154.1 | S97: 121%
A98: 1956 | D98: $1,910 | E98: £955.0 | F98: £955.0 | H98: $1,214 | I98: 43.5 | J98: £14.0 | K98: =J98*(SUM(G$43:G97)/SUM(J$43:J$55)) -> £11.4 | L98: £11.42 | M98: £28.21 | N98: 11 | O98: 12 | Q98: £782.1 | R98: £172.9 | S98: 122%
A99: 1957 | D99: $1,964 | E99: £982.0 | F99: £982.0 | H99: $1,390 | I99: 41.2 | J99: £16.9 | K99: =J99*(SUM(G$43:G98)/SUM(J$43:J$55)) -> £13.8 | L99: £13.80 | M99: £34.11 | N99: 13 | O99: 13 | Q99: £814.3 | R99: £167.7 | S99: 121%
A100: 1958 | D100: $2,047 | E100: £1,023.5 | F100: £1,023.5 | H100: $1,554 | I100: 39.7 | J100: £19.6 | K100: =J100*(SUM(G$43:G99)/SUM(J$43:J$55)) -> £16.0 | L100: £16.01 | M100: £39.57 | N100: 14 | O100: 14 | Q100: £840.8 | R100: £182.7 | S100: 122%
A101: 1959 | D101: $2,105 | E101: £1,052.5 | F101: £1,052.5 | H101: $1,733 | I101: 40 | J101: £21.7 | K101: =J101*(SUM(G$43:G100)/SUM(J$43:J$55)) -> £17.7 | L101: £17.72 | M101: £43.80 | N101: 15 | O101: 15 | Q101: £865.3 | R101: £187.2 | S101: 122%
A102: 1960 | D102: $2,291 | E102: £1,145.5 | F102: £1,145.5 | H102: $1,927 | I102: 40.1 | J102: £24.0 | K102: =J102*(SUM(G$43:G101)/SUM(J$43:J$55)) -> £19.7 | L102: £19.66 | M102: £48.58 | N102: 15 | O102: 17 | Q102: £929.8 | R102: £215.7 | S102: 123%
A103: 1961 | D103: $2,367 | E103: £1,183.5 | F103: £1,183.5 | H103: $2,358 | I103: 39.5 | J103: £29.8 | K103: =J103*(SUM(G$43:G102)/SUM(J$43:J$55)) -> £24.4 | L103: £24.42 | M103: £60.35 | N103: 19 | O103: 18 | Q103: £967.7 | R103: £215.8 | S103: 122%
A104: 1962 | D104: $2,397 | E104: £1,198.5 | F104: £1,198.5 | H104: $2,491 | I104: 39.6 | J104: £31.5 | K104: =J104*(SUM(G$43:G103)/SUM(J$43:J$55)) -> £25.7 | L104: £25.73 | M104: £63.59 | N104: 19 | O104: 19 | Q104: £987.0 | R104: £211.5 | S104: 121%
A105: 1963 | D105: $2,491 | E105: £1,245.5 | F105: £1,245.5 | H105: $2,835 | I105: 40 | J105: £35.4 | K105: =J105*(SUM(G$43:G104)/SUM(J$43:J$55)) -> £29.0 | L105: £28.99 | M105: £71.65 | N105: 21 | Q105: £1,013.0 | R105: £232.5 | S105: 123%
A106: 1964 | D106: $2,621 | E106: £1,310.5 | F106: £1,310.5 | H106: $2,983 | I106: 40.3 | J106: £37.0 | K106: =J106*(SUM(G$43:G105)/SUM(J$43:J$55)) -> £30.3 | L106: £30.28 | M106: £74.83 | N106: 21 | Q106: £1,057.2 | R106: £253.3 | S106: 124%
A107: 1965 | D107: $2,834 | E107: £1,417.0 | F107: £1,417.0 | Q107: £1,136.7 | R107: £280.3 | S107: 125%

Sheet Data 4a
B1: Top Income Totals | J1: Shares in shares | M1: Pareto-Lorenz | P1: Next Groups | S1: Share of income from salary and wages | Z1: Contributions to Top 1% | AC1: Comparison with other series | AQ1: Shares - Victoria | AY1: Australia | BB1: Vic+Aust series | BJ1: Minimum income necessary to enter top group
A2: Year starting 1 July... | B2: Top 10% | C2: Top 5% | D2: Top 1% | E2: Top 0.5% | F2: Top 0.1% | G2: Top 0.05% | H2: Top 0.01% | J2: 1 in 10 | K2: 0.1 in 1 | M2: 1 in 10 | N2: 0.1 in 1 | P2: AUS second vintile | Q2: AUS next 4% | S2: Top 10% | T2: Top 5% | U2: Top 1% | V2: Top 0.5% | W2: Top 0.1% | X2: Top 0.05% | Y2: Top 0.01% | Z2: Salary 1% | AA2: Non-Salary 1% | AC2: Year | AD2: Money wage (Source: Pope & Withers to 1983, then ABS AWE*52) | AE2: High Court Judges (Source: Winterton 1995, High Court Companion 2001, p.597, Remuneration Tribunal Determination 2003) | AF2: Top public servants - Senior Executive Service, Top Band (Band 20 from 1926-59, Band 6 from 1963-89, Maximum in Band 3 from 1990-2000) | AG2: Basic Salary of a Federal MP | AH2: CEOs of 50 largest companies - average remuneration. From John Shields, Michael O’Donnell & John O’Brien, p8 | AI2: High Court Judges' wage/Average wage | AJ2: Top federal public servants' wage/Average wage | AK2: MP wage/Average wage | AL2: Salary of CEOs in Top 50 Companies/Average Wage (right scale) | AM2: Wealth of Richest 200 (Source:BRW) | AN2: Total Australian Private Sector Wealth (Source: Goldbloom & Craston to 1988, then ABS 5204, Table 41, 'Net Worth'). http://www.treasury.gov.au/documents/1352/PDF/04_Household_net_worth.pdf | AO2: Rich 200/Total Private Sector Wealth (as a %) | AQ2: Year | AR2: Top 10% | AS2: Top 5% | AT2: Top 1% | AU2: Top 0.5% | AV2: Top 0.1% | AW2: Top 0.05% | AX2: Top 0.01% | AY2: Top 1% | AZ2: Top 0.5% | BA2: Top 0.1% | BB2: Top 10% | BC2: Top 5% | BD2: Top 1% | BE2: Top 0.5% | BF2: Top 0.1% | BG2: Top 0.05% | BH2: Top 0.01% | BJ2: Top 10% | BK2: Top 5% | BL2: Top 1% | BM2: Top 0.5% | BN2: Top 0.1% | BO2: Top 0.05% | BP2: Top 0.01%
A3: 1920 | AQ3: 1910 | BI3: 1920
A4: 1921 | C4: 19.43 | D4: 11.63 | E4: 8.55 | F4: 3.97 | G4: 2.80 | H4: 1.24 | K4: =100*(F4/D4) -> 34.12 | N4: =1/(1-LOG(F4/D4)/LOG(0.1)) -> 1.88 | Q4: =C4-D4 -> 7.80 | AC4: 1900 | AD4: $146 | AQ4: 1911 | BI4: 1921 | BK4: $269 | BL4: $1,526 | BM4: $2,388 | BN4: $6,014 | BO4: $8,706 | BP4: $18,379
A5: 1922 | C5: 17.65 | D5: 10.68 | E5: 7.91 | F5: 3.57 | G5: 2.45 | K5: =100*(F5/D5) -> 33.40 | N5: =1/(1-LOG(F5/D5)/LOG(0.1)) -> 1.91 | Q5: =C5-D5 -> 6.96 | AC5: 1901 | AD5: $151 | AG5: $800 | AK5: =AG5/AD5 -> 5.287158813 | AQ5: 1912 | AT5: 12.69 | AU5: 9.48 | BD5: 12.69 | BE5: 9.48 | BI5: 1922 | BK5: $250 | BL5: $1,426 | BM5: $2,296 | BN5: $6,046 | BO5: $8,654
A6: 1923 | D6: 11.76 | E6: 9.08 | F6: 3.98 | G6: 2.80 | K6: 33.88 | N6: =1/(1-LOG(F6/D6)/LOG(0.1)) -> 1.89 | AC6: 1902 | AD6: $153 | AQ6: 1913 | AT6: 11.65 | AU6: 8.64 | BD6: 11.65 | BE6: 8.64 | BI6: 1923 | BL6: $1,420 | BM6: $2,442 | BN6: $6,435 | BO6: $9,124
A7: 1924 | D7: 11.67 | E7: 8.84 | F7: 4.25 | K7: 36.44 | N7: 1.78 | AC7: 1903 | AD7: $151 | AQ7: 1914 | AU7: 8.17 | AV7: 3.87 | BE7: 8.17 | BF7: 3.87 | BI7: 1924 | BL7: $1,455 | BM7: $2,761 | BN7: $7,248
A8: 1925 | D8: 11.31 | E8: 8.58 | F8: 3.99 | G8: 2.81 | K8: 35.24 | N8: 1.83 | AC8: 1904 | AD8: $149 | AQ8: 1915 | AU8: 7.70 | BE8: 7.70 | BI8: 1925 | BL8: $1,290 | BM8: $2,498 | BN8: $6,486 | BO8: $9,230
A9: 1926 | D9: 11.07 | E9: 8.42 | F9: 3.88 | G9: 2.72 | K9: 35.08 | N9: 1.83 | AC9: 1905 | AD9: $147 | AQ9: 1916 | AU9: 6.62 | AV9: 3.28 | BE9: 6.62 | BF9: 3.28 | BI9: 1926 | BL9: $1,250 | BM9: $2,484 | BN9: $6,360 | BO9: $9,014
A10: 1927 | D10: 11.68 | E10: 8.56 | F10: 3.86 | G10: 2.64 | K10: 33.08 | N10: 1.92 | AC10: 1906 | AD10: $147 | AQ10: 1917 | AU10: 6.88 | BE10: 6.88 | BI10: 1927 | BL10: $1,467 | BM10: $2,451 | BN10: $6,525 | BO10: $9,229
A11: 1928 | D11: 11.85 | E11: 8.92 | F11: 4.26 | G11: 3.16 | K11: 35.93 | N11: 1.80 | AC11: 1907 | AD11: $155 | AG11: $1,200 | AK11: =AG11/AD11 -> 7.741935484 | AQ11: 1918 | AU11: 7.06 | BE11: 7.06 | BI11: 1928 | BL11: $1,333 | BM11: $2,493 | BN11: $5,880 | BO11: $7,806
A12: 1929 | D12: 10.67 | E12: 7.91 | F12: 3.58 | G12: 2.50 | K12: 33.58 | N12: 1.90 | AC12: 1908 | AD12: $162 | AQ12: 1919 | AT12: 12.55 | AU12: 9.70 | BD12: 12.55 | BE12: 9.70 | BI12: 1929 | BL12: $1,351 | BM12: $2,149 | BN12: $5,321 | BO12: $7,566
A13: 1930 | D13: 9.75 | E13: 7.15 | F13: 3.20 | G13: 2.22 | K13: 32.80 | N13: 1.94 | AC13: 1909 | AD13: $166 | AQ13: 1920 | AT13: 10.15 | AU13: 7.43 | BD13: 10.15 | BE13: 7.43 | BI13: 1930 | BL13: $943 | BM13: $1,605 | BN13: $3,884 | BO13: $5,511
A14: 1931 | D14: 9.34 | E14: 6.93 | F14: 3.07 | G14: 2.11 | H14: 0.85 | K14: 32.88 | N14: 1.93 | AC14: 1910 | AD14: $174 | AE14: $6,000 | AI14: =IF(AE14>0,AE14/AD14,"") -> 34.48275862 | AQ14: 1921 | AT14: 9.85 | AU14: 7.10 | AY14: =D4 -> 11.63 | AZ14: 8.55 | BA14: 3.97 | BC14: =C4 -> 19.43 | BD14: =D4 -> 11.63 | BE14: 8.55 | BF14: 3.97 | BG14: =G4 -> 2.80 | BH14: =H4 -> 1.24 | BI14: 1931 | BL14: $768 | BM14: $1,413 | BN14: $3,440 | BO14: $4,880 | BP14: $9,756
A15: 1932 | D15: 9.27 | E15: 6.91 | F15: 3.08 | G15: 2.14 | H15: 0.90 | K15: 33.22 | N15: 1.92 | AC15: 1911 | AD15: $185 | AQ15: 1922 | AY15: 10.68 | AZ15: 7.91 | BA15: 3.57 | BC15: =C5 -> 17.65 | BD15: 10.68 | BE15: 7.91 | BF15: 3.57 | BG15: =G5 -> 2.45 | BI15: 1932 | BL15: $742 | BM15: $1,386 | BN15: $3,350 | BO15: $4,671 | BP15: $9,692
A16: 1933 | D16: 10.32 | E16: 7.73 | F16: 3.53 | G16: 2.46 | K16: 34.21 | N16: 1.87 | AC16: 1912 | AD16: $199 | AQ16: 1923 | AS16: 19.04 | AT16: 11.42 | AU16: 8.13 | AV16: 3.49 | AW16: 2.40 | AY16: 11.76 | AZ16: 9.08 | BA16: 3.98 | BD16: 11.76 | BE16: 9.08 | BF16: 3.98 | BG16: =G6 -> 2.80 | BI16: 1933 | BL16: $862 | BM16: $1,633 | BN16: $4,076 | BO16: $5,840
A17: 1934 | D17: 10.36 | E17: 7.79 | F17: 3.49 | G17: 2.44 | K17: 33.67 | N17: 1.90 | AC17: 1913 | AD17: $208 | AQ17: 1924 | AY17: 11.67 | AZ17: 8.84 | BA17: 4.25 | BD17: 11.67 | BE17: 8.84 | BF17: 4.25 | BI17: 1934 | BL17: $905 | BM17: $1,653 | BN17: $4,197 | BO17: $5,921
A18: 1935 | D18: 10.54 | E18: 7.77 | F18: 3.49 | G18: 2.42 | K18: 33.13 | N18: 1.92 | AC18: 1914 | AD18: $215 | AQ18: 1925 | AY18: 11.31 | AZ18: 8.58 | BA18: 3.99 | BD18: 11.31 | BE18: 8.58 | BF18: 3.99 | BG18: 2.81 | BI18: 1935 | BL18: $1,081 | BM18: $1,894 | BN18: $4,646 | BO18: $6,533
A19: 1936 | D19: 11.28 | E19: 8.25 | F19: 3.71 | G19: 2.56 | K19: 32.84 | N19: 1.94 | AC19: 1915 | AD19: $216 | AQ19: 1926 | AY19: 11.07 | AZ19: 8.42 | BA19: 3.88 | BD19: 11.07 | BE19: 8.42 | BF19: 3.88 | BG19: 2.72 | BI19: 1936 | BL19: $1,370 | BM19: $2,199 | BN19: $5,460 | BO19: $7,681
A20: 1937 | D20: 9.83 | E20: 7.17 | F20: 3.19 | G20: 2.20 | H20: 0.89 | K20: 32.44 | N20: 1.96 | AC20: 1916 | AD20: $223 | AQ20: 1927 | AY20: 11.68 | AZ20: 8.56 | BA20: 3.86 | BD20: 11.68 | BE20: 8.56 | BF20: 3.86 | BG20: 2.64 | BI20: 1937 | BL20: $1,262 | BM20: $2,065 | BN20: $5,006 | BO20: $7,038 | BP20: $14,323
A21: 1938 | D21: 10.39 | E21: 7.61 | F21: 3.41 | G21: 2.36 | H21: 0.97 | K21: 32.84 | N21: 1.94 | AC21: 1917 | AD21: $237 | AQ21: 1928 | AY21: 11.85 | AZ21: 8.92 | BA21: 4.26 | BD21: 11.85 | BE21: 8.92 | BF21: 4.26 | BG21: 3.16 | BI21: 1938 | BL21: $1,191 | BM21: $1,985 | BN21: $4,819 | BO21: $6,818 | BP21: $13,732
A22: 1939 | C22: 20.71 | D22: 10.73 | E22: 7.81 | F22: 3.50 | G22: 2.44 | H22: 1.04 | K22: 32.65 | N22: 1.95 | Q22: =C22-D22 -> 9.98 | AC22: 1918 | AD22: $244 | AQ22: 1929 | AY22: 10.67 | AZ22: 7.91 | BA22: 3.58 | BD22: 10.67 | BE22: 7.91 | BF22: 3.58 | BG22: 2.50 | BI22: 1939 | BK22: $375 | BL22: $1,413 | BM22: $2,161 | BN22: $5,253 | BO22: $7,306 | BP22: $15,129
A23: 1940 | C23: 20.57 | D23: 10.30 | E23: 7.48 | F23: 3.37 | G23: 2.35 | H23: 0.99 | K23: 32.75 | N23: 1.94 | Q23: =C23-D23 -> 10.28 | AC23: 1919 | AD23: $274 | AQ23: 1930 | AY23: 9.75 | AZ23: 7.15 | BA23: 3.20 | BD23: 9.75 | BE23: 7.15 | BF23: 3.20 | BG23: 2.22 | BI23: 1940 | BJ23: $162 | BK23: $463 | BL23: $1,453 | BM23: $2,212 | BN23: $5,343 | BO23: $7,533 | BP23: $15,851
A24: 1941 | B24: 34.61 | C24: 23.67 | D24: 10.78 | E24: 7.68 | F24: 3.34 | G24: 2.32 | H24: 0.94 | J24: =100*(D24/B24) -> 31.15 | K24: 31.01 | M24: =1/(1-LOG(D24/B24)/LOG(0.1)) -> 2.03 | N24: 2.03 | P24: =B24-C24 -> 10.94 | Q24: 12.88 | AC24: 1920 | AD24: $302 | AE24: $6,000 | AG24: $2,000 | AI24: =IF(AE24>0,AE24/AD24,"") -> 19.86754967 | AK24: =AG24/AD24 -> 6.622516556 | AQ24: 1931 | AY24: 9.34 | AZ24: 6.93 | BA24: 3.07 | BD24: 9.34 | BE24: 6.93 | BF24: 3.07 | BG24: 2.11 | BH24: =H14 -> 0.85 | BI24: 1941 | BJ24: $711 | BK24: $887 | BL24: $1,859 | BM24: $2,741 | BN24: $6,235 | BO24: $8,638 | BP24: $18,436
A25: 1942 | B25: 34.12 | C25: 23.26 | D25: 10.43 | E25: 7.34 | F25: 3.11 | G25: 2.12 | H25: 0.85 | J25: 30.56 | K25: 29.79 | M25: =1/(1-LOG(D25/B25)/LOG(0.1)) -> 2.06 | N25: 2.11 | P25: 10.87 | Q25: 12.83 | AC25: 1921 | AD25: $357 | AE25: $6,000 | AG25: $2,000 | AI25: =IF(AE25>0,AE25/AD25,"") -> 16.80672269 | AK25: =AG25/AD25 -> 5.602240896 | AQ25: 1932 | AY25: 9.27 | AZ25: 6.91 | BA25: 3.08 | BD25: 9.27 | BE25: 6.91 | BF25: 3.08 | BG25: 2.14 | BH25: =H15 -> 0.90 | BI25: 1942 | BJ25: $800 | BK25: $1,003 | BL25: $2,104 | BM25: $3,086 | BN25: $6,749 | BO25: $9,292 | BP25: $18,839
A26: 1943 | B26: 34.23 | C26: 23.42 | D26: 10.45 | E26: 7.32 | F26: 3.09 | G26: 2.12 | H26: 0.86 | J26: 30.52 | K26: 29.57 | M26: =1/(1-LOG(D26/B26)/LOG(0.1)) -> 2.06 | N26: 2.12 | P26: 10.81 | Q26: 12.97 | AC26: 1922 | AD26: $374 | AQ26: 1933 | AY26: 10.32 | AZ26: 7.73 | BA26: 3.53 | BD26: 10.32 | BE26: 7.73 | BF26: 3.53 | BG26: 2.46 | BI26: 1943 | BJ26: $828 | BK26: $1,046 | BL26: $2,212 | BM26: $3,226 | BN26: $6,914 | BO26: $9,512 | BP26: $19,447
A27: 1944 | B27: 31.25 | C27: 21.09 | D27: 9.03 | E27: 6.22 | F27: 2.49 | G27: 1.66 | H27: 0.64 | J27: 28.90 | K27: 27.61 | M27: 2.17 | N27: 2.27 | P27: 10.17 | Q27: 12.06 | AC27: 1923 | AD27: $375 | AQ27: 1934 | AY27: 10.36 | AZ27: 7.79 | BA27: 3.49 | BD27: 10.36 | BE27: 7.79 | BF27: 3.49 | BG27: 2.44 | BI27: 1944 | BJ27: $802 | BK27: $1,015 | BL27: $2,086 | BM27: $3,002 | BN27: $6,344 | BO27: $8,548 | BP27: $17,562
A28: 1945 | B28: 28.75 | C28: 19.56 | D28: 8.44 | E28: 5.79 | F28: 2.31 | G28: 1.55 | H28: 0.62 | J28: 29.34 | K28: 27.41 | M28: 2.14 | N28: 2.28 | P28: 9.19 | Q28: 11.12 | AC28: 1924 | AD28: $390 | AQ28: 1935 | AY28: 10.54 | AZ28: 7.77 | BA28: 3.49 | BD28: 10.54 | BE28: 7.77 | BF28: 3.49 | BG28: 2.42 | BI28: 1945 | BJ28: $787 | BK28: $1,005 | BL28: $2,138 | BM28: $3,071 | BN28: $6,385 | BO28: $8,534 | BP28: $17,538
A29: 1946 | B29: 31.61 | C29: 21.76 | D29: 9.51 | E29: 6.52 | F29: 2.59 | G29: 1.72 | H29: 0.66 | J29: 30.08 | K29: 27.19 | M29: 2.09 | N29: 2.30 | P29: 9.86 | Q29: 12.25 | AC29: 1925 | AD29: $396 | AQ29: 1936 | AY29: 11.28 | AZ29: 8.25 | BA29: 3.71 | BD29: 11.28 | BE29: 8.25 | BF29: 3.71 | BG29: 2.56 | BI29: 1946 | BJ29: $850 | BK29: $1,087 | BL29: $2,434 | BM29: $3,462 | BN29: $7,293 | BO29: $9,789 | BP29: $19,353
A30: 1947 | B30: 33.10 | C30: 23.41 | D30: 10.62 | E30: 7.31 | F30: 2.92 | G30: 1.94 | H30: 0.73 | J30: 32.08 | K30: 27.49 | M30: 1.98 | N30: 2.28 | P30: 9.69 | Q30: 12.79 | AC30: 1926 | AD30: $415 | AF30: $4,200 | AJ30: =IF(AF30>0,AF30/AD30,"") -> 10.12048193 | AQ30: 1937 | AY30: =D20 -> 9.83 | AZ30: 7.17 | BA30: 3.19 | BD30: 9.83 | BE30: 7.17 | BF30: 3.19 | BG30: 2.20 | BH30: 0.89 | BI30: 1947 | BJ30: $1,017 | BK30: $1,313 | BL30: $3,225 | BM30: $4,585 | BN30: $10,159 | BO30: $12,105 | BP30: $22,199
A31: 1948 | B31: 32.77 | C31: 23.35 | D31: 10.80 | E31: 7.40 | F31: 2.89 | G31: 1.96 | H31: 0.73 | J31: 32.95 | K31: 26.80 | M31: 1.93 | N31: 2.34 | P31: 9.43 | Q31: 12.55 | AC31: 1927 | AD31: $417 | AQ31: 1938 | AY31: 10.39 | AZ31: 7.61 | BA31: 3.41 | BD31: 10.39 | BE31: 7.61 | BF31: 3.41 | BG31: 2.36 | BH31: 0.97 | BI31: 1948 | BJ31: $1,154 | BK31: $1,477 | BL31: $3,892 | BM31: $5,707 | BN31: $11,459 | BO31: $14,897 | BP31: $29,796
A32: 1949 | B32: 32.82 | C32: 23.66 | D32: 11.26 | E32: 7.89 | F32: 3.31 | G32: 2.23 | J32: 34.30 | K32: 29.44 | M32: 1.87 | N32: 2.13 | P32: 9.16 | Q32: 12.40 | AC32: 1928 | AD32: $424 | AQ32: 1939 | AY32: 10.73 | AZ32: 7.81 | BA32: 3.50 | BC32: =C22 -> 20.71 | BD32: 10.73 | BE32: 7.81 | BF32: 3.50 | BG32: 2.44 | BH32: 1.04 | BI32: 1949 | BJ32: $1,265 | BK32: $1,654 | BL32: $4,375 | BM32: $6,385 | BN32: $12,911 | BO32: $20,026
A33: 1950 | B33: 31.53 | C33: 25.56 | D33: 14.13 | E33: 10.22 | F33: 4.47 | J33: 44.82 | K33: 31.60 | M33: 1.54 | N33: 2.00 | P33: 5.97 | Q33: 11.43 | AC33: 1929 | AD33: $421 | AQ33: 1940 | AY33: 10.30 | AZ33: 7.48 | BA33: 3.37 | BC33: 20.57 | BD33: 10.30 | BE33: 7.48 | BF33: 3.37 | BG33: 2.35 | BH33: 0.99 | BI33: 1950 | BJ33: $1,310 | BK33: $1,974 | BL33: $6,208 | BM33: $10,385 | BN33: $22,498
A34: 1951 | B34: 26.65 | C34: 18.87 | D34: 9.08 | E34: 6.23 | F34: 2.53 | G34: 1.67 | J34: 34.08 | K34: 27.84 | M34: 1.88 | N34: 2.25 | P34: 7.79 | Q34: 9.78 | AC34: 1930 | AD34: $422 | AE34: $6,000 | AI34: =IF(AE34>0,AE34/AD34,"") -> 14.21800948 | AQ34: 1941 | AY34: 10.78 | AZ34: 7.68 | BA34: 3.34 | BB34: =B24 -> 34.61 | BC34: 23.67 | BD34: 10.78 | BE34: 7.68 | BF34: 3.34 | BG34: 2.32 | BH34: 0.94 | BI34: 1951 | BJ34: $1,763 | BK34: $1,867 | BL34: $4,657 | BM34: $8,007 | BN34: $14,498 | BO34: $20,883
A35: 1952 | B35: 26.31 | C35: 19.51 | D35: 8.99 | E35: 6.11 | F35: 2.44 | G35: 1.57 | H35: 0.55 | J35: 34.17 | K35: 27.11 | M35: 1.87 | N35: 2.31 | P35: 6.80 | Q35: 10.52 | AC35: 1931 | AD35: $388 | AG35: $1,600 | AK35: =AG35/AD35 -> 4.12371134 | AQ35: 1942 | AY35: 10.43 | AZ35: 7.34 | BA35: 3.11 | BB35: 34.12 | BC35: 23.26 | BD35: 10.43 | BE35: 7.34 | BF35: 3.11 | BG35: 2.12 | BH35: 0.85 | BI35: 1952 | BJ35: $1,684 | BK35: $2,484 | BL35: $6,010 | BM35: $8,047 | BN35: $15,948 | BO35: $21,149 | BP35: $40,666
A36: 1953 | B36: 26.10 | C36: 18.70 | D36: 8.71 | E36: 5.97 | F36: 2.43 | G36: 1.58 | H36: 0.58 | J36: 33.38 | K36: 27.85 | M36: 1.91 | N36: 2.25 | P36: 7.40 | Q36: 9.99 | AC36: 1932 | AD36: $350 | AG36: $1,500 | AK36: =AG36/AD36 -> 4.285714286 | AQ36: 1943 | AY36: 10.45 | AZ36: 7.32 | BA36: 3.09 | BB36: 34.23 | BC36: 23.42 | BD36: 10.45 | BE36: 7.32 | BF36: 3.09 | BG36: 2.12 | BH36: 0.86 | BI36: 1953 | BJ36: $1,942 | BK36: $2,420 | BL36: $5,672 | BM36: $8,007 | BN36: $15,851 | BO36: $21,277 | BP36: $40,958
A37: 1954 | B37: 25.77 | C37: 18.10 | D37: 8.06 | E37: 5.48 | F37: 2.19 | G37: 1.42 | H37: 0.52 | J37: 31.27 | K37: 27.17 | M37: 2.02 | N37: 2.30 | P37: 7.67 | Q37: 10.04 | S37: 0.44 | T37: 0.30 | U37: 0.16 | V37: 0.14 | W37: 0.12 | X37: 0.11 | Y37: 0.10 | Z37: =D37*U37 -> 1.26 | AA37: =D37*(1-U37) -> 6.80 | AC37: 1933 | AD37: $336 | AG37: $1,650 | AK37: =AG37/AD37 -> 4.910714286 | AQ37: 1944 | AY37: 9.03 | AZ37: 6.22 | BA37: 2.49 | BB37: 31.25 | BC37: 21.09 | BD37: 9.03 | BE37: 6.22 | BF37: 2.49 | BG37: 1.66 | BH37: 0.64 | BI37: 1954 | BJ37: $2,148 | BK37: $2,762 | BL37: $6,002 | BM37: $7,996 | BN37: $14,877 | BO37: $20,786 | BP37: $40,288
A38: 1955 | B38: 25.53 | C38: 17.49 | D38: 7.54 | E38: 5.10 | F38: 2.01 | G38: 1.29 | H38: 0.48 | J38: 29.55 | K38: 26.61 | M38: 2.13 | N38: 2.35 | P38: 8.04 | Q38: 9.94 | S38: 0.47 | T38: 0.35 | U38: 0.19 | V38: 0.17 | W38: 0.15 | X38: 0.14 | Y38: 0.11 | Z38: 1.43 | AA38: 6.11 | AC38: 1934 | AD38: $333 | AQ38: 1945 | AY38: 8.44 | AZ38: 5.79 | BA38: 2.31 | BB38: 28.75 | BC38: 19.56 | BD38: 8.44 | BE38: 5.79 | BF38: 2.31 | BG38: 1.55 | BH38: 0.62 | BI38: 1955 | BJ38: $2,373 | BK38: $2,975 | BL38: $6,002 | BM38: $7,981 | BN38: $14,676 | BO38: $20,662 | BP38: $37,383
A39: 1956 | B39: 25.69 | C39: 17.84 | D39: 7.91 | E39: 5.42 | F39: 2.16 | G39: 1.39 | H39: 0.51 | J39: 30.77 | K39: 27.37 | M39: 2.05 | N39: 2.29 | P39: 7.85 | Q39: 9.94 | S39: 0.45 | T39: 0.32 | U39: 0.17 | V39: 0.14 | W39: 0.10 | X39: 0.09 | Y39: 0.07 | Z39: 1.31 | AA39: 6.60 | AC39: 1935 | AD39: $339 | AG39: $1,700 | AK39: =AG39/AD39 -> 5.014749263 | AQ39: 1946 | AY39: 9.51 | AZ39: 6.52 | BA39: 2.59 | BB39: 31.61 | BC39: 21.76 | BD39: 9.51 | BE39: 6.52 | BF39: 2.59 | BG39: 1.72 | BH39: 0.66 | BI39: 1956 | BJ39: $2,294 | BK39: $2,912 | BL39: $5,973 | BM39: $7,905 | BN39: $18,252 | BO39: $21,602 | BP39: $41,724
A40: 1957 | B40: 23.99 | C40: 16.33 | D40: 7.04 | E40: 4.75 | F40: 1.84 | G40: 1.19 | H40: 0.43 | J40: 29.35 | K40: 26.07 | M40: 2.14 | N40: 2.40 | P40: 7.66 | Q40: 9.29 | S40: 0.53 | T40: 0.42 | U40: 0.24 | V40: 0.21 | W40: 0.18 | X40: 0.17 | Y40: 0.14 | Z40: 1.69 | AA40: 5.35 | AC40: 1936 | AD40: $347 | AG40: $1,900 | AK40: =AG40/AD40 -> 5.475504323 | AQ40: 1947 | AY40: 10.62 | AZ40: 7.31 | BA40: 2.92 | BB40: 33.10 | BC40: 23.41 | BD40: 10.62 | BE40: 7.31 | BF40: 2.92 | BG40: 1.94 | BH40: 0.73 | BI40: 1957 | BJ40: $2,291 | BK40: $2,916 | BL40: $5,978 | BM40: $7,938 | BN40: $12,294 | BO40: $20,300 | BP40: $31,089
A41: 1958 | B41: 29.77 | C41: 19.41 | D41: 7.44 | E41: 4.86 | F41: 1.76 | G41: 1.14 | H41: 0.41 | J41: 25.01 | K41: 23.69 | M41: 2.51 | N41: 2.67 | P41: 10.36 | Q41: 11.96 | S41: 0.41 | T41: 0.34 | U41: 0.21 | V41: 0.19 | W41: 0.18 | X41: 0.17 | Y41: 0.13 | Z41: 1.59 | AA41: 5.86 | AC41: 1937 | AD41: $358 | AQ41: 1948 | AY41: 10.80 | AZ41: 7.40 | BA41: 2.89 | BB41: 32.77 | BC41: 23.35 | BD41: 10.80 | BE41: 7.40 | BF41: 2.89 | BG41: 1.96 | BH41: 0.73 | BI41: 1958 | BJ41: $2,650 | BK41: $3,311 | BL41: $6,401 | BM41: $8,576 | BN41: $15,852 | BO41: $20,498 | BP41: $36,355
A42: 1959 | B42: 29.85 | C42: 19.44 | D42: 7.39 | E42: 4.82 | F42: 1.75 | G42: 1.12 | H42: 0.41 | J42: 24.77 | K42: 23.61 | M42: 2.54 | N42: 2.68 | P42: 10.41 | Q42: 12.05 | S42: 0.42 | T42: 0.34 | U42: 0.21 | V42: 0.19 | W42: 0.16 | X42: 0.15 | Y42: 0.11 | Z42: 1.55 | AA42: 5.84 | AC42: 1938 | AD42: $380 | AG42: $2,000 | AK42: =AG42/AD42 -> 5.263157895 | AQ42: 1949 | AY42: 11.26 | AZ42: 7.89 | BA42: 3.31 | BB42: 32.82 | BC42: 23.66 | BD42: 11.26 | BE42: 7.89 | BF42: 3.31 | BG42: 2.23 | BI42: 1959 | BJ42: $2,900 | BK42: $3,664 | BL42: $6,863 | BM42: $9,294 | BN42: $17,083 | BO42: $22,006 | BP42: $39,630
A43: 1960 | B43: 29.60 | C43: 19.14 | D43: 7.09 | E43: 4.58 | F43: 1.62 | G43: 1.04 | H43: 0.37 | J43: 23.96 | K43: 22.90 | M43: 2.63 | N43: 2.78 | P43: 10.46 | Q43: 12.04 | S43: 0.43 | T43: 0.35 | U43: 0.23 | V43: 0.21 | W43: 0.18 | X43: 0.17 | Y43: 0.14 | Z43: 1.64 | AA43: 5.46 | AC43: 1939 | AD43: $393 | AQ43: 1950 | AY43: 14.13 | AZ43: 10.22 | BA43: 4.47 | BB43: 31.53 | BC43: 25.56 | BD43: 14.13 | BE43: 10.22 | BF43: 4.47 | BI43: 1960 | BJ43: $3,055 | BK43: $3,864 | BL43: $7,134 | BM43: $9,435 | BN43: $16,888 | BO43: $21,662 | BP43: $38,573
A44: 1961 | B44: 29.71 | C44: 19.20 | D44: 7.10 | E44: 4.58 | F44: 1.65 | G44: 1.06 | H44: 0.40 | J44: 23.89 | K44: 23.18 | M44: 2.64 | N44: 2.74 | P44: 10.50 | Q44: 12.11 | S44: 0.43 | T44: 0.36 | U44: 0.24 | V44: 0.21 | W44: 0.18 | X44: 0.17 | Y44: 0.12 | Z44: 1.67 | AA44: 5.42 | AC44: 1940 | AD44: $429 | AE44: $6,000 | AI44: =IF(AE44>0,AE44/AD44,"") -> 13.97103339 | AQ44: 1951 | AY44: 9.08 | AZ44: 6.23 | BA44: 2.53 | BB44: 26.65 | BC44: 18.87 | BD44: 9.08 | BE44: 6.23 | BF44: 2.53 | BG44: 1.67 | BI44: 1961 | BJ44: $3,085 | BK44: $3,917 | BL44: $7,193 | BM44: $9,488 | BN44: $16,914 | BO44: $21,630 | BP44: $38,079
A45: 1962 | B45: 30.22 | C45: 19.62 | D45: 7.23 | E45: 4.64 | F45: 1.64 | G45: 1.04 | H45: 0.38 | J45: 23.91 | K45: 22.64 | M45: 2.64 | N45: 2.82 | P45: 10.60 | Q45: 12.39 | S45: 0.42 | T45: 0.34 | U45: 0.21 | V45: 0.19 | W45: 0.16 | X45: 0.15 | Y45: 0.13 | Z45: 1.55 | AA45: 5.67 | AC45: 1941 | AD45: $457 | AF45: $4,224 | AJ45: =IF(AF45>0,AF45/AD45,"") -> 9.244709024 | AQ45: 1952 | AY45: 8.99 | AZ45: 6.11 | BA45: 2.44 | BB45: 26.31 | BC45: 19.51 | BD45: 8.99 | BE45: 6.11 | BF45: 2.44 | BG45: 1.57 | BH45: 0.55 | BI45: 1962 | BJ45: $3,211 | BK45: $4,117 | BL45: $7,718 | BM45: $10,066 | BN45: $17,890 | BO45: $22,711 | BP45: $39,687
A46: 1963 | B46: 30.35 | C46: 19.84 | D46: 7.36 | E46: 4.72 | F46: 1.65 | G46: 1.05 | H46: 0.37 | J46: 24.24 | K46: 22.43 | M46: 2.60 | N46: 2.85 | P46: 10.51 | Q46: 12.48 | S46: 0.40 | T46: 0.32 | U46: 0.18 | V46: 0.15 | W46: 0.13 | X46: 0.13 | Y46: 0.11 | Z46: 1.34 | AA46: 6.02 | AC46: 1942 | AD46: $488 | AQ46: 1953 | AY46: 8.71 | AZ46: 5.97 | BA46: 2.43 | BB46: 26.10 | BC46: 18.70 | BD46: 8.71 | BE46: 5.97 | BF46: 2.43 | BG46: 1.58 | BH46: 0.58 | BI46: 1963 | BJ46: $3,431 | BK46: $4,391 | BL46: $8,508 | BM46: $11,160 | BN46: $19,817 | BO46: $24,920 | BP46: $43,704
A47: 1964 | B47: 29.45 | C47: 18.95 | D47: 6.84 | E47: 4.37 | F47: 1.52 | G47: 0.96 | H47: 0.34 | J47: 23.23 | K47: 22.16 | M47: 2.73 | N47: 2.89 | P47: 10.50 | Q47: 12.11 | S47: 0.44 | T47: 0.37 | U47: 0.24 | V47: 0.20 | W47: 0.17 | X47: 0.17 | Y47: 0.15 | Z47: 1.63 | AA47: 5.21 | AC47: 1943 | AD47: $540 | AQ47: 1954 | AY47: 8.06 | AZ47: 5.48 | BA47: 2.19 | BB47: 25.77 | BC47: 18.10 | BD47: 8.06 | BE47: 5.48 | BF47: 2.19 | BG47: 1.42 | BH47: 0.52 | BI47: 1964 | BJ47: $3,655 | BK47: $4,618 | BL47: $8,495 | BM47: $10,962 | BN47: $19,215 | BO47: $23,662 | BP47: $42,291
A48: 1965 | B48: 29.22 | C48: 18.68 | D48: 6.69 | E48: 4.27 | F48: 1.46 | G48: 0.92 | H48: 0.31 | J48: 22.90 | K48: 21.78 | M48: 2.78 | N48: 2.96 | P48: 10.54 | Q48: 11.99 | S48: 0.47 | T48: 0.40 | U48: 0.26 | V48: 0.22 | W48: 0.19 | X48: 0.19 | Y48: 0.17 | Z48: 1.73 | AA48: 4.96 | AC48: 1944 | AD48: $582 | AQ48: 1955 | AY48: 7.54 | AZ48: 5.10 | BA48: 2.01 | BB48: 25.53 | BC48: 17.49 | BD48: 7.54 | BE48: 5.10 | BF48: 2.01 | BG48: 1.29 | BH48: 0.48 | BI48: 1965 | BJ48: $3,792 | BK48: $4,795 | BL48: $8,596 | BM48: $11,168 | BN48: $19,573 | BO48: $23,907 | BP48: $41,303
A49: 1966 | B49: 28.51 | C49: 18.19 | D49: 6.47 | E49: 4.12 | F49: 1.41 | G49: 0.89 | H49: 0.31 | J49: 22.71 | K49: 21.82 | M49: 2.81 | N49: 2.95 | P49: 10.32 | Q49: 11.71 | S49: 0.62 | T49: 0.52 | U49: 0.33 | V49: 0.28 | W49: 0.22 | X49: 0.21 | Y49: 0.17 | Z49: 2.11 | AA49: 4.36 | AC49: 1945 | AD49: $570 | AQ49: 1956 | AY49: 7.91 | AZ49: 5.42 | BA49: 2.16 | BB49: 25.69 | BC49: 17.84 | BD49: 7.91 | BE49: 5.42 | BF49: 2.16 | BG49: 1.39 | BH49: 0.51 | BI49: 1966 | BJ49: $4,055 | BK49: $5,124 | BL49: $9,141 | BM49: $11,839 | BN49: $20,606 | BO49: $25,717 | BP49: $43,465
A50: 1967 | B50: 28.66 | C50: 18.29 | D50: 6.58 | E50: 4.23 | F50: 1.51 | G50: 0.98 | H50: 0.38 | J50: 22.96 | K50: 22.92 | M50: 2.77 | N50: 2.78 | P50: 10.38 | Q50: 11.70 | S50: 0.66 | T50: 0.57 | U50: 0.36 | V50: 0.30 | W50: 0.22 | X50: 0.19 | Y50: 0.13 | Z50: 2.39 | AA50: 4.19 | AC50: 1946 | AD50: $570 | AQ50: 1957 | AY50: 7.04 | AZ50: 4.75 | BA50: 1.84 | BB50: =B40 -> 23.99 | BC50: 16.33 | BD50: 7.04 | BE50: 4.75 | BF50: 1.84 | BG50: 1.19 | BH50: 0.43 | BI50: 1967 | BJ50: $4,213 | BK50: $5,298 | BL50: $9,385 | BM50: $12,228 | BN50: $21,574 | BO50: $27,500 | BP50: $49,014
A51: 1968 | B51: 28.36 | C51: 17.99 | D51: 6.38 | E51: 4.06 | F51: 1.40 | G51: 0.89 | H51: 0.32 | J51: 22.50 | K51: 21.95 | M51: 2.84 | N51: 2.93 | P51: 10.37 | Q51: 11.61 | S51: 0.65 | T51: 0.55 | U51: 0.35 | V51: 0.30 | W51: 0.23 | X51: 0.21 | Y51: 0.16 | Z51: 2.23 | AA51: 4.15 | AC51: 1947 | AD51: $610 | AF51: $5,188 | AG51: $3,000 | AJ51: =IF(AF51>0,AF51/AD51,"") -> 8.504918033 | AK51: =AG51/AD51 -> 4.918032787 | AQ51: 1958 | AY51: 7.44 | AZ51: 4.86 | BA51: 1.76 | BB51: 29.77 | BC51: 19.41 | BD51: 7.44 | BE51: 4.86 | BF51: 1.76 | BG51: 1.14 | BH51: 0.41 | BI51: 1968 | BJ51: $4,584 | BK51: $5,777 | BL51: $10,139 | BM51: $13,083 | BN51: $22,580 | BO51: $28,732 | BP51: $49,058
A52: 1969 | B52: 27.85 | C52: 17.61 | D52: 6.25 | E52: 4.00 | F52: 1.42 | G52: 0.92 | H52: 0.36 | J52: 22.43 | K52: 22.72 | M52: 2.85 | N52: 2.81 | P52: 10.24 | Q52: 11.36 | S52: 0.69 | T52: 0.61 | U52: 0.40 | V52: 0.33 | W52: 0.24 | X52: 0.20 | Y52: 0.13 | Z52: 2.50 | AA52: 3.74 | AC52: 1948 | AD52: $698 | AQ52: 1959 | AY52: 7.39 | AZ52: 4.82 | BA52: 1.75 | BB52: 29.85 | BC52: 19.44 | BD52: 7.39 | BE52: 4.82 | BF52: 1.75 | BG52: 1.12 | BH52: 0.41 | BI52: 1969 | BJ52: $4,916 | BK52: $6,139 | BL52: $10,591 | BM52: $13,727 | BN52: $23,333 | BO52: $29,971 | BP52: $52,841
A53: 1970 | B53: 27.65 | C53: 17.30 | D53: 5.92 | E53: 3.74 | F53: 1.26 | G53: 0.79 | H53: 0.27 | J53: 21.39 | K53: 21.32 | M53: 3.03 | N53: 3.04 | P53: 10.35 | Q53: 11.38 | S53: 0.73 | T53: 0.66 | U53: 0.47 | V53: 0.38 | W53: 0.27 | X53: 0.24 | Y53: 0.19 | Z53: 2.76 | AA53: 3.16 | AC53: 1949 | AD53: $791 | AF53: $6,204 | AJ53: =IF(AF53>0,AF53/AD53,"") -> 7.84323641 | AQ53: 1960 | AY53: 7.09 | AZ53: 4.58 | BA53: 1.62 | BB53: 29.60 | BC53: 19.14 | BD53: 7.09 | BE53: 4.58 | BF53: 1.62 | BG53: 1.04 | BH53: 0.37 | BI53: 1970 | BJ53: $5,383 | BK53: $6,721 | BL53: $11,272 | BM53: $14,523 | BN53: $24,151 | BO53: $30,594 | BP53: $51,084
A54: 1971 | B54: 28.24 | C54: 17.59 | D54: 5.92 | E54: 3.70 | F54: 1.25 | G54: 0.78 | H54: 0.27 | J54: 20.97 | K54: 21.03 | M54: 3.11 | N54: 3.10 | P54: 10.65 | Q54: 11.67 | S54: 0.75 | T54: 0.68 | U54: 0.49 | V54: 0.40 | W54: 0.27 | X54: 0.24 | Y54: 0.19 | Z54: 2.90 | AA54: 3.02 | AC54: 1950 | AD54: $873 | AE54: $9,000 | AI54: =IF(AE54>0,AE54/AD54,"") -> 10.30927835 | AQ54: 1961 | AY54: 7.10 | AZ54: 4.58 | BA54: 1.65 | BB54: 29.71 | BC54: 19.20 | BD54: 7.10 | BE54: 4.58 | BF54: 1.65 | BG54: 1.06 | BH54: 0.40 | BI54: 1971 | BJ54: $5,909 | BK54: $7,387 | BL54: $11,936 | BM54: $15,483 | BN54: $26,013 | BO54: $32,459 | BP54: $54,269
A55: 1972 | B55: 27.80 | C55: 17.50 | D55: 6.06 | E55: 3.81 | F55: 1.29 | G55: 0.81 | H55: 0.28 | J55: 21.81 | K55: 21.23 | M55: 2.95 | N55: 3.06 | P55: 10.30 | Q55: 11.44 | S55: 0.69 | T55: 0.60 | U55: 0.39 | V55: 0.32 | W55: 0.21 | X55: 0.19 | Y55: 0.16 | Z55: 2.36 | AA55: 3.71 | AC55: 1951 | AD55: $1,053 | AF55: $6,612 | AJ55: =IF(AF55>0,AF55/AD55,"") -> 6.279202279 | AQ55: 1962 | AY55: 7.23 | AZ55: 4.64 | BA55: 1.64 | BB55: 30.22 | BC55: 19.62 | BD55: 7.23 | BE55: 4.64 | BF55: 1.64 | BG55: 1.04 | BH55: 0.38 | BI55: 1972 | BJ55: $6,419 | BK55: $8,054 | BL55: $14,027 | BM55: $17,636 | BN55: $30,036 | BO55: $36,215 | BP55: $61,314
A56: 1973 | B56: 26.74 | C56: 16.73 | D56: 5.67 | E56: 3.54 | F56: 1.17 | G56: 0.73 | H56: 0.24 | J56: 21.21 | K56: 20.61 | M56: 3.06 | N56: 3.18 | P56: 10.01 | Q56: 11.06 | S56: 0.69 | T56: 0.60 | U56: 0.39 | V56: 0.32 | W56: 0.23 | X56: 0.21 | Y56: 0.19 | Z56: 2.21 | AA56: 3.46 | AC56: 1952 | AD56: $1,301 | AG56: $3,500 | AK56: =AG56/AD56 -> 2.690238278 | AQ56: 1963 | AY56: 7.36 | AZ56: 4.72 | BA56: 1.65 | BB56: 30.35 | BC56: 19.84 | BD56: 7.36 | BE56: 4.72 | BF56: 1.65 | BG56: 1.05 | BH56: 0.37 | BI56: 1973 | BJ56: $7,667 | BK56: $9,553 | BL56: $16,290 | BM56: $20,599 | BN56: $34,337 | BO56: $43,367 | BP56: $64,529
A57: 1974 | B57: 25.87 | C57: 15.87 | D57: 5.22 | E57: 3.24 | F57: 1.06 | G57: 0.65 | H57: 0.21 | J57: 20.18 | K57: 20.33 | M57: 3.28 | N57: 3.24 | P57: 10.00 | Q57: 10.65 | S57: 0.74 | T57: 0.65 | U57: 0.42 | V57: 0.35 | W57: 0.25 | X57: 0.22 | Y57: 0.20 | Z57: 2.18 | AA57: 3.04 | AC57: 1953 | AD57: $1,420 | AQ57: 1964 | AY57: 6.84 | AZ57: 4.37 | BA57: 1.52 | BB57: 29.45 | BC57: 18.95 | BD57: 6.84 | BE57: 4.37 | BF57: 1.52 | BG57: 0.96 | BH57: 0.34 | BI57: 1974 | BJ57: $9,369 | BK57: $11,463 | BL57: $18,393 | BM57: $22,808 | BN57: $36,725 | BO57: $47,911 | BP57: $77,882
A58: 1975 | B58: 25.54 | C58: 15.65 | D58: 5.13 | E58: 3.22 | F58: 1.10 | G58: 0.68 | H58: 0.23 | J58: 20.10 | K58: 21.38 | M58: 3.30 | N58: 3.03 | P58: 9.89 | Q58: 10.52 | AC58: 1954 | AD58: $1,485 | AF58: $9,500 | AJ58: =IF(AF58>0,AF58/AD58,"") -> 6.397306397 | AQ58: 1965 | AY58: 6.69 | AZ58: 4.27 | BA58: 1.46 | BB58: 29.22 | BC58: 18.68 | BD58: 6.69 | BE58: 4.27 | BF58: 1.46 | BG58: 0.92 | BH58: 0.31 | BI58: 1975 | BJ58: $10,561 | BK58: $12,974 | BL58: $20,478 | BM58: $25,490 | BN58: $44,039 | BO58: $55,407 | BP58: $94,167
A59: 1976 | B59: 25.20 | C59: 15.35 | D59: 4.99 | E59: 3.11 | F59: 1.05 | G59: 0.65 | H59: 0.21 | J59: 19.79 | K59: 20.99 | M59: 3.37 | N59: 3.11 | P59: 9.84 | Q59: 10.37 | S59: 0.75 | T59: 0.69 | U59: 0.51 | V59: 0.42 | W59: 0.28 | X59: 0.25 | Z59: =D59*U59 -> 2.55 | AA59: =D59*(1-U59) -> 2.44 | AC59: 1955 | AD59: $1,579 | AE59: $13,000 | AG59: $3,500 | AI59: =IF(AE59>0,AE59/AD59,"") -> 8.233058898 | AK59: =AG59/AD59 -> 2.21659278 | AQ59: 1966 | AY59: 6.47 | AZ59: 4.12 | BA59: 1.41 | BB59: 28.51 | BC59: 18.19 | BD59: 6.47 | BE59: 4.12 | BF59: 1.41 | BG59: 0.89 | BH59: 0.31 | BI59: 1976 | BJ59: $11,945 | BK59: $14,588 | BL59: $22,488 | BM59: $28,060 | BN59: $48,127 | BO59: $59,333 | BP59: $99,140
A60: 1977 | B60: 25.15 | C60: 15.25 | D60: 4.92 | E60: 3.08 | F60: 1.06 | G60: 0.67 | J60: 19.58 | K60: 21.53 | M60: 3.43 | N60: 3.00 | P60: 9.90 | Q60: 10.32 | AC60: 1956 | AD60: $1,675 | AG60: $4,700 | AK60: =AG60/AD60 -> 2.805970149 | AQ60: 1967 | AY60: 6.58 | AZ60: 4.23 | BA60: 1.51 | BB60: 28.66 | BC60: 18.29 | BD60: 6.58 | BE60: 4.23 | BF60: 1.51 | BG60: 0.98 | BH60: 0.38 | BI60: 1977 | BJ60: $13,007 | BK60: $15,855 | BL60: $23,684 | BM60: $29,818 | BN60: $49,460 | BO60: $62,277
A61: 1978 | B61: 25.01 | C61: 15.14 | D61: 4.87 | E61: 3.02 | F61: 1.03 | G61: 0.65 | J61: 19.48 | K61: 21.10 | M61: 3.45 | N61: 3.08 | P61: 9.87 | Q61: 10.27 | AC61: 1957 | AD61: $1,744 | AQ61: 1968 | AY61: 6.38 | AZ61: 4.06 | BA61: 1.40 | BB61: 28.36 | BC61: 17.99 | BD61: 6.38 | BE61: 4.06 | BF61: 1.40 | BG61: 0.89 | BH61: 0.32 | BI61: 1978 | BJ61: $13,954 | BK61: $17,336 | BL61: $25,915 | BM61: $31,953 | BN61: $53,502 | BO61: $64,566
A62: 1979 | B62: 25.17 | C62: 15.20 | D62: 4.83 | E62: 2.97 | F62: 1.02 | G62: 0.65 | J62: 19.18 | K62: 21.04 | M62: 3.54 | N62: 3.10 | P62: 9.97 | Q62: 10.37 | S62: 0.77 | T62: 0.71 | U62: 0.50 | V62: 0.42 | W62: 0.28 | X62: 0.25 | Z62: =D62*U62 -> 2.40 | AA62: =D62*(1-U62) -> 2.42 | AC62: 1958 | AD62: $1,801 | AQ62: 1969 | AY62: 6.25 | AZ62: 4.00 | BA62: 1.42 | BB62: 27.85 | BC62: 17.61 | BD62: 6.25 | BE62: 4.00 | BF62: 1.42 | BG62: 0.92 | BH62: 0.36 | BI62: 1979 | BJ62: $15,821 | BK62: $18,929 | BL62: $29,306 | BM62: $34,522 | BN62: $57,108 | BO62: $69,924
A63: 1980 | B63: 25.39 | C63: 15.31 | D63: 4.79 | E63: 2.95 | F63: 1.02 | G63: 0.66 | J63: 18.86 | K63: 21.27 | M63: 3.63 | N63: 3.05 | P63: 10.08 | Q63: 10.52 | S63: 0.80 | T63: 0.73 | U63: 0.53 | V63: 0.46 | W63: 0.31 | X63: 0.26 | Z63: 2.56 | AA63: 2.23 | AC63: 1959 | AD63: $1,854 | AF63: $11,050 | AG63: $5,500 | AJ63: =IF(AF63>0,AF63/AD63,"") -> 5.9600863 | AK63: =AG63/AD63 -> 2.966558792 | AQ63: 1970 | AY63: 5.92 | AZ63: 3.74 | BA63: 1.26 | BB63: 27.65 | BC63: 17.30 | BD63: 5.92 | BE63: 3.74 | BF63: 1.26 | BG63: 0.79 | BH63: 0.27 | BI63: 1980 | BJ63: $17,891 | BK63: $21,574 | BL63: $33,266 | BM63: $38,789 | BN63: $61,878 | BO63: $81,768
A64: 1981 | B64: 25.31 | C64: 15.15 | D64: 4.61 | E64: 2.83 | F64: 0.96 | G64: 0.62 | J64: 18.23 | K64: 20.91 | M64: 3.83 | N64: 3.12 | P64: 10.16 | Q64: 10.54 | S64: 0.82 | T64: 0.77 | U64: 0.58 | V64: 0.52 | W64: 0.36 | X64: 0.29 | Z64: 2.70 | AA64: 1.92 | AC64: 1960 | AD64: $1,992 | AE64: $17,000 | AI64: =IF(AE64>0,AE64/AD64,"") -> 8.534136546 | AQ64: 1971 | AY64: 5.92 | AZ64: 3.70 | BA64: 1.25 | BB64: 28.24 | BC64: 17.59 | BD64: 5.92 | BE64: 3.70 | BF64: 1.25 | BG64: 0.78 | BH64: 0.27 | BI64: 1981 | BJ64: $19,997 | BK64: $23,904 | BL64: $35,376 | BM64: $42,019 | BN64: $64,178 | BO64: $88,116
A65: 1982 | B65: 25.82 | C65: 15.44 | D65: 4.67 | E65: 2.87 | F65: 1.00 | G65: 0.63 | J65: 18.08 | K65: 21.32 | M65: 3.89 | N65: 3.04 | P65: 10.38 | Q65: 10.77 | S65: 0.85 | T65: 0.80 | U65: 0.65 | V65: 0.57 | W65: 0.40 | X65: 0.32 | Z65: 3.02 | AA65: 1.65 | AC65: 1961 | AD65: $2,073 | AQ65: 1972 | AY65: 6.06 | AZ65: 3.81 | BA65: 1.29 | BB65: 27.80 | BC65: 17.50 | BD65: 6.06 | BE65: 3.81 | BF65: 1.29 | BG65: 0.81 | BH65: 0.28 | BI65: 1982 | BJ65: $21,835 | BK65: $26,326 | BL65: $39,025 | BM65: $46,723 | BN65: $74,755 | BO65: $94,770
A66: 1983 | B66: 25.32 | C66: 15.16 | D66: 4.68 | E66: 2.89 | F66: 1.02 | G66: 0.66 | J66: 18.49 | K66: 21.82 | M66: 3.75 | N66: 2.95 | P66: 10.16 | Q66: 10.48 | S66: 0.83 | T66: 0.78 | U66: 0.62 | V66: 0.54 | W66: 0.38 | X66: 0.29 | Z66: 2.92 | AA66: 1.76 | AC66: 1962 | AD66: $2,114 | AQ66: 1973 | AY66: 5.67 | AZ66: 3.54 | BA66: 1.17 | BB66: 26.74 | BC66: 16.73 | BD66: 5.67 | BE66: 3.54 | BF66: 1.17 | BG66: 0.73 | BH66: 0.24 | BI66: 1983 | BJ66: $23,739 | BK66: $27,946 | BL66: $39,934 | BM66: $48,856 | BN66: $84,486 | BO66: $99,304
A67: 1984 | B67: 25.50 | C67: 15.25 | D67: 4.75 | E67: 2.96 | F67: 1.03 | J67: 18.64 | K67: 21.61 | M67: 3.70 | N67: 2.99 | P67: 10.25 | Q67: 10.50 | S67: 0.83 | T67: 0.79 | U67: 0.65 | V67: 0.57 | W67: 0.41 | Z67: 3.07 | AA67: 1.69 | AC67: 1963 | AD67: $2,170 | AF67: $12,826 | AJ67: =IF(AF67>0,AF67/AD67,"") -> 5.910599078 | AQ67: 1974 | AY67: 5.22 | AZ67: 3.24 | BA67: 1.06 | BB67: 25.87 | BC67: 15.87 | BD67: 5.22 | BE67: 3.24 | BF67: 1.06 | BG67: 0.65 | BH67: 0.21 | BI67: 1984 | BJ67: $25,841 | BK67: $29,992 | BL67: $45,612 | BM67: $51,966 | BN67: $91,566
A68: 1985 | B68: 25.93 | C68: 15.63 | D68: 5.02 | E68: 3.19 | F68: 1.14 | G68: 0.75 | H68: 0.35 | J68: 19.35 | K68: 22.76 | M68: 3.49 | N68: 2.80 | P68: 10.30 | Q68: 10.61 | S68: 0.82 | T68: 0.77 | U68: 0.62 | V68: 0.56 | W68: 0.39 | X68: 0.36 | Y68: 0.23 | Z68: 3.10 | AA68: 1.92 | AC68: 1964 | AD68: $2,265 | AF68: $12,930 | AG68: $7,000 | AJ68: 5.708609272 | AK68: =AG68/AD68 -> 3.090507726 | AQ68: 1975 | AY68: 5.13 | AZ68: 3.22 | BA68: 1.10 | BB68: 25.54 | BC68: 15.65 | BD68: 5.13 | BE68: 3.22 | BF68: 1.10 | BG68: 0.68 | BH68: 0.23 | BI68: 1985 | BJ68: $27,939 | BK68: $33,743 | BL68: $48,747 | BM68: $60,074 | BN68: $100,038 | BO68: $127,693 | BP68: $265,192
A69: 1986 | B69: 26.61 | C69: 16.17 | D69: 5.39 | E69: 3.48 | F69: 1.29 | G69: 0.85 | H69: 0.36 | J69: 20.27 | K69: =100*(F69/D69) -> 23.84 | M69: 3.26 | N69: 2.65 | P69: 10.43 | Q69: 10.78 | S69: 0.79 | T69: 0.74 | U69: 0.59 | V69: 0.54 | W69: 0.40 | X69: 0.37 | Y69: 0.26 | Z69: 3.20 | AA69: 2.19 | AC69: 1965 | AD69: $2,435 | AE69: $21,000 | AF69: $13,124 | AI69: =IF(AE69>0,AE69/AD69,"") -> 8.624229979 | AJ69: 5.38973306 | AQ69: 1976 | AY69: 4.99 | AZ69: 3.11 | BA69: 1.05 | BB69: 25.20 | BC69: 15.35 | BD69: 4.99 | BE69: 3.11 | BF69: 1.05 | BG69: 0.65 | BH69: 0.21 | BI69: 1986 | BJ69: $29,828 | BK69: $34,835 | BL69: $53,781 | BM69: $64,199 | BN69: $122,332 | BO69: $145,415 | BP69: $375,720
A70: 1987 | B70: 28.66 | C70: 17.94 | D70: 6.67 | E70: 4.53 | F70: 1.89 | G70: 1.41 | H70: 0.60 | J70: 23.27 | K70: =100*(F70/D70) -> 28.37 | M70: 2.73 | N70: =1/(1-LOG(F70/D70)/LOG(0.1)) -> 2.21 | P70: 10.71 | Q70: 11.28 | S70: 0.76 | T70: 0.69 | U70: 0.51 | V70: 0.44 | W70: 0.31 | X70: 0.26 | Y70: 0.14 | Z70: 3.43 | AA70: 3.24 | AC70: 1966 | AD70: $2,523 | AF70: $13,229 | AJ70: 5.243361078 | AQ70: 1977 | AY70: 4.92 | AZ70: 3.08 | BA70: 1.06 | BB70: 25.15 | BC70: 15.25 | BD70: 4.92 | BE70: 3.08 | BF70: 1.06 | BG70: 0.67 | BI70: 1987 | BJ70: $32,313 | BK70: $38,940 | BL70: $62,311 | BM70: $84,945 | BN70: $150,529 | BO70: $180,612 | BP70: $484,957
A71: 1988 | B71: 30.28 | C71: 19.84 | D71: 8.41 | E71: 6.04 | F71: 2.99 | G71: 2.13 | H71: 0.98 | J71: =100*(D71/B71) -> 27.78 | K71: =100*(F71/D71) -> 35.53 | M71: 2.25 | N71: 1.82 | P71: 10.44 | Q71: 11.43 | S71: 0.70 | T71: 0.61 | U71: 0.39 | V71: 0.29 | W71: 0.17 | X71: 0.12 | Y71: 0.06 | Z71: 3.24 | AA71: 5.17 | AC71: 1967 | AD71: $2,684 | AF71: $14,657 | AJ71: 5.460879285 | AQ71: 1978 | AY71: 4.87 | AZ71: 3.02 | BA71: 1.03 | BB71: 25.01 | BC71: 15.14 | BD71: 4.87 | BE71: 3.02 | BF71: 1.03 | BG71: 0.65 | BI71: 1988 | BJ71: $34,373 | BK71: $41,802 | BL71: $72,816 | BM71: $97,860 | BN71: $217,638 | BO71: $402,891 | BP71: $826,784
A72: 1989 | B72: 27.64 | C72: 17.46 | D72: 6.43 | E72: 4.29 | F72: 1.79 | G72: 1.31 | H72: 0.51 | J72: =100*(D72/B72) -> 23.27 | K72: =100*(F72/D72) -> 27.81 | M72: 2.73 | N72: 2.25 | P72: 10.18 | Q72: 11.03 | S72: 0.75 | T72: 0.69 | U72: 0.52 | V72: 0.45 | W72: 0.36 | X72: 0.30 | Y72: 0.18 | Z72: 3.33 | AA72: 3.11 | AC72: 1968 | AD72: $2,838 | AF72: $14,728 | AG72: $9,500 | AJ72: 5.18957012 | AK72: =AG72/AD72 -> 3.347427766 | AQ72: 1979 | AY72: 4.83 | AZ72: 2.97 | BA72: 1.02 | BB72: 25.17 | BC72: 15.20 | BD72: 4.83 | BE72: 2.97 | BF72: 1.02 | BG72: 0.65 | BI72: 1989 | BJ72: $35,701 | BK72: $45,796 | BL72: $75,947 | BM72: $98,192 | BN72: $155,708 | BO72: $285,009 | BP72: $497,566
A73: 1990 | B73: 27.66 | C73: 17.37 | D73: 6.34 | E73: 4.24 | F73: 1.79 | G73: 1.33 | H73: 0.55 | J73: =100*(D73/B73) -> 22.91 | K73: =100*(F73/D73) -> 28.19 | M73: 2.78 | N73: 2.22 | P73: 10.30 | Q73: 11.03 | S73: 0.79 | T73: 0.74 | U73: 0.56 | V73: 0.48 | W73: 0.36 | X73: 0.29 | Y73: 0.15 | Z73: 3.54 | AA73: 2.80 | AC73: 1969 | AD73: $3,151 | AF73: $17,378 | AJ73: 5.515074579 | AQ73: 1980 | AY73: 4.79 | AZ73: 2.95 | BA73: 1.02 | BB73: 25.39 | BC73: 15.31 | BD73: 4.79 | BE73: 2.95 | BF73: 1.02 | BG73: 0.66 | BI73: 1990 | BJ73: $37,891 | BK73: $46,505 | BL73: $75,961 | BM73: $98,159 | BN73: $154,996 | BO73: $274,949 | BP73: $496,545
A74: 1991 | B74: 28.22 | C74: 17.70 | D74: 6.41 | E74: 4.28 | F74: 1.81 | G74: 1.35 | H74: 0.57 | J74: =100*(D74/B74) -> 22.72 | K74: =100*(F74/D74) -> 28.26 | M74: 2.81 | N74: 2.22 | P74: 10.53 | Q74: 11.28 | S74: 0.82 | T74: 0.77 | U74: 0.61 | V74: 0.53 | W74: 0.41 | X74: 0.33 | Y74: 0.19 | Z74: 3.89 | AA74: 2.52 | AC74: 1970 | AD74: $3,397 | AE74: $27,000 | AF74: $17,899 | AG74: $9,500 | AI74: =IF(AE74>0,AE74/AD74,"") -> 7.948189579 | AJ74: 5.269060936 | AK74: =AG74/AD74 -> 2.796585222 | AQ74: 1981 | AY74: 4.61 | AZ74: 2.83 | BA74: 0.96 | BB74: 25.31 | BC74: 15.15 | BD74: 4.61 | BE74: 2.83 | BF74: 0.96 | BG74: 0.62 | BI74: 1991 | BJ74: $38,997 | BK74: $47,311 | BL74: $77,475 | BM74: $98,494 | BN74: $155,263 | BO74: $278,564 | BP74: $495,231
A75: 1992 | B75: 28.52 | C75: 17.95 | D75: 6.55 | E75: 4.38 | F75: 1.87 | G75: 1.37 | H75: 0.57 | J75: 22.96 | K75: 28.54 | M75: 2.77 | N75: 2.20 | P75: 10.56 | Q75: 11.41 | S75: 0.82 | T75: 0.78 | U75: 0.61 | V75: 0.54 | W75: 0.41 | X75: 0.33 | Y75: 0.18 | Z75: 4.02 | AA75: 2.53 | AC75: 1971 | AD75: $3,749 | AF75: $18,973 | AJ75: 5.060816218 | AQ75: 1982 | AY75: 4.67 | AZ75: 2.87 | BA75: 1.00 | BB75: 25.82 | BC75: 15.44 | BD75: 4.67 | BE75: 2.87 | BF75: 1.00 | BG75: 0.63 | BI75: 1992 | BJ75: $39,140 | BK75: $48,101 | BL75: $78,660 | BM75: $99,637 | BN75: $156,365 | BO75: $307,040 | BP75: $507,485
A76: 1993 | B76: 29.40 | C76: 18.66 | D76: 6.96 | E76: 4.69 | F76: 2.08 | G76: 1.46 | H76: 0.61 | J76: 23.66 | K76: 29.89 | M76: 2.67 | N76: 2.10 | P76: 10.74 | Q76: 11.71 | S76: 0.79 | T76: 0.76 | AC76: 1972 | AD76: $4,102 | AF76: $22,012 | AJ76: 5.366162847 | AQ76: 1983 | AY76: 4.68 | AZ76: 2.89 | BA76: 1.02 | BB76: 25.32 | BC76: 15.16 | BD76: 4.68 | BE76: 2.89 | BF76: 1.02 | BG76: 0.66 | BI76: 1993 | BJ76: $39,744 | BK76: $49,328 | BL76: $84,713 | BM76: $109,230 | BN76: $161,840 | BO76: $356,617 | BP76: $594,993
A77: 1994 | B77: 29.42 | C77: 18.87 | D77: 7.13 | E77: 5.10 | F77: 2.56 | G77: 1.65 | H77: 0.71 | J77: 24.23 | K77: 35.85 | M77: 2.60 | N77: 1.80 | P77: 10.55 | Q77: 11.74 | S77: 0.78 | T77: 0.75 | U77: 0.75 | V77: 0.77 | W77: 0.42 | X77: 0.30 | Y77: 0.16 | Z77: =D77*U77 -> 5.38 | AA77: =D77*(1-U77) -> 1.75 | AC77: 1973 | AD77: $4,564 | AF77: $22,582 | AG77: $14,500 | AJ77: 4.947852761 | AK77: =AG77/AD77 -> 3.177037686 | AQ77: 1984 | AY77: 4.75 | AZ77: 2.96 | BA77: 1.03 | BB77: 25.50 | BC77: 15.25 | BD77: 4.75 | BE77: 2.96 | BF77: 1.03 | BI77: 1994 | BJ77: $42,441 | BK77: $52,289 | BL77: $85,277 | BM77: $92,104 | BN77: $350,573 | BO77: $441,347 | BP77: $809,994
A78: 1995 | B78: 29.13 | C78: 18.76 | D78: 7.23 | E78: 4.95 | F78: 2.14 | G78: 1.52 | H78: 0.73 | J78: 24.81 | K78: 29.59 | M78: 2.53 | N78: 2.12 | P78: 10.37 | Q78: 11.54 | S78: 0.77 | T78: 0.72 | U78: 0.55 | V78: 0.48 | W78: 0.26 | X78: 0.22 | Y78: 0.16 | Z78: 3.95 | AA78: 3.28 | AC78: 1974 | AD78: $5,454 | AF78: $26,880 | AJ78: 4.928492849 | AQ78: 1985 | AY78: 5.02 | AZ78: 3.19 | BA78: 1.14 | BB78: 25.93 | BC78: 15.63 | BD78: 5.02 | BE78: 3.19 | BF78: 1.14 | BG78: 0.75 | BH78: 0.35 | BI78: 1995 | BJ78: $44,286 | BK78: $56,370 | BL78: $95,952 | BM78: $125,181 | BN78: $257,031 | BO78: $354,860 | BP78: $742,386
A79: 1996 | B79: 29.16 | C79: 18.77 | D79: 7.24 | E79: 4.93 | F79: 2.07 | G79: 1.44 | H79: 0.65 | J79: 24.82 | K79: 28.63 | M79: 2.53 | N79: 2.19 | P79: 10.39 | Q79: 11.54 | S79: 0.78 | T79: 0.71 | U79: 0.59 | V79: 0.48 | W79: 0.29 | X79: 0.27 | Y79: 0.22 | Z79: 4.27 | AA79: 2.97 | AC79: 1975 | AD79: $6,925 | AE79: $43,500 | AF79: $29,550 | AG79: $20,000 | AI79: =IF(AE79>0,AE79/AD79,"") -> 6.281588448 | AJ79: 4.267148014 | AK79: =AG79/AD79 -> 2.888086643 | AQ79: 1986 | AY79: 5.39 | AZ79: 3.48 | BA79: 1.29 | BB79: 26.61 | BC79: 16.17 | BD79: 5.39 | BE79: 3.48 | BF79: 1.29 | BG79: 0.85 | BH79: 0.36 | BI79: 1996 | BJ79: $44,772 | BK79: $57,605 | BL79: $99,125 | BM79: $130,992 | BN79: $269,238 | BO79: $371,855 | BP79: $748,591
A80: 1997 | B80: 30.41 | C80: 19.73 | D80: 7.81 | E80: 5.38 | F80: 2.32 | G80: 1.64 | H80: 0.75 | J80: 25.68 | K80: 29.72 | M80: 2.44 | N80: 2.11 | P80: 10.68 | Q80: 11.92 | S80: 0.79 | T80: 0.70 | U80: 0.57 | V80: 0.47 | W80: 0.29 | X80: 0.29 | Y80: 0.24 | Z80: 4.43 | AA80: 3.38 | AC80: 1976 | AD80: $7,979 | AF80: $33,713 | AG80: $21,250 | AJ80: 4.225216193 | AK80: 2.663241008 | AQ80: 1987 | AY80: 6.67 | AZ80: 4.53 | BA80: 1.89 | BB80: 28.66 | BC80: 17.94 | BD80: 6.67 | BE80: 4.53 | BF80: 1.89 | BG80: 1.41 | BH80: 0.60 | BI80: 1997 | BJ80: $49,134 | BK80: $58,967 | BL80: $102,899 | BM80: $138,687 | BN80: $288,284 | BO80: $394,414 | BP80: $868,110
A81: 1998 | B81: 30.11 | C81: 19.63 | D81: 7.84 | E81: 5.43 | F81: 2.37 | G81: 1.67 | H81: 0.76 | J81: 26.02 | K81: 30.22 | M81: 2.41 | N81: 2.08 | P81: 10.48 | Q81: 11.80 | S81: 0.79 | T81: 0.73 | U81: 0.59 | V81: 0.52 | W81: 0.34 | X81: 0.31 | Y81: 0.25 | Z81: 4.61 | AA81: 3.23 | AC81: 1977 | AD81: $9,061 | AF81: $35,474 | AG81: $24,369 | AJ81: 3.915020417 | AK81: 2.689438252 | AQ81: 1988 | AY81: 8.41 | AZ81: 6.04 | BA81: 2.99 | BB81: 30.28 | BC81: 19.84 | BD81: 8.41 | BE81: 6.04 | BF81: 2.99 | BG81: 2.13 | BH81: 0.98 | BI81: 1998 | BJ81: $49,533 | BK81: $59,807 | BL81: $108,707 | BM81: $147,572 | BN81: $298,099 | BO81: $433,300 | BP81: $932,802
A82: 1999 | B82: 31.48 | C82: 20.95 | D82: 8.84 | E82: 6.29 | F82: 3.04 | G82: 2.15 | J82: 28.09 | K82: 34.37 | M82: 2.23 | N82: 1.87 | P82: 10.53 | Q82: 12.11 | S82: 0.77 | T82: 0.67 | U82: 0.56 | V82: 0.49 | W82: 0.33 | X82: 0.29 | Z82: 4.97 | AA82: 3.87 | AC82: 1978 | AD82: $9,839 | AF82: $37,064 | AG82: $25,692 | AJ82: 3.767049497 | AK82: 2.61124098 | AQ82: 1989 | AY82: 6.43 | AZ82: 4.29 | BA82: 1.79 | BB82: =B72 -> 27.64 | BC82: 17.46 | BD82: 6.43 | BE82: 4.29 | BF82: 1.79 | BG82: 1.31 | BH82: 0.51 | BI82: 1999 | BJ82: $51,641 | BK82: $65,179 | BL82: $125,870 | BM82: $149,088 | BN82: $435,280 | BO82: $546,386
A83: 2000 | B83: 31.28 | C83: 20.98 | D83: 9.03 | E83: 6.44 | F83: 3.06 | G83: 2.24 | J83: 28.86 | K83: 33.92 | M83: 2.17 | N83: 1.89 | P83: 10.29 | Q83: 11.95 | S83: 0.76 | T83: 0.69 | U83: 0.53 | V83: 0.45 | W83: 0.32 | X83: 0.28 | Z83: 4.83 | AA83: 4.20 | AC83: 1979 | AD83: $10,575 | AF83: $40,298 | AG83: $27,575 | AJ83: 3.810685579 | AK83: 2.607565012 | AQ83: 1990 | AY83: 6.34 | AZ83: 4.24 | BA83: 1.79 | BB83: 27.66 | BC83: 17.37 | BD83: 6.34 | BE83: 4.24 | BF83: 1.79 | BG83: 1.33 | BH83: 0.55 | BI83: 2000 | BJ83: $54,367 | BK83: $67,912 | BL83: $128,638 | BM83: $180,363 | BN83: $417,403 | BO83: $576,047
A84: 2001 | B84: 30.61 | C84: 20.33 | D84: 8.31 | E84: 5.75 | F84: 2.51 | G84: 1.75 | J84: 27.14 | K84: 30.23 | M84: 2.31 | N84: 2.08 | P84: 10.28 | Q84: 12.02 | S84: 0.77 | T84: 0.71 | U84: 0.58 | V84: 0.50 | W84: 0.40 | X84: 0.34 | Z84: 4.82 | AA84: 3.49 | AC84: 1980 | AD84: $11,706 | AE84: $73,350 | AF84: $42,111 | AG84: $28,816 | AI84: =IF(AE84>0,AE84/AD84,"") -> 6.266017427 | AJ84: 3.597385956 | AK84: 2.461643602 | AQ84: 1991 | AY84: 6.41 | AZ84: 4.28 | BA84: 1.81 | BB84: 28.22 | BC84: 17.70 | BD84: 6.41 | BE84: 4.28 | BF84: 1.81 | BG84: 1.35 | BH84: 0.57 | BI84: 2001 | BJ84: $56,060 | BK84: $69,763 | BL84: $130,771 | BM84: $181,820 | BN84: $400,380 | BO84: $515,786
A85: 2002 | B85: 31.34 | C85: 20.90 | D85: 8.79 | E85: 6.11 | F85: 2.68 | G85: 1.87 | J85: 28.03 | K85: 30.46 | M85: 2.23 | N85: 2.07 | P85: =B85-C85 -> 10.44 | Q85: 12.11 | S85: 0.70 | T85: 0.63 | U85: 0.47 | V85: 0.40 | W85: 0.29 | X85: 0.26 | Z85: 4.11 | AA85: 4.68 | AC85: 1981 | AD85: $13,107 | AF85: $48,234 | AG85: $33,013 | AJ85: 3.680018311 | AK85: 2.518730449 | AQ85: 1992 | AY85: 6.55 | AZ85: 4.38 | BA85: 1.87 | BB85: 28.52 | BC85: 17.95 | BD85: 6.55 | BE85: 4.38 | BF85: 1.87 | BG85: 1.37 | BH85: 0.57 | BI85: 2002 | BJ85: $58,233 | BK85: $72,536 | BL85: $136,143 | BM85: $190,393 | BN85: $435,799 | BO85: $588,880
A86: 2003 | B86: 32.04 | C86: 21.49 | D86: 9.18 | E86: 6.46 | F86: 2.89 | G86: 2.05 | J86: 28.65 | K86: 31.53 | M86: 2.19 | N86: 2.01 | P86: 10.54 | Q86: 12.31 | S86: 0.68 | T86: 0.61 | U86: 0.42 | V86: 0.37 | W86: 0.26 | X86: 0.23 | Z86: 3.82 | AA86: 5.36 | AC86: 1982 | AD86: $14,879 | AF86: $60,250 | AG86: $36,000 | AJ86: 4.049331272 | AK86: 2.419517441 | AQ86: 1993 | AY86: 6.96 | AZ86: 4.69 | BA86: 2.08 | BB86: 29.40 | BC86: 18.66 | BD86: 6.96 | BE86: 4.69 | BF86: 2.08 | BG86: 1.46 | BH86: 0.61 | BI86: 2003 | BJ86: $59,833 | BK86: $78,261 | BL86: $148,366 | BM86: $200,638 | BN86: $469,589 | BO86: $657,014
A87: 2004 | B87: 30.08 | C87: 20.32 | D87: 8.89 | E87: 6.35 | F87: 2.93 | G87: 2.11 | J87: 29.55 | K87: 33.00 | M87: 2.13 | N87: 1.93 | P87: 9.76 | Q87: 11.43 | S87: 0.67 | T87: 0.60 | U87: 0.40 | V87: 0.36 | W87: 0.25 | X87: 0.22 | Z87: 3.59 | AA87: 5.30 | AC87: 1983 | AD87: $16,545 | AF87: $62,841 | AG87: $40,156 | AJ87: 3.798186763 | AK87: 2.427077667 | AQ87: 1994 | AY87: 7.13 | AZ87: 5.10 | BA87: 2.56 | BB87: 29.42 | BC87: 18.87 | BD87: 7.13 | BE87: 5.10 | BF87: 2.56 | BG87: 1.65 | BH87: 0.71 | BI87: 2004 | BJ87: $62,599 | BK87: $82,206 | BL87: $160,084 | BM87: $220,237 | BN87: $497,186 | BO87: $745,001
A88: 2005 | B88: 30.54 | C88: 20.72 | D88: 9.12 | E88: 6.52 | F88: 3.05 | G88: 2.19 | J88: 29.85 | K88: 33.47 | M88: 2.11 | N88: 1.91 | P88: 9.83 | Q88: 11.60 | S88: 0.65 | T88: 0.58 | U88: 0.40 | V88: 0.35 | W88: 0.24 | X88: 0.22 | Z88: 3.69 | AA88: 5.43 | AC88: 1984 | AD88: $17,217 | AF88: $65,417 | AG88: $41,802 | AJ88: 3.799514439 | AK88: 2.427920916 | AM88: 7.3 | AN88: 646.5 | AO88: =(AM88/AN88)*100 -> 1.13 | AQ88: 1995 | AY88: 7.23 | AZ88: 4.95 | BA88: 2.14 | BB88: 29.13 | BC88: 18.76 | BD88: 7.23 | BE88: 4.95 | BF88: 2.14 | BG88: 1.52 | BH88: 0.73 | BI88: 2005 | BJ88: $65,088 | BK88: $86,899 | BL88: $173,444 | BM88: $245,104 | BN88: $548,880 | BO88: $827,719
A89: 2006 | B89: 31.81 | C89: 21.91 | D89: 10.06 | E89: 7.38 | F89: 3.65 | G89: 2.66 | J89: 31.62 | K89: 36.33 | M89: 2.00 | N89: 1.78 | P89: 9.91 | Q89: 11.85 | S89: 0.62 | T89: 0.54 | U89: 0.37 | V89: 0.31 | W89: 0.23 | X89: 0.21 | Z89: 3.72 | AA89: 6.34 | AC89: 1985 | AD89: $18,039 | AE89: $110,246 | AF89: $67,118 | AG89: $42,889 | AI89: =IF(AE89>0,AE89/AD89,"") -> 6.111603876 | AJ89: 3.720757478 | AK89: 2.377597179 | AM89: 10.5 | AN89: 716.4 | AO89: 1.47 | AQ89: 1996 | AY89: 7.24 | AZ89: 4.93 | BA89: 2.07 | BB89: 29.16 | BC89: 18.77 | BD89: 7.24 | BE89: 4.93 | BF89: 2.07 | BG89: 1.44 | BH89: 0.65 | BI89: 2006 | BJ89: $71,263 | BK89: $94,583 | BL89: $188,962 | BM89: $250,642 | BN89: $689,328 | BO89: $967,170
A90: 2007 | B90: 31.51 | C90: 21.61 | D90: 9.84 | E90: 7.23 | F90: 3.58 | G90: 2.63 | J90: 31.23 | K90: 36.44 | M90: =1/(1-LOG(D90/B90)/LOG(0.1)) -> 2.02 | N90: 1.78 | P90: 9.90 | Q90: 11.77 | S90: 0.65 | T90: 0.58 | U90: 0.41 | V90: 0.34 | W90: 0.24 | X90: 0.21 | Z90: 4.01 | AA90: 5.83 | AC90: 1986 | AD90: $19,304 | AF90: $72,695 | AG90: $45,543 | AJ90: 3.765858359 | AK90: 2.359288634 | AM90: 14.9 | AN90: 777.6 | AO90: 1.92 | AQ90: 1997 | AY90: 7.81 | AZ90: 5.38 | BA90: 2.32 | BB90: 30.41 | BC90: 19.73 | BD90: 7.81 | BE90: 5.38 | BF90: 2.32 | BG90: 1.64 | BH90: 0.75 | BI90: 2007 | BJ90: $73,412 | BK90: $97,474 | BL90: $197,112 | BM90: $265,273 | BN90: $693,412 | BO90: $979,033
A91: 2008 | B91: 29.34 | C91: 19.85 | D91: 8.59 | E91: 6.15 | F91: 2.91 | G91: 2.11 | J91: =100*(D91/B91) -> 29.29 | K91: =100*(F91/D91) -> 33.92 | M91: 2.14 | N91: 1.88 | P91: =B91-C91 -> 9.49 | Q91: =C91-D91 -> 11.26 | S91: 0.68 | T91: 0.62 | U91: 0.44 | V91: 0.38 | W91: 0.26 | X91: 0.23 | Z91: 3.78 | AA91: 4.81 | AC91: 1987 | AD91: $20,318 | AF91: $73,217 | AG91: $47,815 | AJ91: 3.603606707 | AK91: 2.353366769 | AM91: 24.3 | AN91: 853.1 | AO91: 2.85 | AQ91: 1998 | AY91: 7.84 | AZ91: 5.43 | BA91: 2.37 | BB91: 30.11 | BC91: 19.63 | BD91: 7.84 | BE91: 5.43 | BF91: 2.37 | BG91: 1.67 | BH91: 0.76 | BI91: 2008 | BJ91: $77,074 | BK91: $98,904 | BL91: $190,216 | BM91: $259,249 | BN91: $627,949 | BO91: $906,505
A92: 2009 | B92: 30.56 | C92: 20.69 | D92: 8.88 | E92: 6.33 | F92: 2.93 | G92: 2.09 | J92: =100*(D92/B92) -> 29.05 | K92: =100*(F92/D92) -> 33.04 | M92: =1/(1-LOG(D92/B92)/LOG(0.1)) -> 2.16 | N92: =1/(1-LOG(F92/D92)/LOG(0.1)) -> 1.93 | P92: =B92-C92 -> 9.87 | Q92: =C92-D92 -> 11.82 | S92: 0.69 | T92: 0.63 | U92: 0.45 | V92: 0.38 | W92: 0.26 | X92: 0.23 | Z92: =D92*U92 -> 3.99 | AA92: =D92*(1-U92) -> 4.89 | AC92: 1988 | AD92: $21,665 | AF92: $75,727 | AG92: $49,180 | AJ92: 3.495441852 | AK92: 2.270073161 | AM92: 24.9 | AN92: 1026.6 | AO92: 2.43 | AQ92: 1999 | AY92: 8.84 | AZ92: 6.29 | BA92: 3.04 | BB92: 31.48 | BC92: 20.95 | BD92: 8.84 | BE92: 6.29 | BF92: 3.04 | BG92: 2.15 | BI92: 2009 | BJ92: $78,375 | BK92: $104,470 | BL92: $194,365 | BM92: $269,689 | BN92: $650,823 | BO92: $929,915
A93: 2010 | B93: 30.98 | C93: 21.10 | D93: 9.17 | E93: 6.59 | F93: 3.15 | G93: 2.29 | J93: =100*(D93/B93) -> 29.58 | K93: =100*(F93/D93) -> 34.39 | M93: =1/(1-LOG(D93/B93)/LOG(0.1)) -> 2.12 | N93: =1/(1-LOG(F93/D93)/LOG(0.1)) -> 1.86 | P93: =B93-C93 -> 9.88 | Q93: 11.94 | S93: 0.69 | T93: 0.60 | U93: 0.44 | V93: 0.37 | W93: 0.25 | X93: 0.21 | Z93: =D93*U93 -> 3.99 | AA93: =D93*(1-U93) -> 5.17 | AC93: 1989 | AD93: $23,173 | AF93: $78,521 | AG93: $55,000 | AJ93: 3.388542453 | AK93: 2.373503075 | AM93: 29.3 | AN93: 1278.9 | AO93: 2.29 | AQ93: 2000 | AY93: 9.03 | AZ93: 6.44 | BA93: 3.06 | BB93: 31.28 | BC93: 20.98 | BD93: 9.03 | BE93: 6.44 | BF93: 3.06 | BG93: 2.24 | BI93: 2010
AC94: 1990 | AD94: $24,703 | AE94: $154,991 | AF94: $88,533 | AG94: $58,300 | AI94: =IF(AE94>0,AE94/AD94,"") -> 6.274278821 | AJ94: 3.583954725 | AK94: 2.360075458 | AM94: 26.7 | AN94: 1357.1 | AO94: 1.97 | AQ94: 2001 | AY94: =D84 -> 8.31 | AZ94: 5.75 | BA94: 2.51 | BB94: 30.61 | BC94: 20.33 | BD94: 8.31 | BE94: 5.75 | BF94: 2.51 | BG94: 1.75
AC95: 1991 | AD95: $25,633 | AF95: $99,005 | AG95: $61,798 | AJ95: 3.862343661 | AK95: 2.410838984 | AM95: 25.0 | AN95: 1406.3 | AO95: 1.78 | AQ95: 2002 | AY95: 8.79 | AZ95: 6.11 | BA95: 2.68 | BB95: 31.34 | BC95: 20.90 | BD95: 8.79 | BE95: 6.11 | BF95: 2.68 | BG95: 1.87
AC96: 1992 | AD96: $26,265 | AF96: $100,985 | AG96: $66,387 | AH96: $715,566 | AJ96: 3.844821284 | AK96: 2.527564991 | AL96: =IF(AH96>0,AH96/AD96,"") -> 27.24388164 | AM96: 25.0 | AN96: 1466.8 | AO96: 1.70 | AQ96: 2003 | AY96: 9.18 | AZ96: 6.46 | BA96: 2.89 | BB96: 32.04 | BC96: 21.49 | BD96: 9.18 | BE96: 6.46 | BF96: 2.89 | BG96: 2.05
AC97: 1993 | AD97: $27,013 | AF97: $102,399 | AG97: $68,663 | AH97: $752,791 | AJ97: 3.790772488 | AK97: 2.54187845 | AL97: 27.86803985 | AM97: 28.5 | AN97: 1538.5 | AO97: 1.85 | AQ97: 2004 | AY97: 8.89 | AZ97: 6.35 | BA97: 2.93 | BB97: 30.08 | BC97: 20.32 | BD97: 8.89 | BE97: 6.35 | BF97: 2.93 | BG97: 2.11
AC98: 1994 | AD98: $27,814 | AE98: $177,604 | AF98: $103,935 | AG98: $68,663 | AH98: $901,114 | AI98: =IF(AE98>0,AE98/AD98,"") -> 6.385532206 | AJ98: 3.736854405 | AK98: 2.46869326 | AL98: 32.39843961 | AM98: 36.7 | AN98: 1655.7 | AO98: 2.22 | AQ98: 2005 | AY98: 9.12 | AZ98: 6.52 | BA98: 3.05 | BB98: 30.54 | BC98: 20.72 | BD98: 9.12 | BE98: 6.52 | BF98: 3.05 | BG98: 2.19
AC99: 1995 | AD99: $28,579 | AF99: $106,014 | AG99: $75,949 | AH99: $1,045,122 | AJ99: 3.709481021 | AK99: 2.657492162 | AL99: 36.56932314 | AM99: 37.3 | AN99: 1741.6 | AO99: 2.14 | AQ99: 2006 | AY99: 10.06 | AZ99: 7.38 | BA99: 3.65 | BB99: 31.81 | BC99: 21.91 | BD99: 10.06 | BE99: 7.38 | BF99: 3.65 | BG99: 2.66
AC100: 1996 | AD100: $29,428 | AF100: $117,855 | AG100: $80,251 | AH100: $1,180,000 | AJ100: 4.004845709 | AK100: 2.727019413 | AL100: 40.09772972 | AM100: 36.0 | AN100: 1816.2 | AO100: 1.98 | AQ100: 2007 | AY100: 9.84 | AZ100: 7.23 | BA100: 3.58 | BB100: 31.51 | BC100: 21.61 | BD100: 9.84 | BE100: 7.23 | BF100: 3.58 | BG100: 2.63
AC101: 1997 | AD101: $30,346 | AG101: $81,856 | AH101: $1,421,915 | AK101: 2.697431943 | AL101: 46.85690653 | AM101: 40.5 | AN101: 1998.9 | AO101: 2.03 | AQ101: 2008 | AY101: 8.59 | AZ101: 6.15 | BA101: 2.91 | BB101: 29.34 | BC101: 19.85 | BD101: 8.59 | BE101: 6.15 | BF101: 2.91 | BG101: 2.11
AC102: 1998 | AD102: $31,203 | AF102: $130,193 | AH102: $1,694,479 | AJ102: =IF(AF102>0,AF102/AD102,"") -> 4.172504855 | AL102: 54.30569888 | AM102: 47.7 | AN102: 2154.4 | AO102: 2.21 | AQ102: 2009 | AY102: 8.88 | AZ102: 6.33 | BA102: 2.93 | BB102: 30.56 | BC102: 20.69 | BD102: 8.88 | BE102: 6.33 | BF102: 2.93 | BG102: 2.09
AC103: 1999 | AD103: $31,697 | AF103: $138,865 | AG103: $85,500 | AH103: $2,048,673 | AJ103: 4.381069263 | AK103: 2.6974502 | AL103: 64.63384085 | AM103: 57.1 | AN103: 2354.6 | AO103: 2.43 | AQ103: 2010 | AY103: =D93 -> 9.17 | AZ103: =E93 -> 6.59 | BA103: =F93 -> 3.15 | BB103: =B93 -> 30.98 | BC103: =C93 -> 21.10 | BD103: =D93 -> 9.17 | BE103: =E93 -> 6.59 | BF103: =F93 -> 3.15 | BG103: =G93 -> 2.29
AC104: 2000 | AD104: $33,173 | AE104: $251,200 | AF104: $150,221 | AG104: $92,000 | AH104: $2,600,000 | AI104: =IF(AE104>0,AE104/AD104,"") -> 7.572332049 | AJ104: 4.528357057 | AK104: 2.773306324 | AL104: 78.37604828 | AM104: 61.4 | AN104: 2584.0 | AO104: 2.37
AC105: 2001 | AD105: $34,735 | AF105: $153,416 | AG105: $95,600 | AH105: $3,100,000 | AJ105: 4.416793581 | AK105: 2.752290937 | AL105: 89.24792786 | AM105: 60.4 | AN105: 2821.1 | AO105: 2.14
AC106: 2002 | AD106: $36,063 | AF106: $161,410 | AG106: $98,800 | AH106: $3,550,000 | AJ106: 4.475741266 | AK106: 2.739627267 | AL106: 98.43802425 | AM106: 64.9 | AN106: 3124.6 | AO106: 2.08
AC107: 2003 | AD107: $37,960 | AE107: $305,330 | AF107: $170,788 | AG107: $102,760 | AI107: =IF(AE107>0,AE107/AD107,"") -> 8.043466807 | AJ107: 4.499157007 | AK107: 2.707060063 | AM107: 63.2 | AN107: 3390.6 | AO107: 1.86
AC108: 2004 | AD108: $39,351 | AE108: $333,100 | AF108: $185,472 | AG108: $106,770 | AI108: =IF(AE108>0,AE108/AD108,"") -> 8.464842062 | AJ108: 4.713272852 | AK108: 2.713272852 | AM108: 71.5 | AN108: 3870.5 | AO108: 1.85
AC109: 2005 | AD109: $41,470 | AE109: $346,760 | AF109: $198,367 | AG109: $111,150 | AI109: 8.361707258 | AJ109: 4.78338558 | AK109: 2.680250784 | AM109: 83.4 | AN109: 4178.7 | AO109: 2.00
AC110: 2006 | AD110: $43,368 | AE110: $362,020 | AF110: $210,344 | AG110: $118,950 | AI110: 8.347629589 | AJ110: 4.850212138 | AK110: 2.742805755 | AM110: 101.5 | AN110: 4677.8 | AO110: 2.17
AC111: 2007 | AD111: $45,227 | AE111: $377,230 | AF111: $222,741 | AG111: $127,060 | AI111: 8.340814115 | AJ111: 4.924956331 | AK111: 2.809383775 | AM111: 128.6 | AN111: 5295.7 | AO111: 2.43
AC112: 2008 | AD112: $46,579 | AE112: $373,460 | AG112: $132,530 | AI112: 8.017776251 | AK112: 2.845273621 | AM112: 139.6 | AN112: 5339 | AO112: 2.61
AC113: 2009 | AD113: $48,555 | AE113: $405,270 | AG113: $136,510 | AI113: 8.346617238 | AK113: 2.811450932 | AM113: 114.1 | AN113: 5100.5 | AO113: 2.24
AC114: 2010 | AM114: 135.84
AC115: 2011 | AM115: 167.25

Sheet Data 4b
C1: Roger Wilkins series
A2: Year starting | C2: Inc CG | D2: Ex CG | E2: Atk-Leigh 1% for comparison
A3: 1910
A4: 1911
A5: 1912 | E5: 12.6893
A6: 1913 | E6: 11.64644
A7: 1914
A8: 1915
A9: 1916
A10: 1917
A11: 1918
A12: 1919 | E12: 12.55035
A13: 1920 | E13: 10.1529
A14: 1921 | E14: 11.6314
A15: 1922 | E15: 10.68477
A16: 1923 | E16: 11.76132
A17: 1924 | E17: 11.67495
A18: 1925 | E18: 11.31364
A19: 1926 | E19: 11.07482
A20: 1927 | E20: 11.68292
A21: 1928 | E21: 11.84713
A22: 1929 | E22: 10.66542
A23: 1930 | E23: 9.749785
A24: 1931 | E24: 9.343923
A25: 1932 | E25: 9.267618
A26: 1933 | E26: 10.32351
A27: 1934 | E27: 10.35757
A28: 1935 | E28: 10.53739
A29: 1936 | E29: 11.28367
A30: 1937 | E30: 9.834606
A31: 1938 | E31: 10.38586
A32: 1939 | E32: 10.72735
A33: 1940 | E33: 10.29801
A34: 1941 | E34: 10.7823
A35: 1942 | E35: 10.42831
A36: 1943 | E36: 10.44749
A37: 1944 | E37: 9.031387
A38: 1945 | E38: 8.436974
A39: 1946 | E39: 9.50908
A40: 1947 | E40: 10.62005
A41: 1948 | E41: 10.79862
A42: 1949 | E42: 11.25572
A43: 1950 | E43: 14.12984
A44: 1951 | E44: 9.084048
A45: 1952 | E45: 8.989485
A46: 1953 | E46: 8.711291
A47: 1954 | E47: 8.059411
A48: 1955 | E48: 7.542427
A49: 1956 | E49: 7.905793
A50: 1957 | E50: 7.040835
A51: 1958 | E51: 7.443652
A52: 1959 | E52: 7.394512
A53: 1960 | E53: 7.092422
A54: 1961 | E54: 7.095926
A55: 1962 | E55: 7.226224
A56: 1963 | E56: 7.35788
A57: 1964 | E57: 6.838895
A58: 1965 | E58: 6.693832
A59: 1966 | E59: 6.474776
A60: 1967 | E60: 6.582019
A61: 1968 | E61: 6.380515 | M61: Source: Richard Burkhauser, Markus Hahn and Roger Wilkins, 2013, ‘Recent Trends in Top Incomes Share in Australia: Why Separating Capitals Gains in Tax Record Data Matters’, Paper Presented at the ASSA Meetings, January 2013.
A62: 1969 | E62: 6.247537 | M62: Year | N62: Top 10% | O62: Top 5% | P62: Top 1% | Q62: Top 0.5% | R62: Top 0.1% | S62: Top 0.05% | T62: Top 0.01%
A63: 1970 | D63: 5.92 | E63: 5.915835 | M63: 1970-71 | N63: 27.65 | O63: 17.3 | P63: 5.92 | Q63: 3.74 | R63: 1.26 | S63: 0.79 | T63: 0.27
A64: 1971 | D64: 5.63 | E64: 5.923273 | M64: 1971-72 | N64: 26.83 | O64: 16.71 | P64: 5.63 | Q64: 3.52 | R64: 1.18 | S64: 0.74 | T64: 0.25
A65: 1972 | D65: 5.79 | E65: 6.063846 | M65: 1972-73 | N65: 26.53 | O65: 16.7 | P65: 5.79 | Q65: 3.64 | R65: 1.23 | S65: 0.77 | T65: 0.27
A66: 1973 | D66: 5.45 | E66: 5.67231 | M66: 1973-74 | N66: 25.71 | O66: 16.09 | P66: 5.45 | Q66: 3.4 | R66: 1.12 | S66: 0.7 | T66: 0.23
A67: 1974 | D67: 5.03 | E67: 5.221173 | M67: 1974-75 | N67: 24.92 | O67: 15.29 | P67: 5.03 | Q67: 3.13 | R67: 1.02 | S67: 0.63 | T67: 0.21
A68: 1975 | D68: 4.95 | E68: 5.134846 | M68: 1975-76 | N68: 24.62 | O68: 15.09 | P68: 4.95 | Q68: 3.1 | R68: 1.06 | S68: 0.66 | T68: 0.22
A69: 1976 | D69: 4.81 | E69: 4.985606 | M69: 1976-77 | N69: 24.32 | O69: 14.82 | P69: 4.81 | Q69: 3 | R69: 1.01 | S69: 0.62 | T69: 0.2
A70: 1977 | D70: 4.76 | E70: 4.923252 | M70: 1977-78 | N70: 24.32 | O70: 14.74 | P70: 4.76 | Q70: 2.98 | R70: 1.03 | S70: 0.65 | T70: –
A71: 1978 | D71: 4.71 | E71: 4.870783 | M71: 1978-79 | N71: 24.18 | O71: 14.64 | P71: 4.71 | Q71: 2.92 | R71: 0.99 | S71: 0.63 | T71: –
A72: 1979 | D72: 4.67 | E72: 4.825983 | M72: 1979-80 | N72: 24.33 | O72: 14.69 | P72: 4.67 | Q72: 2.87 | R72: 0.98 | S72: 0.63 | T72: –
A73: 1980 | D73: 4.63 | E73: 4.78862 | M73: 1980-81 | N73: 24.56 | O73: 14.81 | P73: 4.63 | Q73: 2.85 | R73: 0.98 | S73: 0.64 | T73: –
A74: 1981 | D74: 4.47 | E74: 4.61483 | M74: 1981-82 | N74: 24.54 | O74: 14.69 | P74: 4.47 | Q74: 2.74 | R74: 0.94 | S74: 0.6 | T74: –
A75: 1982 | D75: 4.55 | E75: 4.668778 | M75: 1982-83 | N75: 25.15 | O75: 15.04 | P75: 4.55 | Q75: 2.79 | R75: 0.97 | S75: 0.61 | T75: –
A76: 1983 | D76: 4.56 | E76: 4.682786 | M76: 1983-84 | N76: 24.64 | O76: 14.76 | P76: 4.56 | Q76: 2.82 | R76: 0.99 | S76: 0.64 | T76: –
A77: 1984 | D77: 4.61 | E77: 4.75242 | M77: 1984-85 | N77: 24.72 | O77: 14.78 | P77: 4.61 | Q77: 2.87 | R77: 1 | S77: – | T77: –
A78: 1985 | D78: 4.89 | E78: 5.018337 | M78: 1985-86 | N78: 25.25 | O78: 15.22 | P78: 4.89 | Q78: 3.1 | R78: 1.11 | S78: 0.73 | T78: 0.34
A79: 1986 | D79: 5.27 | E79: 5.393577 | M79: 1986-87 | N79: 25.98 | O79: 15.79 | P79: 5.27 | Q79: 3.39 | R79: 1.26 | S79: 0.83 | T79: 0.35
A80: 1987 | D80: 6.5 | E80: 6.667771 | M80: 1987-88 | N80: 27.95 | O80: 17.5 | P80: 6.5 | Q80: 4.41 | R80: 1.84 | S80: 1.37 | T80: 0.57
A81: 1988 | D81: 8.11 | E81: 8.41053 | M81: 1988-89 | N81: 29.42 | O81: 19.21 | P81: 8.11 | Q81: 5.82 | R81: 2.88 | S81: 2.06 | T81: 0.96
A82: 1989 | B82: 1989-90 | C82: 6.32 | D82: 6.21 | E82: 6.430696 | M82: 1989-90 | N82: 26.83 | O82: 16.92 | P82: 6.21 | Q82: 4.15 | R82: 1.73 | S82: 1.28 | T82: 0.52
A83: 1990 | B83: 1990-91 | C83: 6.15 | D83: 6.07 | E83: 6.336555 | M83: 1990-91 | N83: 26.58 | O83: 16.67 | P83: 6.07 | Q83: 4.06 | R83: 1.71 | S83: 1.28 | T83: 0.54
A84: 1991 | B84: 1991-92 | C84: 6.27 | D84: 6.19 | E84: 6.412619 | M84: 1991-92 | N84: 27.28 | O84: 17.08 | P84: 6.19 | Q84: 4.14 | R84: 1.76 | S84: 1.32 | T84: 0.58
A85: 1992 | B85: 1992-93 | C85: 6.41 | D85: 6.3 | E85: 6.546458 | M85: 1992-93 | N85: 27.48 | O85: 17.29 | P85: 6.3 | Q85: 4.22 | R85: 1.81 | S85: 1.34 | T85: 0.57
A86: 1993 | B86: 1993-94 | C86: 6.76 | D86: 6.5 | E86: 6.955285 | M86: 1993-94 | N86: 27.69 | O86: 17.41 | P86: 6.5 | Q86: 4.84 | R86: 2.39 | S86: 1.47 | T86: 0.59
A87: 1994 | B87: 1994-95 | C87: 7.05 | D87: 6.91 | E87: 7.130435 | M87: 1994-95 | N87: 28.24 | O87: 18.05 | P87: 6.91 | Q87: 4.7 | R87: 2.19 | S87: 1.52 | T87: 0.67
A88: 1995 | B88: 1995-96 | C88: 7.01 | D88: 6.8 | E88: 7.22511 | M88: 1995-96 | N88: 27.76 | O88: 17.83 | P88: 6.8 | Q88: 4.62 | R88: 2.2 | S88: 1.51 | T88: 0.67
A89: 1996 | B89: 1996-97 | C89: 6.98 | D89: 6.7 | E89: 7.235911 | M89: 1996-97 | N89: 27.54 | O89: 17.67 | P89: 6.7 | Q89: 4.54 | R89: 1.9 | S89: 1.35 | T89: 0.59
A90: 1997 | B90: 1997-98 | C90: 7.43 | D90: 7.02 | E90: 7.808034 | M90: 1997-98 | N90: 28.09 | O90: 18.16 | P90: 7.02 | Q90: 4.8 | R90: 2.04 | S90: 1.46 | T90: 0.65
A91: 1998 | B91: 1998-99 | C91: 7.52 | D91: 7.05 | E91: 7.836614 | M91: 1998-99 | N91: 27.99 | O91: 18.13 | P91: 7.05 | Q91: 4.85 | R91: 2.06 | S91: 1.46 | T91: 0.62
A92: 1999 | B92: 1999-2000 | C92: 8.35 | D92: 7.77 | E92: 8.84167 | M92: 1999-2000 | N92: 28.89 | O92: 19 | P92: 7.77 | Q92: 5.46 | R92: 2.44 | S92: 1.7 | T92: –
A93: 2000 | B93: 2000-01 | C93: 8.65 | D93: 8.05 | E93: 9.027678 | M93: 2000-01 | N93: 29.21 | O93: 19.37 | P93: 8.05 | Q93: 5.65 | R93: 2.55 | S93: 1.77 | T93: –
A94: 2001 | B94: 2001-02 | C94: 7.85 | D94: 7.33 | E94: 8.308864 | M94: 2001-02 | N94: 28.07 | O94: 18.42 | P94: 7.33 | Q94: 5.02 | R94: 2.09 | S94: 1.39 | T94: –
A95: 2002 | B95: 2002-03 | C95: 8.17 | D95: 7.64 | E95: 8.785147 | M95: 2002-03 | N95: 28.42 | O95: 18.76 | P95: 7.64 | Q95: 5.27 | R95: 2.23 | S95: 1.49 | T95: –
A96: 2003 | B96: 2003-04 | C96: 8.44 | D96: 7.7 | E96: 9.177134 | M96: 2003-04 | N96: 28.12 | O96: 18.62 | P96: 7.7 | Q96: 5.32 | R96: 2.26 | S96: 1.52 | T96: –
A97: 2004 | B97: 2004-05 | C97: 8.8 | D97: 7.95 | E97: 8.887907 | M97: 2004-05 | N97: 28.39 | O97: 18.88 | P97: 7.95 | Q97: 5.51 | R97: 2.36 | S97: 1.61 | T97: –
A98: 2005 | B98: 2005-06 | C98: 9.09 | D98: 8 | E98: 9.116723 | M98: 2005-06 | N98: 28.71 | O98: 19.15 | P98: 8 | Q98: 5.58 | R98: 2.37 | S98: 1.63 | T98: –
A99: 2006 | B99: 2006-07 | C99: 9.9 | D99: 8.39 | E99: 10.05767 | M99: 2006-07 | N99: 28.93 | O99: 19.48 | P99: 8.39 | Q99: 5.99 | R99: 2.69 | S99: 1.89 | T99: –
A100: 2007 | B100: 2007-08 | C100: 9.61 | D100: 8.32 | E100: 9.838809 | M100: 2007-08 | N100: 28.83 | O100: 19.38 | P100: 8.32 | Q100: 5.92 | R100: 2.65 | S100: 1.85 | T100: –
A101: 2008 | B101: 2008-09 | C101: 8.58 | D101: 8.03 | E101: 8.591668 | M101: 2008-09 | N101: 28.38 | O101: 19.05 | P101: 8.03 | Q101: 5.67 | R101: 2.55 | S101: 1.8 | T101: –
A102: 2009 | B102: 2009-10 | C102: 8.88 | D102: 8.32 | E102: 8.878251 | M102: 2009-10 | N102: 29.57 | O102: 19.88 | P102: 8.32 | Q102: 5.86 | R102: 2.6 | S102: 1.82 | T102: –
A103: 2010

Sheet Data 5
A1: June quarter | B1: 1975 | C1: 1976 | D1: 1977 | E1: 1978 | F1: 1979 | G1: 1980 | H1: 1981 | I1: 1982 | J1: 1983 | K1: 1984 | L1: 1985 | M1: 1986 | N1: 1987 | O1: 1988 | P1: 1989 | Q1: 1990 | R1: 1991 | S1: 1992 | T1: 1993 | U1: 1994 | V1: 1995 | W1: 1996 | X1: 1997 | Y1: 1998 | Z1: 1999 | AA1: 2000 | AB1: 2001 | AC1: 2002 | AD1: 2003 | AE1: 2004 | AF1: 2005 | AG1: 2006 | AH1: 2007 | AI1: 2008 | AJ1: 2009 | AK1: 2010 | AL1: 2011 | AM1: 2012 | AN1: 2013 | AO1: 2014 | AP1: 2015 | AQ1: 2016
A2: CPI | B2: 28.4 | C2: 31.8 | D2: 36.1 | E2: 39.0 | F2: 42.4 | G2: 47.0 | H2: 51.1 | J2: 62.9 | L2: 69.7 | M2: 75.6 | N2: 82.6 | O2: 88.5 | P2: 95.2 | Q2: 102.5 | R2: 106.0 | S2: 107.3 | T2: 109.3 | U2: 111.2 | V2: 116.2 | W2: 119.8 | X2: 120.2 | Y2: 121.0 | Z2: 122.3 | AA2: 126.2 | AB2: 133.8 | AC2: 137.6 | AD2: 141.3 | AE2: 144.8 | AF2: 148.4 | AG2: 154.3 | AH2: 157.5 | AI2: 164.6 | AJ2: 167.0 | AK2: 172.1 | AM2: =$AK2*(AM3/$AK3) -> 180.3636743 | AO2: =$AK2*(AO3/$AK3) -> 190.2441545 | AQ2: =$AK2*(AQ3/$AK3) -> 195.094572
AI3: Rebased CPI (640101) | AK3: 95.8 | AM3: 100.4 | AO3: 105.9 | AQ3: 108.6
A5: Full-Time Adult Non-Managerial Employees - Weekly Earnings - EEH (This series seeks to take into account the impact of different treatment of salary sacrifice)
A6: Nominal
A7: May | B7: 1975 | C7: 1976 | D7: 1977 | E7: 1978 | F7: 1979 | G7: 1980 | H7: 1981 | I7: 1982 | J7: 1983 | K7: 1984 | L7: 1985 | M7: 1986 | N7: 1987 | O7: 1988 | P7: 1989 | Q7: 1990 | R7: 1991 | S7: 1992 | T7: 1993 | U7: 1994 | V7: 1995 | W7: 1996 | X7: 1997 | Y7: 1998 | Z7: 1999 | AA7: 2000 | AB7: 2001 | AC7: 2002 | AD7: 2003 | AE7: 2004 | AF7: 2005 | AG7: 2006 | AH7: =AH1 -> 2007 | AI7: 2008 | AJ7: 2009 | AK7: 2010 | AL7: 2011 | AM7: 2012 | AN7: 2013 | AO7: 2014 | AP7: 2015 | AQ7: 2016
A8: 10th percentile | B8: 102 | C8: 119 | D8: 134 | E8: 145 | F8: 155 | G8: 171 | H8: 192 | J8: 233 | L8: 265 | M8: 278 | N8: 293 | O8: 309 | P8: 332 | Q8: 350 | R8: 367 | S8: 383 | T8: 389 | U8: 403 | V8: 420 | W8: 431 | Y8: 459 | AA8: 484 | AC8: 521 | AE8: 565 | AG8: 607 | AI8: 675 | AK8: 711 | AM8: 769 | AO8: 838 | AQ8: 866
A9: 25th percentile | B9: 116 | C9: 134 | D9: 151 | E9: 163 | F9: 174 | G9: 194 | H9: 216 | J9: 263 | L9: 300 | M9: 316 | N9: 334 | O9: 356 | P9: 384 | Q9: 403 | R9: 421 | S9: 435 | T9: 448 | U9: 463 | V9: 484 | W9: 503 | Y9: 539 | AA9: 573 | AC9: 620 | AE9: 668 | AG9: 725 | AI9: 813 | AK9: 862 | AM9: 933 | AO9: 1011 | AQ9: 1048
A10: 50th percentile | B10: 137 | C10: 158 | D10: 176 | E10: 192 | F10: 207 | G10: 231 | H10: 257 | J10: 312 | L10: 359 | M10: 381 | N10: 404 | O10: 434 | P10: 472 | Q10: 495 | R10: 514 | S10: 528 | T10: 554 | U10: 573 | V10: 598 | W10: 625 | Y10: 675 | AA10: 722 | AC10: 778 | AE10: 844 | AG10: 926 | AI10: 1058 | AK10: 1115 | AM10: 1212 | AO10: 1320 | AQ10: 1376
A11: 75th percentile | B11: 168 | C11: 193 | D11: 214 | E11: 233 | F11: 254 | G11: 285 | H11: 321 | J11: 388 | L11: 452 | M11: 483 | N11: 510 | O11: 549 | P11: 598 | Q11: 629 | R11: 654 | S11: 677 | T11: 708 | U11: 731 | V11: 770 | W11: 804 | Y11: 874 | AA11: 939 | AC11: 1020 | AE11: 1108 | AG11: 1236 | AI11: 1418 | AK11: 1513 | AM11: 1635 | AO11: 1774 | AQ11: 1852
A12: 90th percentile | B12: 206 | C12: 238 | D12: 262 | E12: 283 | F12: 309 | G12: 348 | H12: 394 | J12: 476 | L12: 553 | M12: 600 | N12: 620 | O12: 675 | P12: 728 | Q12: 769 | R12: 803 | S12: 823 | T12: 854 | U12: 890 | V12: 947 | W12: 986 | Y12: 1095 | AA12: 1177 | AC12: 1289 | AE12: 1419 | AG12: 1597 | AI12: 1860 | AK12: 1986 | AM12: 2162 | AO12: 2370 | AQ12: 2461
A13: Mean earnings | B13: 146 | C13: 169 | D13: 189 | E13: 205 | F13: 221 | G13: 248 | H13: 279 | J13: 337 | L13: 390 | M13: 414 | N13: 437 | O13: 470 | P13: 509 | Q13: 538 | R13: 561 | S13: 578 | T13: 601 | U13: 623 | V13: 656 | W13: 683 | Y13: 744 | AA13: 794 | AC13: 860 | AE13: 939 | AG13: 1045 | AI13: 1194 | AK13: 1266 | AM13: 1374 | AO13: 1509 | AQ13: 1564
A15: Federal Minimum Wage | B15: 82 | C15: 87 | D15: 100 | E15: 112 | F15: 132 | G15: 154 | H15: 154 | I15: 204 | J15: 204 | K15: 213 | L15: 221 | M15: 236 | N15: 241 | O15: 261 | P15: 275 | Q15: 295 | R15: 314 | S15: 325 | T15: 325 | U15: 333 | V15: 333 | W15: 341 | X15: 349 | Y15: 359 | Z15: 373 | AA15: 385 | AB15: 400 | AC15: 413 | AD15: 431 | AE15: 448 | AF15: 467 | AG15: 484 | AH15: 512 | AI15: 522 | AJ15: 544 | AK15: 544
A18: In 2010 Dollars
B19: 1975 | C19: 1976 | D19: 1977 | E19: 1978 | F19: 1979 | G19: 1980 | H19: 1981 | I19: 1982 | J19: 1983 | K19: 1984 | L19: 1985 | M19: 1986 | N19: 1987 | O19: 1988 | P19: 1989 | Q19: 1990 | R19: 1991 | S19: 1992 | T19: 1993 | U19: 1994 | V19: 1995 | W19: 1996 | X19: 1997 | Y19: 1998 | Z19: 1999 | AA19: 2000 | AB19: 2001 | AC19: 2002 | AD19: 2003 | AE19: 2004 | AF19: 2005 | AG19: =AG7 -> 2006 | AH19: 2007 | AI19: 2008 | AJ19: 2009 | AK19: 2010 | AL19: 2011 | AM19: 2012 | AN19: 2013 | AO19: 2014 | AP19: 2015 | AQ19: 2016 | AS19: 1975 | AT19: $ change | AU19: % change
A20: 10th percentile | B20: =B8*52*($AK$2/B$2) -> 32047 | C20: 33545 | D20: 33144 | E20: 33342 | F20: 32757 | G20: 32522 | H20: 33555 | J20: 33207 | L20: 33986 | M20: 32873 | N20: 31691 | O20: 31226 | P20: 31238 | Q20: 30567 | R20: 31010 | S20: 31952 | T20: 31883 | U20: 32393 | V20: 32377 | W20: 32174 | Y20: 33926 | AA20: 34322 | AC20: 33885 | AE20: 34919 | AG20: 35205 | AI20: 36699 | AK20: =AK8*52*($AK$2/AK$2) -> 36972 | AL20: =AL8*52*($AK$2/AL$2) ->  | AM20: =AM8*52*($AK$2/AM$2) -> 38156 | AN20: =AN8*52*($AK$2/AN$2) ->  | AO20: =AO8*52*($AK$2/AO$2) -> 39420 | AQ20: =AQ8*52*($AK$2/AQ$2) -> 39724 | AS20: =B20 -> 32047 | AT20: =AQ20-B20 -> $7,677 | AU20: =AQ20/B20-1 -> 24% | AV20: 10th percentile | AW20: =W20-J20 -> -1034 | AX20: =AW20/J20/13 -> -0.2% | AY20: =AI20-W20 -> 4525.54 | AZ20: =AY20/W20/12 -> 1.2%
A21: 25th percentile | B21: 36522 | C21: 37795 | D21: 37408 | E21: 37472 | F21: 36789 | G21: 36901 | H21: 37898 | J21: 37390 | L21: 38519 | M21: 37359 | N21: 36230 | O21: 36039 | P21: 36116 | Q21: 35194 | R21: 35552 | S21: 36281 | T21: 36706 | U21: 37286 | V21: 37306 | W21: 37545 | Y21: 39857 | AA21: 40598 | AC21: 40323 | AE21: 41285 | AG21: 42049 | AI21: 44202 | AK21: 44824 | AL21: =AL9*52*($AK$2/AL$2) ->  | AM21: =AM9*52*($AK$2/AM$2) -> 46293 | AN21: =AN9*52*($AK$2/AN$2) ->  | AO21: =AO9*52*($AK$2/AO$2) -> 47558 | AQ21: 48073 | AS21: =B21 -> 36522 | AT21: =AQ21-B21 -> $11,551 | AU21: =AQ21/B21-1 -> 32% | AV21: 25th percentile | AW21: =W21-J21 -> 155 | AX21: =AW21/J21/13 -> 0.0% | AY21: =AI21-W21 -> 6657.50 | AZ21: =AY21/W21/12 -> 1.5%
A22: 50th percentile | B22: 43107 | C22: 44493 | D22: 43630 | E22: 43943 | F22: 43585 | G22: 43927 | H22: 45079 | J22: 44405 | L22: 46068 | M22: 45066 | N22: 43749 | O22: 43907 | P22: 44323 | Q22: 43218 | R22: 43353 | S22: 44054 | T22: 45376 | U22: 46122 | V22: 46055 | W22: 46711 | Y22: 49923 | AA22: 51164 | AC22: 50599 | AE22: 52162 | AG22: 53707 | AI22: 57523 | AK22: 57980 | AM22: 60136 | AO22: 62094 | AQ22: 63119 | AS22: =B22 -> 43107 | AT22: $20,011 | AU22: 46% | AV22: 50th percentile | AW22: =W22-J22 -> 2306 | AX22: =AW22/J22/13 -> 0.4% | AY22: =AI22-W22 -> 10812.16 | AZ22: =AY22/W22/12 -> 1.9%
A23: 75th percentile | B23: 52939 | C23: 54202 | D23: 53051 | E23: 53374 | F23: 53653 | G23: 54343 | H23: 56182 | J23: 55218 | L23: 58061 | M23: 57175 | N23: 55277 | O23: 55465 | P23: 56205 | Q23: 54935 | R23: 55215 | S23: 56473 | T23: 57928 | U23: 58798 | V23: 59263 | W23: 60060 | Y23: 64634 | AA23: 66552 | AC23: 66339 | AE23: 68479 | AG23: 71686 | AI23: 77096 | AK23: 78676 | AM23: 81125 | AO23: 83450 | AQ23: 84953 | AS23: =B23 -> 52939 | AT23: $32,014 | AU23: 60% | AV23: 75th percentile | AW23: =W23-J23 -> 4842 | AX23: =AW23/J23/13 -> 0.7% | AY23: =AI23-W23 -> 17036.04 | AZ23: =AY23/W23/12 -> 2.4%
A24: 90th percentile | B24: 64787 | C24: 66866 | D24: 64826 | E24: 64939 | F24: 65177 | G24: 66281 | H24: 69054 | J24: 67766 | L24: 71003 | M24: 71025 | N24: 67217 | O24: 68257 | P24: 68407 | Q24: 67141 | R24: 67828 | S24: 68658 | T24: 69907 | U24: 71602 | V24: 72964 | W24: 73640 | Y24: 80972 | AA24: 83464 | AC24: 83834 | AE24: 87700 | AG24: 92624 | AI24: 101127 | AK24: 103272 | AM24: 107273 | AO24: 111486 | AQ24: 112889 | AS24: =B24 -> 64787 | AT24: =AQ24-B24 -> $48,102 | AU24: =AQ24/B24-1 -> 74% | AV24: 90th percentile | AW24: =W24-J24 -> 5874 | AX24: =AW24/J24/13 -> 0.7% | AY24: =AI24-W24 -> 27486.64 | AZ24: =AY24/W24/12 -> 3.1%
A25: Mean earnings | B25: 46101 | C25: 47673 | D25: 46754 | E25: 46926 | F25: 46688 | G25: 47164 | H25: 48792 | J25: 47976 | L25: 50023 | M25: 48984 | N25: 47346 | O25: 47537 | P25: 47886 | Q25: 46964 | R25: 47321 | S25: 48224 | T25: 49217 | U25: 50106 | V25: 50484 | W25: 51021 | Y25: 55056 | AA25: 56269 | AC25: 55913 | AE25: 58009 | AG25: 60609 | AI25: 64939 | AK25: 65816 | AM25: 68194 | AO25: 70998 | AQ25: 71742 | AT25: =AQ25-B25 -> $25,641 | AU25: =AK25/B25-1 -> 43% | AV25: Mean earnings | AW25: =W25-J25 -> 3045 | AX25: =AW25/J25/13 -> 0.5% | AY25: =AI25-W25 -> 13917.89 | AZ25: =AY25/W25/12 -> 2.3%
A26: =A15 -> Federal Minimum Wage | B26: =B15*52*($AK$2/B$2) -> 25689 | C26: =C15*52*($AK$2/C$2) -> 24600 | D26: 24904 | E26: 25691 | F26: 27900 | G26: 29352 | H26: 26997 | J26: 28992 | L26: 28407 | M26: 27893 | N26: 26116 | O26: 26402 | P26: 25861 | Q26: 25765 | R26: 26544 | S26: 27140 | T26: 26643 | U26: 26832 | V26: 25677 | W26: 25503 | X26: 26014 | Y26: 26581 | Z26: 27323 | AA26: 27330 | AB26: 26781 | AC26: 26887 | AD26: 27323 | AE26: 27713 | AF26: 28186 | AG26: 28095 | AH26: 29084 | AI26: 28387 | AJ26: 29140 | AK26: 28277 | AM26: =52*606.4 -> 31533 | AO26: =52*640.9 -> 33327 | AQ26: =52*672.7 -> 34980 | AT26: =AQ26-B26 -> $9,292 | AU26: =AK26/B26-1 -> 10% | AV26: Federal Minimum Wage | AW26: =W26-J26 -> -3489 | AX26: =AW26/J26/13 -> -0.9% | AY26: =AI26-W26 -> 2884.36 | AZ26: =AY26/W26/12 -> 0.9%
AS28: If P10 increased at P90 rate, they'd be how much better off? | AT28: =(B20*(1+AU24))-AQ20 -> $16,116
AW29: 10th percentile | AX29: -0.2% | AY29: 1.2%
AW30: 25th percentile | AX30: 0.0% | AY30: 1.5%
A31: Index 1975 = 100 | AW31: 50th percentile | AX31: 0.4% | AY31: 1.9%
B32: =B19 -> 1975 | C32: 1976 | D32: 1977 | E32: 1978 | F32: 1979 | G32: 1980 | H32: 1981 | I32: 1982 | J32: 1983 | K32: 1984 | L32: 1985 | M32: 1986 | N32: 1987 | O32: 1988 | P32: 1989 | Q32: 1990 | R32: 1991 | S32: 1992 | T32: 1993 | U32: 1994 | V32: 1995 | W32: 1996 | X32: 1997 | Y32: 1998 | Z32: 1999 | AA32: 2000 | AB32: 2001 | AC32: 2002 | AD32: 2003 | AE32: 2004 | AF32: 2005 | AG32: 2006 | AH32: 2007 | AI32: 2008 | AJ32: 2009 | AK32: 2010 | AW32: 75th percentile | AX32: 0.7% | AY32: 2.4%
A33: =A20 -> 10th percentile | B33: =100*B20/$B20 -> 100 | C33: 105 | D33: 103 | E33: 104 | F33: 102 | G33: 101 | H33: 105 | J33: 104 | L33: 106 | M33: 103 | N33: 99 | O33: 97 | P33: 97 | Q33: 95 | R33: 97 | S33: 100 | T33: 99 | U33: 101 | V33: 101 | W33: 100 | Y33: 106 | AA33: 107 | AC33: 106 | AE33: 109 | AG33: =100*AG20/$B20 -> 110 | AI33: 115 | AK33: 115 | AW33: 90th percentile | AX33: 0.7% | AY33: 3.1%
A34: 25th percentile | B34: 100 | C34: 103 | D34: 102 | E34: 103 | F34: 101 | G34: 101 | H34: 104 | J34: 102 | L34: 105 | M34: 102 | N34: 99 | O34: 99 | P34: 99 | Q34: 96 | R34: 97 | S34: 99 | T34: 101 | U34: 102 | V34: 102 | W34: 103 | Y34: 109 | AA34: 111 | AC34: 110 | AE34: 113 | AG34: 115 | AI34: 121 | AK34: 123 | AW34: Mean earnings | AX34: 0.5% | AY34: 2.3%
A35: 50th percentile | B35: 100 | C35: 103 | D35: 101 | E35: 102 | F35: 101 | G35: 102 | H35: 105 | J35: 103 | L35: 107 | M35: 105 | N35: 101 | O35: 102 | P35: 103 | Q35: 100 | R35: 101 | S35: 102 | T35: 105 | U35: 107 | V35: 107 | W35: 108 | Y35: 116 | AA35: 119 | AC35: 117 | AE35: 121 | AG35: 125 | AI35: 133 | AK35: 135 | AW35: Federal Minimum Wage | AX35: -0.9% | AY35: 0.9%
A36: 75th percentile | B36: 100 | C36: 102 | D36: 100 | E36: 101 | F36: 101 | G36: 103 | H36: 106 | J36: 104 | L36: 110 | M36: 108 | N36: 104 | O36: 105 | P36: 106 | Q36: 104 | R36: 104 | S36: 107 | T36: 109 | U36: 111 | V36: 112 | W36: 113 | Y36: 122 | AA36: 126 | AC36: 125 | AE36: 129 | AG36: 135 | AI36: 146 | AK36: 149
A37: 90th percentile | B37: 100 | C37: 103 | D37: 100 | E37: 100 | F37: 101 | G37: 102 | H37: 107 | J37: 105 | L37: 110 | M37: 110 | N37: 104 | O37: 105 | P37: 106 | Q37: 104 | R37: 105 | S37: 106 | T37: 108 | U37: 111 | V37: 113 | W37: 114 | Y37: 125 | AA37: 129 | AC37: 129 | AE37: 135 | AG37: 143 | AI37: 156 | AK37: 159
A38: Mean earnings | B38: 100 | C38: 103 | D38: 101 | E38: 102 | F38: 101 | G38: 102 | H38: 106 | J38: 104 | L38: 109 | M38: 106 | N38: 103 | O38: 103 | P38: 104 | Q38: 102 | R38: 103 | S38: 105 | T38: 107 | U38: 109 | V38: 110 | W38: 111 | Y38: 119 | AA38: 122 | AC38: 121 | AE38: 126 | AG38: 131 | AI38: 141 | AK38: 143
A39: Minimum Wage | B39: 100 | C39: 96 | D39: 97 | E39: 100 | F39: 109 | G39: 114 | H39: 105 | J39: 113 | L39: 111 | M39: 109 | N39: 102 | O39: 103 | P39: 101 | Q39: 100 | R39: 103 | S39: 106 | T39: 104 | U39: 104 | V39: 100 | W39: 99 | X39: 101 | Y39: 103 | Z39: 106 | AA39: 106 | AB39: 104 | AC39: 105 | AD39: 106 | AE39: 108 | AF39: =100*AF26/$B26 -> 110 | AG39: =100*AG26/$B26 -> 109 | AH39: =100*AH26/$B26 -> 113 | AI39: =100*AI26/$B26 -> 111 | AJ39: 113 | AK39: 110
B41: =B7 -> 1975 | C41: =C7 -> 1976 | D41: 1977 | E41: 1978 | F41: 1979 | G41: 1980 | H41: 1981 | I41: 1982 | J41: 1983 | K41: 1984 | L41: 1985 | M41: 1986 | N41: 1987 | O41: 1988 | P41: 1989 | Q41: 1990 | R41: 1991 | S41: 1992 | T41: 1993 | U41: 1994 | V41: 1995 | W41: 1996 | X41: 1997 | Y41: 1998 | Z41: 1999 | AA41: 2000 | AB41: 2001 | AC41: 2002 | AD41: 2003 | AE41: 2004 | AF41: 2005 | AG41: 2006 | AH41: 2007 | AI41: 2008 | AJ41: 2009 | AK41: 2010
A42: p90/p10 | B42: =B12/B8 -> 2.02 | C42: =C12/C8 -> 1.99 | D42: 1.96 | E42: 1.95 | F42: 1.99 | G42: 2.04 | H42: 2.06 | J42: 2.04 | L42: 2.09 | M42: 2.16 | N42: 2.12 | O42: 2.19 | P42: 2.19 | Q42: 2.20 | R42: 2.19 | S42: 2.15 | T42: 2.19 | U42: 2.21 | V42: 2.25 | W42: 2.29 | Y42: 2.39 | AA42: 2.43 | AC42: 2.47 | AE42: 2.51 | AG42: 2.63 | AI42: 2.76 | AK42: 2.79
A43: p90/p50 | B43: =B12/B10 -> 1.50 | C43: =C12/C10 -> 1.50 | D43: 1.49 | E43: 1.48 | F43: 1.50 | G43: 1.51 | H43: 1.53 | J43: 1.53 | L43: 1.54 | M43: 1.58 | N43: 1.54 | O43: 1.55 | P43: 1.54 | Q43: 1.55 | R43: 1.56 | S43: 1.56 | T43: 1.54 | U43: 1.55 | V43: 1.58 | W43: 1.58 | Y43: 1.62 | AA43: 1.63 | AC43: 1.66 | AE43: 1.68 | AG43: 1.72 | AI43: 1.76 | AK43: 1.78
A44: p50/p10 | B44: =B10/B8 -> 1.35 | C44: =C10/C8 -> 1.33 | D44: 1.32 | E44: 1.32 | F44: 1.33 | G44: 1.35 | H44: 1.34 | J44: 1.34 | L44: 1.36 | M44: 1.37 | N44: 1.38 | O44: 1.41 | P44: 1.42 | Q44: 1.41 | R44: 1.40 | S44: 1.38 | T44: 1.42 | U44: 1.42 | V44: 1.42 | W44: 1.45 | Y44: 1.47 | AA44: 1.49 | AC44: 1.49 | AE44: 1.49 | AG44: 1.53 | AI44: 1.57 | AK44: 1.57
A45: p75/p25 | B45: =B11/B9 -> 1.45 | C45: 1.43 | D45: 1.42 | E45: 1.42 | F45: 1.46 | G45: 1.47 | H45: 1.48 | J45: 1.48 | L45: 1.51 | M45: 1.53 | N45: 1.53 | O45: 1.54 | P45: 1.56 | Q45: 1.56 | R45: 1.55 | S45: 1.56 | T45: 1.58 | U45: 1.58 | V45: 1.59 | W45: 1.60 | Y45: 1.62 | AA45: 1.64 | AC45: 1.65 | AE45: 1.66 | AG45: 1.70 | AI45: 1.74 | AK45: 1.76
A47: Source: Data as used in figure 18, page 61, Commonwealth Department of Family and Community Services submission to the Senate Community Affairs References Committee Inquiry into Poverty and Financial Hardship
A48: Publication available at: http://www.facsia.gov.au/research/op09/OP_No_09.pdf
A49: Original Attribution: Published and unpublished data from the ABS Survey of Employee Earnings and Hours (EEH Survey), ABS Cat. No. 6306.0. The EEH Survey was not conducted in 1982, 1984, 1997, 1999, 2001
A50: Published table updated from: ABS Electronic tables :Cat. No. 6306.0 Employee Earnings and Hours, Australia, May 2004 Spreadsheet Table 3. Weekly Total Earnings, Distribution of Full-time adult non-managerial employees - States and territories
A51: Published table updated from: ABS Publicaton: Employee Earnings and Hours, Australia, May 2006, Cat No 6306.0 Table 321 Weekly Total Cash Earnings, Distribution of Full-time adult non-managerial employees -by methods of setting pay and non-published data from ABS for 'old basis' estimates for 2006
A52: Published table updated from: ABS Publicaton: Employee Earnings and Hours, Australia,August 2008, Cat No 6306.0 Table 21
A53: Published table updated from: ABS Publicaton: Employee Earnings and Hours, Australia,May 2010, Cat No 6306.0 Data Cubes Table 8 (8. Methods of setting pay, Weekly total cash earnings–Distribution of full-time non-managerial adult employees)

Sheet Data 6 & 7
A2: Top wealth shares in Australia, 1953-1979
D4: Wealth shares | L4: Female share
D5: 0.10% | E5: 0.25% | F5: 0.50% | G5: 1.00% | H5: 2.00% | J5: Top 1% income | L5: 0.10% | M5: 1% | O5: US | P5: UK
A6: 1915-1916 | B6: 1915 | D6: 13.12 | F6: 27.36 | G6: 33.98 | H6: 47.19 | L6: 0.2844 | M6: 0.3418
A7: 1916-1917 | B7: 1916 | O7: 38.12385747
A8: 1917-1918 | B8: 1917 | O8: 35.58257162
A9: 1918-1919 | B9: 1918 | O9: 36.79697306
A10: 1919-1920 | B10: 1919 | O10: 39.92910242
A11: 1920-1921 | B11: 1920 | O11: 37.60525676
A12: 1921-1922 | B12: 1921 | J12: 11.6314 | O12: 35.21958546
A13: 1922-1923 | B13: 1922 | J13: 10.68477 | O13: 36.02042813
A14: 1923-1924 | B14: 1923 | J14: 11.76132 | O14: 35.21836044 | P14: 60.9
A15: 1924-1925 | B15: 1924 | J15: 11.67495 | O15: 36.69534811 | P15: 59.9
A16: 1925-1926 | B16: 1925 | J16: 11.31364 | O16: 36.01994299 | P16: 61
A17: 1926-1927 | B17: 1926 | J17: 11.07482 | O17: 35.14713862 | P17: 57.3
A18: 1927-1928 | B18: 1927 | J18: 11.68292 | O18: 39.20609971 | P18: 59.8
A19: 1928-1929 | B19: 1928 | J19: 11.84713 | O19: 36.49708603 | P19: 57
A20: 1929-1930 | B20: 1929 | J20: 10.66542 | O20: 36.76160051 | P20: 55.5
A21: 1930-1931 | B21: 1930 | J21: 9.749785 | O21: 40.29236184 | P21: 57.9
A22: 1931-1932 | B22: 1931 | J22: 9.343923 | O22: 34.70380695
A23: 1932-1933 | B23: 1932 | J23: 9.267618 | O23: 28.39838457
A24: 1933-1934 | B24: 1933 | J24: 10.32351 | O24: 30.30727778
A25: 1934-1935 | B25: 1934 | J25: 10.35757 | O25: 28.08641736
A26: 1935-1936 | B26: 1935 | J26: 10.53739 | O26: 27.7741834
A27: 1936-1937 | B27: 1936 | J27: 11.28367 | O27: 29.70165934 | P27: 54.2
A28: 1937-1938 | B28: 1937 | J28: 9.834606 | O28: 26.96785691
A29: 1938-1939 | B29: 1938 | J29: 10.38586 | O29: 27.06495228 | P29: 55
A30: 1939-1940 | B30: 1939 | J30: 10.72735 | O30: 25.95080694
A31: 1940-1941 | B31: 1940 | J31: 10.29801 | O31: 25.26924294
A32: 1941-1942 | B32: 1941 | J32: 10.7823 | O32: 25.30486805
A33: 1942-1943 | B33: 1942 | J33: 10.42831 | O33: 23.73933786
A34: 1943-1944 | B34: 1943 | J34: 10.44749 | O34: 24.26115066
A35: 1944-1945 | B35: 1944 | J35: 9.031387 | O35: 25.49049403
A36: 1945-1946 | B36: 1945 | J36: 8.436974 | O36: 24.65163197
A37: 1946-1947 | B37: 1946 | J37: 9.50908 | O37: 24.49132478
A38: 1947-1948 | B38: 1947 | J38: 10.62005 | O38: 24.27651833
A39: 1948-1949 | B39: 1948 | J39: 10.79862 | O39: 23.04202337
A40: 1949-1950 | B40: 1949 | J40: 11.25572 | O40: 22.58929956
A41: 1950-1951 | B41: 1950 | J41: 14.12984 | O41: 22.77556464 | P41: 47.2
A42: 1951-1952 | B42: 1951 | J42: 9.084048 | P42: 45.8
A43: 1952-1953 | B43: 1952 | J43: 8.989485 | P43: 43
A44: 1953-1954 | B44: 1953 | D44: 4.811 | F44: 10.72093948 | G44: 14.57631596 | H44: 20.12863608 | J44: 8.711291 | L44: 0.2181219454 | M44: 0.3082203501 | O44: =0.237741749383535*100 -> 23.77417494 | P44: 43.6
A45: 1954-1955 | B45: 1954 | D45: 2.46 | F45: 7.04 | G45: 10.70716578 | H45: 16.06778803 | J45: 8.059411 | L45: 0.3327704028 | M45: 0.3497484992 | O45: =0.231849829713373*100 -> 23.18498297 | P45: 45.3
A46: 1955-1956 | B46: 1955 | D46: 2.503062335 | F46: 6.634075744 | G46: 9.918428254 | H46: 14.13973759 | J46: 7.542427 | L46: 0.4295502061 | M46: 0.3738748543 | P46: 44.5
A47: 1956-1957 | B47: 1956 | D47: 3.706505253 | F47: 8.394193968 | G47: 12.44452626 | H47: 17.46822248 | J47: 7.905793 | L47: 0.5978987908 | M47: 0.4963485849 | O47: =0.247465487781866*100 -> 24.74654878 | P47: 44.5
A48: 1957-1958 | B48: 1957 | D48: 2.344954384 | F48: 6.338515881 | G48: 9.423176698 | H48: 14.47352593 | J48: 7.040835 | L48: 0.3827575938 | M48: 0.3388311281 | P48: 43.4
A49: 1958-1959 | B49: 1958 | D49: 2.30 | F49: 5.94 | G49: 9.603330617 | H49: 14.12053052 | J49: 7.443652 | L49: 0.5565385115 | M49: 0.4418194182 | O49: =0.241808696229132*100 -> 24.18086962 | P49: 41.4
A50: 1959-1960 | B50: 1959 | D50: 2.24 | F50: 5.77 | G50: 9.59 | H50: 14.16 | J50: 7.394512 | L50: 0.5802966499 | M50: 0.4707494809 | P50: 41.4
A51: 1960-1961 | B51: 1960 | D51: 2.13 | F51: 5.71 | G51: 9.39 | H51: 14.02 | J51: 7.092422 | L51: 0.5727077637 | M51: 0.431460185 | O51: =0.252484410293561*100 -> 25.24844103 | P51: 33.9
A52: 1961-1962 | B52: 1961 | D52: 1.88 | F52: 5.70 | G52: 9.05 | H52: 14.45 | J52: 7.095926 | L52: 0.5357319427 | M52: 0.4686498367 | P52: 36.5
A53: 1962-1963 | B53: 1962 | D53: 1.816219494 | F53: 4.23 | G53: 7.85 | H53: 13.15 | J53: 7.226224 | L53: 0.5371227243 | M53: 0.4499138395 | O53: =0.243923555594111*100 -> 24.39235556 | P53: 31.4
A54: 1963-1964 | B54: 1963 | D54: 2.23 | F54: 5.36 | G54: 9.03 | H54: 13.44 | J54: 7.35788 | L54: 0.6496059673 | M54: 0.5046032136
A55: 1964-1965 | B55: 1964 | D55: 2.65 | F55: 5.06 | G55: 8.83 | H55: 13.54 | J55: 6.838895 | L55: 0.5011270492 | M55: 0.467625624 | P55: 34.5
A56: 1965-1966 | B56: 1965 | D56: 2.55 | F56: 5.03 | G56: 8.88 | H56: 13.49 | J56: 6.693832 | L56: 0.5014279769 | M56: 0.480061233 | O56: =0.246976731440438*100 -> 24.69767314 | P56: 33
A57: 1966-1967 | B57: 1966 | D57: 2.46 | F57: 4.55 | G57: 7.84 | H57: 12.46 | J57: 6.474776 | L57: 0.5018031823 | M57: 0.5000535649 | P57: 30.6
A58: 1967-1968 | B58: 1967 | D58: 2.21 | F58: 3.14 | G58: 6.94 | H58: 11.92 | J58: 6.582019 | L58: 0.501945616 | M58: 0.5025989907 | P58: 31.4
A59: 1968-1969 | B59: 1968 | D59: 1.92 | F59: 2.81 | G59: 6.33 | H59: 11.03 | J59: 6.380515 | L59: 0.5020288564 | M59: 0.5513316079 | P59: 33.6
A60: 1969-1970 | B60: 1969 | D60: 2.31 | F60: 5.46 | G60: 9.03 | H60: 13.78 | J60: 6.247537 | L60: 0.391606747 | M60: 0.311795241 | O60: =0.228618970183478*100 -> 22.86189702 | P60: 31.1
A61: 1970-1971 | B61: 1970 | D61: 2.26 | F61: 5.79 | G61: 8.92 | H61: 12.98 | J61: 5.915835 | L61: 0.3894914596 | M61: 0.3388211226 | P61: 29.7
A62: 1971-1972 | B62: 1971 | D62: 2.35 | F62: 5.20 | G62: 7.91 | H62: 12.29 | J62: 5.923273 | L62: 0.3593734445 | M62: 0.3181941606 | P62: 28.4
A63: 1972-1973 | B63: 1972 | D63: 5.24 | F63: 7.93 | G63: 10.00 | H63: 13.83 | J63: 6.063846 | L63: 0.1469776148 | M63: 0.2787622721 | O63: =0.231314623056063*100 -> 23.13146231 | P63: 31.7
A64: 1973-1974 | B64: 1973 | D64: 1.76 | F64: 4.22 | G64: 6.79 | H64: 9.955479387 | J64: 5.67231 | L64: 0.3947307731 | M64: 0.3485090011
A65: 1974-1975 | B65: 1974 | D65: 2.27 | F65: 5.87 | G65: 8.880908383 | H65: 13.1883549 | J65: 5.221173 | L65: 0.3433130304 | M65: 0.3833908102
A66: 1975-1976 | B66: 1975 | D66: 2.14 | F66: 5.16 | G66: 7.83 | H66: 11.80 | J66: 5.134846 | L66: 0.2886241405 | M66: 0.2709502165
A67: 1976-1977 | B67: 1976 | D67: 1.49 | F67: 4.25 | G67: 6.77 | H67: 9.74 | J67: 4.985606 | L67: 0.3992408112 | M67: 0.4253746785 | O67: =0.193212456535152*100 -> 19.32124565 | P67: 21
A68: 1977-1978 | B68: 1977 | D68: 1.81 | F68: 4.95 | G68: 7.36 | H68: 11.11 | J68: 4.923252 | L68: 0.4784913918 | M68: 0.4490202203 | P68: 22
A69: 1978-1979 | B69: 1978 | D69: 1.73 | F69: 4.52 | G69: 6.62 | H69: 9.262345643 | J69: 4.870783 | L69: 0.5123060409 | M69: 0.4449849756 | P69: 20
A70: 1979-1980 | B70: 1979 | J70: 4.825983 | P70: 19
A71: 1980-1981 | B71: 1980 | J71: 4.78862 | P71: 18
A72: 1981-1982 | B72: 1981 | J72: 4.61483 | P72: 18
A73: 1982-1983 | B73: 1982 | J73: 4.668778 | O73: 19.05633246 | P73: 20
A74: 1983-1984 | B74: 1983 | J74: 4.682786 | O74: 21.07223374 | P74: 18 | R74: year | S74: gini | T74: top_quartile_share | U74: top_001 | V74: top_0001 | W74: female_share
A75: 1984-1985 | B75: 1984 | J75: 4.75242 | O75: 20.95005902 | P75: 18 | R75: 1984 | S75: 45.47941 | T75: 59.19046 | U75: 0.900696 | V75: 0.2887858 | W75: 0.6591958
A76: 1985-1986 | B76: 1985 | J76: 5.018337 | O76: 22.35044052 | P76: 18 | R76: 1985 | S76: 41.44714 | T76: 55.65483 | U76: 1.048716 | V76: 0.3091848 | W76: 0.544112
A77: 1986-1987 | B77: 1986 | J77: 5.393577 | O77: 22.65572046 | P77: 18 | R77: 1986 | S77: 47.88187 | T77: 61.38424 | U77: 1.534465 | V77: 0.5365226 | W77: 0
A78: 1987-1988 | B78: 1987 | D78: 2.12 | F78: 6.86 | G78: 9.66 | H78: 15.35 | J78: 6.667771 | L78: 0 | M78: 0.32298 | O78: 21.56679682 | P78: 17 | R78: 1987 | S78: 52.53773 | T78: 65.45534 | U78: 2.420818 | V78: 0.9984761 | W78: 0
A79: 1987-88 | B79: 1988 | J79: 8.41053 | O79: 21.70484076 | P79: 17 | R79: 1988 | S79: 48.02995 | T79: 61.93651 | U79: 1.918371 | V79: 0.6531268 | W79: 0.3757443
A80: 1989-1990 | B80: 1989 | J80: 6.430696 | O80: 21.9634536 | P80: 18 | R80: 1989 | S80: 47.93149 | T80: 61.7698 | U80: 1.885817 | V80: 0.6734477 | W80: 0
A81: 1990-1991 | B81: 1990 | J81: 6.336555 | O81: 20.86328932 | P81: 17 | R81: 1990 | S81: 51.2108 | T81: 64.15987 | U81: 1.713804 | V81: 0.6515244 | W81: 1.192677
A82: 1991-1992 | B82: 1991 | J82: 6.412619 | O82: 21.53543554 | P82: 18 | R82: 1991 | S82: 54.86719 | T82: 67.13576 | U82: 1.502546 | V82: 0.6327946 | W82: 5.321015
A83: 1992-1993 | B83: 1992 | J83: 6.546458 | O83: 21.17847824 | P83: 18 | R83: 1992 | S83: 59.48923 | T83: 70.99873 | U83: 1.588223 | V83: 0.7746478 | W83: 4.033364
A84: 1993-1994 | B84: 1993 | J84: 6.955285 | O84: 21.31082571 | P84: 19 | R84: 1993 | S84: 62.01202 | T84: 73.03511 | U84: 1.732596 | V84: 0.9302482 | W84: 3.717897
A85: 1994-1995 | B85: 1994 | J85: 7.130435 | O85: 21.58100262 | P85: 19 | R85: 1994 | S85: 62.51778 | T85: 73.58827 | U85: 2.166479 | V85: 1.163723 | W85: 2.606556
A86: 1995-1996 | B86: 1995 | J86: 7.22511 | O86: 21.54059175 | P86: 20 | R86: 1995 | S86: 58.95486 | T86: 70.42178 | U86: 2.084334 | V86: 1.006002 | W86: 2.702602
A87: 1996-1997 | B87: 1996 | J87: 7.235911 | O87: 21.44837784 | P87: 22 | R87: 1996 | S87: 50.52097 | T87: 63.15935 | U87: 1.908511 | V87: 0.7286937 | W87: 4.312813
A88: 1997-1998 | B88: 1997 | J88: 7.808034 | O88: 21.2394837 | P88: 22 | R88: 1997 | S88: 50.47374 | T88: 62.98139 | U88: 1.859323 | V88: 0.7145833 | W88: 2.110858
A89: 1998-99 | B89: 1998 | J89: 7.836614 | O89: 21.69575574 | P89: 23 | R89: 1998 | S89: 51.91409 | T89: 63.77682 | U89: 2.105416 | V89: 0.8356748 | W89: 2.696153
A90: 1999-2000 | B90: 1999 | J90: 8.84167 | O90: 21.68242899 | P90: 23 | R90: 1999 | S90: 53.40702 | T90: 65.54327 | U90: 2.313845 | V90: 0.9858936 | W90: 3.937748
A91: 2000-2001 | B91: 2000 | J91: 9.027678 | O91: 20.78723716 | P91: 22 | R91: 2000 | S91: 53.02703 | T91: 64.89812 | U91: 2.390125 | V91: 1.01918 | W91: 6.641746
A92: 2001-2002 | B92: 2001 | J92: 8.308864 | P92: 21 | R92: 2001 | S92: 52.08104 | T92: 64.24529 | U92: 2.160422 | V92: 0.9391995 | W92: 2.673976
A93: 2002-2003 | B93: 2002 | D93: 3.02 | F93: 7.82 | G93: 11.76 | I93: Roger | J93: 8.785147 | L93: 0.52027 | M93: 0.4857 | P93: 19 | R93: 2002 | S93: 51.86216 | T93: 64.01871 | U93: 2.101779 | V93: 0.8985258 | W93: 1.829362
A94: 2003-2004 | B94: 2003 | J94: 9.177134 | R94: 2003 | S94: 51.18722 | T94: 62.66768 | U94: 1.874076 | V94: 0.7973256 | W94: 1.855213
A95: 2004-2005 | B95: 2004 | J95: 8.887907 | P95: 21 | R95: 2004 | S95: 50.783 | T95: 62.55754 | U95: 1.852425 | V95: 0.779056 | W95: 1.986584
A96: 2005-2006 | B96: 2005 | J96: 9.116723 | R96: 2005 | S96: 50.14216 | T96: 62.24541 | U96: 2.021559 | V96: 0.823264 | W96: 2.204809
A97: 2006-2007 | B97: 2006 | D97: 5.56 | F97: 11.465 | G97: 16 | I97: Roger | J97: 10.05767 | L97: 0.4916 | M97: 0.5022422 | R97: 2006 | S97: 49.96559 | T97: 62.7947 | U97: 2.167773 | V97: 0.8776938 | W97: 3.548715
A98: 2007-2008 | B98: 2007 | J98: 9.838809 | R98: 2007 | S98: 50.74756 | T98: 64.01763 | U98: 2.471225 | V98: 1.052319 | W98: 4.979286
A99: 2008-2009 | B99: 2008 | J99: 8.591668 | R99: 2008 | S99: 51.17314 | T99: 64.24118 | U99: 2.537582 | V99: 1.063935 | W99: 5.604337
A100: 2009-2010 | B100: 2009 | J100: 8.878251 | R100: 2009 | S100: 47.4193 | T100: 59.99421 | U100: 2.162551 | V100: 0.7977394 | W100: 5.946946
B101: 2010 | D101: 2.06 | F101: 7.27 | G101: 11.4 | I101: Roger | L101: 0.51 | M101: 0.50404 | R101: 2010 | S101: 48.52322 | T101: 61.50563 | U101: 2.220797 | V101: 0.8990119 | W101: 6.082679
R102: 2011 | S102: 51.82064 | T102: 64.51373 | U102: 2.601261 | V102: 1.176354 | W102: 8.73666
R103: 2012 | S103: 58.07441 | T103: 69.01012 | U103: 2.942783 | V103: 1.534997 | W103: 21.39759

Sheet Data 8
A1: Country | B1: Gini
A2: Slovenia | B2: 0.236
A3: Denmark | B3: 0.248
A4: Norway | B4: 0.25
A5: Czech Republic | B5: 0.256
A6: Slovak Republic | B6: 0.257
A7: Belgium | B7: 0.259
A8: Finland | B8: 0.259
A9: Sweden | B9: 0.259
A10: Austria | B10: 0.261
A11: Hungary | B11: 0.272
A12: Luxembourg | B12: 0.288
A13: France | B13: 0.293
A14: Ireland | B14: 0.293
A15: Netherlands | B15: 0.294
A16: Germany | B16: 0.295
A17: Iceland | B17: 0.301
A18: Switzerland | B18: 0.303
A19: Poland | B19: 0.305
A20: Greece | B20: 0.307
A21: Korea | B21: 0.314
A22: Estonia | B22: 0.315
A23: Spain | B23: 0.317
A24: Canada | B24: 0.324
A25: Japan | B25: 0.329
A26: New Zealand | B26: 0.33
A27: Australia | B27: 0.336
A28: Italy | B28: 0.337
A29: United Kingdom | B29: 0.342
A30: Portugal | B30: 0.353
A31: Israel | B31: 0.371
A32: United States | B32: 0.378
A33: Turkey | B33: 0.409
A34: Mexico | B34: 0.476
A35: Chile | B35: 0.494
A37: =DotStatQuery(B37) ->  | B37: <?xml version="1.0"?><WebTableParameter xmlns:xsi="http://www.w3.org/2001/XMLSchema-instance" xmlns:xsd="http://www.w3.org/2001/XMLSchema" xmlns=""><DataTable Code="INEQUALITY" HasMetadata="true"><Name LocaleIsoCode="en">Income distribution - Inequality</Name><Dimension Code="PER" HasMetadata="true" Display="labels"><Name LocaleIsoCode="en">Period</Name><Member Code="MID70S"><Name LocaleIsoCode="en">mid-70s</Name></Member><Member Code="MID80S"><Name LocaleIsoCode="en">mid-80s</Name></Member><Member Code="AROUND1990"><Name LocaleIsoCode="en">around 1990</Name></Member><Member Code="MID90S"><Name LocaleIsoCode="en">mid-90s</Name></Member><Member Code="AROUND2000"><Name LocaleIsoCode="en">around 2000</Name></Member><Member Code="MID2000S"><Name LocaleIsoCode="en">mid-2000s</Name></Member><Member Code="LATE2000S"><Name LocaleIsoCode="en">late-2000s</Name></Member></Dimension><Dimension Code="INC" Display="labels"><Name LocaleIsoCode="en">Income and population measures</Name><Member Code="RMN_DI" HasMetadata="true"><Name LocaleIsoCode="en">Real mean income</Name></Member><Member Code="RMD_MI" HasMetadata="true"><Name LocaleIsoCode="en">Real median income</Name></Member><Member Code="MLD_DI"><Name LocaleIsoCode="en">Mean log deviation</Name></Member><Member Code="SCV_DI"><Name LocaleIsoCode="en">Standard coefficient of variation</Name></Member><Member Code="GINI_DI" HasMetadata="true" IsDisplayed="true"><Name LocaleIsoCode="en">Gini coefficient (after taxes and transfers)</Name></Member><Member Code="GINI_MI" HasMetadata="true"><Name LocaleIsoCode="en">Gini coefficient (before taxes and transfers)</Name></Member><Member Code="NB_IND"><Name LocaleIsoCode="en">Number of individuals</Name></Member><Member Code="NB_HSHOLD"><Name LocaleIsoCode="en">Number of households</Name></Member></Dimension><Dimension Code="DEF" HasMetadata="true" Display="labels"><Name LocaleIsoCode="en">Definition</Name><Member Code="CUR_DEF"><Name LocaleIsoCode="en">Current definition</Name></Member><Member Code="OLD_DEF"><Name LocaleIsoCode="en">Old definition</Name></Member></Dimension><Dimension Code="AGE" Display="labels"><Name LocaleIsoCode="en">Age</Name><Member Code="TOT_POP"><Name LocaleIsoCode="en">Total population</Name></Member><Member Code="18-65"><Name LocaleIsoCode="en">Working age population: 18 - 65</Name></Member><Member Code="ABOVE-65"><Name LocaleIsoCode="en">Retirement age population: above 65</Name></Member></Dimension><Dimension Code="COU" CommonCode="LOCATION" Display="labels"><Name LocaleIsoCode="en">Country</Name><Member Code="AUS"><Name LocaleIsoCode="en">Australia</Name></Member><Member Code="AUT"><Name LocaleIsoCode="en">Austria</Name></Member><Member Code="BEL"><Name LocaleIsoCode="en">Belgium</Name></Member><Member Code="CAN"><Name LocaleIsoCode="en">Canada</Name></Member><Member Code="CHL"><Name LocaleIsoCode="en">Chile</Name></Member><Member Code="CZE"><Name LocaleIsoCode="en">Czech Republic</Name></Member><Member Code="DNK"><Name LocaleIsoCode="en">Denmark</Name></Member><Member Code="EST"><Name LocaleIsoCode="en">Estonia</Name></Member><Member Code="FIN"><Name LocaleIsoCode="en">Finland</Name></Member><Member Code="FRA"><Name LocaleIsoCode="en">France</Name></Member><Member Code="DEU" HasMetadata="true"><Name LocaleIsoCode="en">Germany</Name></Member><Member Code="GRC"><Name LocaleIsoCode="en">Greece</Name></Member><Member Code="HUN"><Name LocaleIsoCode="en">Hungary</Name></Member><Member Code="ISL"><Name LocaleIsoCode="en">Iceland</Name></Member><Member Code="IRL"><Name LocaleIsoCode="en">Ireland</Name></Member><Member Code="ISR" HasMetadata="true"><Name LocaleIsoCode="en">Israel</Name></Member><Member Code="ITA"><Name LocaleIsoCode="en">Italy</Name></Member><Member Code="JPN"><Name LocaleIsoCode="en">Japan</Name></Member><Member Code="KOR"><Name LocaleIsoCode="en">Korea</Name></Member><Member Code="LUX"><Name LocaleIsoCode="en">Luxembourg</Name></Member><Member Code="MEX"><Name LocaleIsoCode="en">Mexico</Name></Member><Member Code="NLD"><Name LocaleIsoCode="en">Netherlands</Name></Member><Member Code="NZL"><Name LocaleIsoCode="en">New Zealand</Name></Member><Member Code="NOR"><Name LocaleIsoCode="en">Norway</Name></Member><Member Code="POL"><Name LocaleIsoCode="en">Poland</Name></Member><Member Code="PRT"><Name LocaleIsoCode="en">Portugal</Name></Member><Member Code="SVK"><Name LocaleIsoCode="en">Slovak Republic</Name></Member><Member Code="SVN"><Name LocaleIsoCode="en">Slovenia</Name></Member><Member Code="ESP"><Name LocaleIsoCode="en">Spain</Name></Member><Member Code="SWE"><Name LocaleIsoCode="en">Sweden</Name></Member><Member Code="CHE"><Name LocaleIsoCode="en">Switzerland</Name></Member><Member Code="TUR"><Name LocaleIsoCode="en">Turkey</Name></Member><Member Code="GBR"><Name LocaleIsoCode="en">United Kingdom</Name></Member><Member Code="USA"><Name LocaleIsoCode="en">United States</Name></Member><Member Code="OECD"><Name LocaleIsoCode="en">OECD Total</Name></Member></Dimension><Tabulation Axis="horizontal"><Dimension Code="AGE" /><Dimension Code="PER" /></Tabulation><Tabulation Axis="vertical"><Dimension Code="COU" CommonCode="LOCATION" /></Tabulation><Tabulation Axis="page"><Dimension Code="INC" /><Dimension Code="DEF" /></Tabulation><Formatting><Labels LocaleIsoCode="en" /><Power>0</Power><Decimals>-1</Decimals><SkipEmptyLines>false</SkipEmptyLines><FullyFillPage>false</FullyFillPage><SkipEmptyCols>false</SkipEmptyCols><SkipLineHierarchy>false</SkipLineHierarchy><SkipColHierarchy>false</SkipColHierarchy><Page>1</Page></Formatting></DataTable><Format><ShowEmptyAxes>true</ShowEmptyAxes><Page>1</Page><EnableSort>true</EnableSort><IncludeFlagColumn>true</IncludeFlagColumn><DoBarChart>false</DoBarChart><MaxBarChartLen>65</MaxBarChartLen></Format><Query><AbsoluteUri>http://stats.oecd.org//View.aspx?QueryId=26067&amp;QueryType=Public&amp;Lang=en</AbsoluteUri></Query></WebTableParameter>
A38: Dataset: Income distribution - Inequality
A39: Income and population measures | C39: Gini coefficient (after taxes and transfers)
A40: Definition | C40: Current definition
A41: Age | C41: Total population | Q41: Working age population: 18 - 65 | AE41: Retirement age population: above 65
A42: Period | C42: mid-70s | E42: mid-80s | G42: around 1990 | I42: mid-90s | K42: around 2000 | M42: mid-2000s | O42: late-2000s | Q42: mid-70s | S42: mid-80s | U42: around 1990 | W42: mid-90s | Y42: around 2000 | AA42: mid-2000s | AC42: late-2000s | AE42: mid-70s | AG42: mid-80s | AI42: around 1990 | AK42: mid-90s | AM42: around 2000 | AO42: mid-2000s | AQ42: late-2000s
A43: Country
A44: Australia | D44: .. | F44: .. | H44: .. | J44: 0.309 | L44: 0.317 | N44: 0.315 | P44: 0.336 | R44: .. | T44: .. | V44: .. | X44: 0.301 | Z44: 0.292 | AB44: 0.305 | AD44: 0.324 | AF44: .. | AH44: .. | AJ44: .. | AL44: 0.26 | AN44: 0.308 | AP44: 0.303 | AR44: 0.328
A45: Austria | D45: .. | F45: 0.236 | H45: .. | J45: 0.238 | L45: 0.252 | N45: 0.265 | P45: 0.261 | R45: .. | T45: 0.225 | V45: .. | X45: 0.233 | Z45: 0.246 | AB45: 0.267 | AD45: 0.261 | AF45: .. | AH45: 0.245 | AJ45: .. | AL45: 0.249 | AN45: 0.243 | AP45: 0.28 | AR45: 0.26
A46: Belgium | D46: .. | F46: 0.274 | H46: .. | J46: 0.287 | L46: 0.289 | N46: 0.271 | P46: 0.259 | R46: .. | T46: .. | V46: .. | X46: 0.281 | Z46: 0.284 | AB46: 0.265 | AD46: 0.256 | AF46: .. | AH46: .. | AJ46: .. | AL46: 0.314 | AN46: 0.287 | AP46: 0.236 | AR46: 0.232
A47: Canada | D47: 0.304 | F47: 0.293 | H47: 0.287 | J47: 0.289 | L47: 0.318 | N47: 0.317 | P47: 0.324 | R47: 0.296 | T47: 0.291 | V47: 0.287 | X47: 0.293 | Z47: 0.326 | AB47: 0.322 | AD47: 0.328 | AF47: 0.35 | AH47: 0.293 | AJ47: 0.272 | AL47: 0.261 | AN47: 0.26 | AP47: 0.273 | AR47: 0.28
A48: Chile | D48: .. | F48: .. | H48: .. | J48: 0.527 | L48: .. | N48: 0.503 | P48: 0.494 | R48: .. | T48: .. | V48: .. | X48: 0.522 | Z48: .. | AB48: 0.499 | AD48: 0.496 | AF48: .. | AH48: .. | AJ48: .. | AL48: 0.499 | AN48: .. | AP48: 0.487 | AR48: 0.474
A49: Czech Republic | D49: .. | F49: .. | H49: 0.232 | J49: 0.257 | L49: 0.26 | N49: 0.268 | P49: 0.256 | R49: .. | T49: .. | V49: 0.227 | X49: 0.251 | Z49: 0.26 | AB49: 0.267 | AD49: 0.253 | AF49: .. | AH49: .. | AJ49: 0.192 | AL49: 0.209 | AN49: 0.177 | AP49: 0.198 | AR49: 0.188
A50: Denmark | D50: .. | F50: 0.221 | H50: 0.226 | J50: 0.215 | L50: 0.226 | N50: 0.232 | P50: 0.248 | R50: .. | T50: 0.209 | V50: 0.215 | X50: 0.206 | Z50: 0.219 | AB50: 0.228 | AD50: 0.243 | AF50: .. | AH50: 0.197 | AJ50: 0.201 | AL50: 0.186 | AN50: 0.201 | AP50: 0.201 | AR50: 0.218
A51: Estonia | D51: .. | F51: .. | H51: .. | J51: .. | L51: .. | N51: 0.349 | P51: 0.315 | R51: .. | T51: .. | V51: .. | X51: .. | Z51: .. | AB51: 0.348 | AD51: 0.306 | AF51: .. | AH51: .. | AJ51: .. | AL51: .. | AN51: .. | AP51: 0.267 | AR51: 0.259
A52: Finland | D52: 0.235 | F52: 0.209 | H52: 0 | J52: 0.218 | L52: 0.247 | N52: 0.254 | P52: 0.259 | R52: 0.23 | T52: 0.206 | V52: 0 | X52: 0.224 | Z52: 0.247 | AB52: 0.253 | AD52: 0.258 | AF52: 0.284 | AH52: 0.218 | AJ52: 0 | AL52: 0.209 | AN52: 0.236 | AP52: 0.24 | AR52: 0.24
A53: France | D53: .. | F53: 0.3 | H53: 0.29 | J53: 0.277 | L53: 0.287 | N53: 0.288 | P53: 0.293 | R53: .. | T53: 0.3 | V53: 0.29 | X53: 0.28 | Z53: 0.288 | AB53: 0.288 | AD53: 0.292 | AF53: .. | AH53: 0.29 | AJ53: 0.29 | AL53: 0.262 | AN53: 0.284 | AP53: 0.283 | AR53: 0.291
A54: Germany | D54: .. | F54: 0.251 | H54: 0.256 | J54: 0.266 | L54: 0.264 | N54: 0.285 | P54: 0.295 | R54: .. | T54: 0.246 | V54: 0.25 | X54: 0.267 | Z54: 0.262 | AB54: 0.288 | AD54: 0.3 | AF54: .. | AH54: 0.261 | AJ54: 0.252 | AL54: 0.254 | AN54: 0.262 | AP54: 0.27 | AR54: 0.284
A55: Greece | D55: 0.413 | F55: 0.336 | H55: .. | J55: 0.336 | L55: 0.345 | N55: 0.321 | P55: 0.307 | R55: 0.405 | T55: 0.33 | V55: .. | X55: 0.322 | Z55: 0.335 | AB55: 0.311 | AD55: 0.307 | AF55: 0.473 | AH55: 0.373 | AJ55: .. | AL55: 0.384 | AN55: 0.372 | AP55: 0.333 | AR55: 0.296
A56: Hungary | D56: .. | F56: .. | H56: 0.273 | J56: 0.294 | L56: 0.293 | N56: 0.291 | P56: 0.272 | R56: .. | T56: .. | V56: 0.266 | X56: 0.297 | Z56: 0.296 | AB56: 0.3 | AD56: 0.279 | AF56: .. | AH56: .. | AJ56: 0.273 | AL56: 0.244 | AN56: 0.234 | AP56: 0.22 | AR56: 0.2
A57: Iceland | D57: .. | F57: .. | H57: .. | J57: .. | L57: .. | N57: 0.257 | P57: 0.301 | R57: .. | T57: .. | V57: .. | X57: .. | Z57: .. | AB57: 0.261 | AD57: 0.301 | AF57: .. | AH57: .. | AJ57: .. | AL57: .. | AN57: .. | AP57: 0.226 | AR57: 0.326
A58: Ireland | D58: .. | F58: 0.331 | H58: .. | J58: 0.324 | L58: 0.304 | N58: 0.314 | P58: 0.293 | R58: .. | T58: 0.338 | V58: .. | X58: 0.321 | Z58: 0.29 | AB58: 0.305 | AD58: 0.289 | AF58: .. | AH58: 0.289 | AJ58: .. | AL58: 0.288 | AN58: 0.329 | AP58: 0.267 | AR58: 0.285
A59: Israel | D59: .. | F59: 0.326 | H59: 0.329 | J59: 0.338 | L59: 0.347 | N59: 0.378 | P59: 0.371 | R59: .. | T59: 0.317 | V59: 0.321 | X59: 0.329 | Z59: 0.34 | AB59: 0.374 | AD59: 0.359 | AF59: .. | AH59: 0.188 | AJ59: 0.313 | AL59: 0.375 | AN59: 0.373 | AP59: 0.391 | AR59: 0.398
A60: Italy | D60: .. | F60: 0.309 | H60: 0.297 | J60: 0.348 | L60: 0.343 | N60: 0.352 | P60: 0.337 | R60: .. | T60: 0.31 | V60: 0.293 | X60: 0.348 | Z60: 0.341 | AB60: 0.348 | AD60: 0.334 | AF60: .. | AH60: 0.305 | AJ60: 0.301 | AL60: 0.321 | AN60: 0.335 | AP60: 0.311 | AR60: 0.321
A61: Japan | D61: .. | F61: 0.304 | H61: .. | J61: 0.323 | L61: 0.337 | N61: 0.321 | P61: 0.329 | R61: .. | T61: 0.304 | V61: .. | X61: 0.319 | Z61: 0.334 | AB61: 0.314 | AD61: 0.323 | AF61: .. | AH61: 0.369 | AJ61: .. | AL61: 0.369 | AN61: 0.359 | AP61: 0.343 | AR61: 0.348
A62: Korea | D62: .. | F62: .. | H62: .. | J62: .. | L62: .. | N62: 0.306 | P62: 0.314 | R62: .. | T62: .. | V62: .. | X62: .. | Z62: .. | AB62: 0.295 | AD62: 0.3 | AF62: .. | AH62: .. | AJ62: .. | AL62: .. | AN62: .. | AP62: 0.392 | AR62: 0.405
A63: Luxembourg | D63: .. | F63: 0.247 | H63: .. | J63: 0.259 | L63: 0.261 | N63: 0.258 | P63: 0.288 | R63: .. | T63: 0.239 | V63: .. | X63: 0.261 | Z63: 0.262 | AB63: 0.259 | AD63: 0.292 | AF63: .. | AH63: 0.265 | AJ63: .. | AL63: 0.247 | AN63: 0.249 | AP63: 0.225 | AR63: 0.229
A64: Mexico | D64: .. | F64: 0.452 | H64: .. | J64: 0.519 | L64: 0.507 | N64: 0.474 | P64: 0.476 | R64: .. | T64: 0.447 | V64: .. | X64: 0.519 | Z64: 0.502 | AB64: 0.469 | AD64: 0.469 | AF64: .. | AH64: 0.493 | AJ64: .. | AL64: 0.554 | AN64: 0.558 | AP64: 0.56 | AR64: 0.524
A65: Netherlands | D65: 0.263 | F65: 0.272 | H65: 0.292 | J65: 0.297 | L65: 0.292 | N65: 0.284 | P65: 0.294 | R65: 0.262 | T65: 0.273 | V65: 0.29 | X65: 0.298 | Z65: 0.293 | AB65: 0.285 | AD65: 0.297 | AF65: 0.27 | AH65: 0.265 | AJ65: 0.289 | AL65: 0.274 | AN65: 0.263 | AP65: 0.255 | AR65: 0.253
A66: New Zealand | D66: .. | F66: 0.271 | H66: 0.318 | J66: 0.335 | L66: 0.339 | N66: 0.335 | P66: 0.33 | R66: .. | T66: 0.264 | V66: 0.313 | X66: 0.329 | Z66: 0.331 | AB66: 0.329 | AD66: 0.323 | AF66: .. | AH66: 0.235 | AJ66: 0.257 | AL66: 0.245 | AN66: 0.282 | AP66: 0.233 | AR66: 0.305
A67: Norway | D67: .. | F67: 0.222 | H67: .. | J67: 0.243 | L67: 0.261 | N67: 0.276 | P67: 0.25 | R67: .. | T67: 0.211 | V67: .. | X67: 0.237 | Z67: 0.26 | AB67: 0.284 | AD67: 0.256 | AF67: .. | AH67: 0.222 | AJ67: .. | AL67: 0.243 | AN67: 0.217 | AP67: 0.248 | AR67: 0.222
A68: Poland | D68: .. | F68: .. | H68: .. | J68: .. | L68: 0.316 | N68: 0.349 | P68: 0.305 | R68: .. | T68: .. | V68: .. | X68: .. | Z68: 0.318 | AB68: 0.357 | AD68: 0.31 | AF68: .. | AH68: .. | AJ68: .. | AL68: .. | AN68: 0.248 | AP68: 0.257 | AR68: 0.256
A69: Portugal | D69: 0.354 | F69: .. | H69: 0.329 | J69: 0.359 | L69: 0.356 | N69: 0.385 | P69: 0.353 | R69: .. | T69: .. | V69: 0.317 | X69: 0.342 | Z69: 0.348 | AB69: 0.378 | AD69: 0.347 | AF69: .. | AH69: .. | AJ69: 0.376 | AL69: 0.376 | AN69: 0.375 | AP69: 0.376 | AR69: 0.344
A70: Slovak Republic | D70: .. | F70: .. | H70: .. | J70: .. | L70: .. | N70: 0.268 | P70: 0.257 | R70: .. | T70: .. | V70: .. | X70: .. | Z70: .. | AB70: 0.266 | AD70: 0.253 | AF70: .. | AH70: .. | AJ70: .. | AL70: .. | AN70: .. | AP70: 0.204 | AR70: 0.206
A71: Slovenia | D71: .. | F71: .. | H71: .. | J71: .. | L71: .. | N71: 0.246 | P71: 0.236 | R71: .. | T71: .. | V71: .. | X71: .. | Z71: .. | AB71: 0.243 | AD71: 0.23 | AF71: .. | AH71: .. | AJ71: .. | AL71: .. | AN71: .. | AP71: 0.266 | AR71: 0.262
A72: Spain | D72: .. | F72: 0.371 | H72: 0.337 | J72: 0.343 | L72: 0.342 | N72: 0.319 | P72: 0.317 | R72: .. | T72: 0.302 | V72: 0.27 | X72: 0.278 | Z72: 0.274 | AB72: 0.307 | AD72: 0.313 | AF72: .. | AH72: 0.254 | AJ72: 0.24 | AL72: 0.243 | AN72: 0.259 | AP72: 0.31 | AR72: 0.286
A73: Sweden | D73: 0.212 | F73: 0.198 | H73: 0.209 | J73: 0.211 | L73: 0.243 | N73: 0.234 | P73: 0.259 | R73: 0.201 | T73: 0.195 | V73: 0.205 | X73: 0.216 | Z73: 0.242 | AB73: 0.236 | AD73: 0.259 | AF73: 0.212 | AH73: 0.181 | AJ73: 0.208 | AL73: 0.198 | AN73: 0.216 | AP73: 0.217 | AR73: 0.259
A74: Switzerland | D74: .. | F74: .. | H74: .. | J74: .. | L74: 0.279 | N74: 0.276 | P74: 0.303 | R74: .. | T74: .. | V74: .. | X74: .. | Z74: 0.276 | AB74: 0.27 | AD74: 0.29 | AF74: .. | AH74: .. | AJ74: .. | AL74: .. | AN74: 0.287 | AP74: 0.284 | AR74: 0.326
A75: Turkey | D75: .. | F75: 0.434 | H75: .. | J75: 0.49 | L75: .. | N75: 0.43 | P75: 0.409 | R75: .. | T75: 0.435 | V75: .. | X75: 0.51 | Z75: .. | AB75: 0.42 | AD75: 0.403 | AF75: .. | AH75: 0.481 | AJ75: .. | AL75: 0.52 | AN75: .. | AP75: 0.37 | AR75: 0.399
A76: United Kingdom | D76: 0.268 | F76: 0.309 | H76: 0.354 | J76: 0.336 | L76: 0.352 | N76: 0.331 | P76: 0.342 | R76: 0.264 | T76: 0.305 | V76: 0.347 | X76: 0.334 | Z76: 0.351 | AB76: 0.331 | AD76: 0.345 | AF76: 0.258 | AH76: 0.255 | AJ76: 0.313 | AL76: 0.276 | AN76: 0.278 | AP76: 0.268 | AR76: 0.279
A77: United States | D77: 0.316 | F77: 0.337 | H77: 0.348 | J77: 0.361 | L77: 0.357 | N77: 0.38 | P77: 0.378 | R77: 0.304 | T77: 0.326 | V77: 0.336 | X77: 0.351 | Z77: 0.347 | AB77: 0.373 | AD77: 0.37 | AF77: 0.355 | AH77: 0.355 | AJ77: 0.367 | AL77: 0.36 | AN77: 0.37 | AP77: 0.389 | AR77: 0.386
A78: OECD Total | D78: .. | F78: .. | H78: .. | J78: .. | L78: .. | N78: 0.316 | P78: 0.314 | R78: .. | T78: .. | V78: .. | X78: .. | Z78: .. | AB78: 0.313 | AD78: 0.311 | AF78: .. | AH78: .. | AJ78: .. | AL78: .. | AN78: .. | AP78: 0.294 | AR78: 0.299
A79: data extracted on 14 Jan 2013 22:40 UTC (GMT) from OECD.Stat

Sheet Data 9
A1: Yr for calendar year statistics | B1: Overall union % (adjusted union surveys till 1975, then member surveys for remaining years) | C1: Union % from member surveys (ABS 6310.0 & 6325.0) | D1: Union % from Union Reports (cited in Peetz,p26) | E1: Census figures | F1: Union members (from Source Papers in Economic History No 7) | G1: Labour force | I1: Gini (pre-tax)
A2: 1890
A3: 1891 | B3: =E3*(B$23+B$24)/(E$23+E$24) -> 0.073 | E3: =F3/G3 -> 0.04824151336 | F3: 54900 | G3: 1138024
A4: 1892
A5: 1893
A6: 1894
A7: 1895
A8: 1896 | B8: 0.066 | E8: =F8/G8 -> 0.04383170217 | F8: 55100 | G8: 1257081
A9: 1897
A10: 1898
A11: 1899
A12: 1900
A13: 1901 | B13: 0.094 | E13: =F13/G13 -> 0.06273938756 | F13: 97200 | G13: 1549266
A14: 1902
A15: 1903
A16: 1904
A17: 1905
A18: 1906 | B18: 0.151 | E18: =F18/G18 -> 0.1002335928 | F18: 175500 | G18: 1750910
A19: 1907 | B19: 0.165 | E19: 0.1098100557 | F19: 194600 | G19: 1772151
A20: 1908 | B20: 0.205 | E20: 0.1364057621 | F20: 240500 | G20: 1763122
A21: 1909 | B21: 0.227 | E21: 0.1509401891 | F21: 273500 | G21: 1811976
A22: 1910 | B22: =E22*(B$23+B$24)/(E$23+E$24) -> 0.240 | E22: 0.1597546304 | F22: 302100 | G22: 1891025
A23: 1911 | B23: =D23*(C$88/D$88) -> 0.259 | D23: 0.279 | E23: 0.1928011732 | F23: 364700 | G23: 1891586
A24: 1912 | B24: 0.357 | D24: 0.385 | E24: 0.2167555221 | F24: 433200 | G24: 1998565
A25: 1913 | B25: 0.387 | D25: 0.417
A26: 1914 | B26: 0.417 | D26: 0.450
A27: 1915 | B27: 0.408 | D27: 0.440
A28: 1916 | B28: 0.440 | D28: 0.475
A29: 1917 | B29: 0.452 | D29: 0.487
A30: 1918 | B30: 0.454 | D30: 0.490
A31: 1919 | B31: 0.464 | D31: 0.500
A32: 1920 | B32: 0.494 | D32: 0.533
A33: 1921 | B33: 0.478 | D33: 0.516
A34: 1922 | B34: 0.467 | D34: 0.504
A35: 1923 | B35: 0.455 | D35: 0.491
A36: 1924 | B36: 0.463 | D36: 0.499
A37: 1925 | B37: 0.496 | D37: 0.535
A38: 1926 | B38: 0.512 | D38: 0.552
A39: 1927 | B39: 0.538 | D39: 0.580
A40: 1928 | B40: 0.530 | D40: 0.572
A41: 1929 | B41: 0.519 | D41: 0.560
A42: 1930 | B42: 0.489 | D42: 0.527
A43: 1931 | B43: 0.417 | D43: 0.450
A44: 1932 | B44: 0.413 | D44: 0.445
A45: 1933 | B45: 0.412 | D45: 0.444
A46: 1934 | B46: 0.395 | D46: 0.426
A47: 1935 | B47: 0.403 | D47: 0.435
A48: 1936 | B48: 0.409 | D48: 0.441
A49: 1937 | B49: 0.423 | D49: 0.456
A50: 1938 | B50: 0.430 | D50: 0.464
A51: 1939 | B51: 0.441 | D51: 0.476
A52: 1940 | B52: 0.444 | D52: 0.479
A53: 1941 | B53: 0.463 | D53: 0.499
A54: 1942 | B54: 0.488 | D54: 0.526 | I54: 0.3478552
A55: 1943 | B55: 0.487 | D55: 0.525 | I55: 0.3491139
A56: 1944 | B56: 0.503 | D56: 0.542 | I56: 0.3412358
A57: 1945 | B57: 0.503 | D57: 0.542 | I57: 0.3439716
A58: 1946 | B58: 0.471 | D58: 0.508 | I58: 0.3362346
A59: 1947 | B59: 0.495 | D59: 0.534 | I59: 0.3553262
A60: 1948 | B60: 0.519 | D60: 0.560 | I60: 0.3579089
A61: 1949 | B61: 0.529 | D61: 0.570 | I61: 0.3638414
A62: 1950 | B62: 0.538 | D62: 0.580 | I62: 0.4269653
A63: 1951 | B63: 0.556 | D63: 0.600 | I63: 0.348278
A64: 1952 | B64: 0.556 | D64: 0.600 | I64: 0.3406563
A65: 1953 | B65: 0.584 | D65: 0.630 | I65: 0.3281668
A66: 1954 | B66: 0.575 | D66: 0.620 | I66: 0.3201392
A67: 1955 | B67: 0.547 | D67: 0.590 | I67: 0.3200513
A68: 1956 | B68: 0.547 | D68: 0.590 | I68: 0.3272488
A69: 1957 | B69: 0.547 | D69: 0.590 | I69: 0.3153933
A70: 1958 | B70: 0.538 | D70: 0.580 | I70: 0.3040759
A71: 1959 | B71: 0.538 | D71: 0.580 | I71: 0.3076457
A72: 1960 | B72: 0.538 | D72: 0.580 | I72: 0.3085955
A73: 1961 | B73: 0.529 | D73: 0.570 | I73: 0.309136
A74: 1962 | B74: 0.529 | D74: 0.570 | I74: 0.3148462
A75: 1963 | B75: 0.529 | D75: 0.570 | I75: 0.3124646
A76: 1964 | B76: 0.519 | D76: 0.560 | I76: 0.3050587
A77: 1965 | B77: 0.510 | D77: 0.550 | I77: 0.3029834
A78: 1966 | B78: 0.491 | D78: 0.530 | I78: 0.3065973
A79: 1967 | B79: 0.482 | D79: 0.520 | I79: 0.308204
A80: 1968 | B80: 0.464 | D80: 0.500 | I80: 0.3092054
A81: 1969 | B81: 0.454 | D81: 0.490 | I81: 0.3116648
A82: 1970 | B82: 0.454 | D82: 0.490 | I82: 0.3103406
A83: 1971 | B83: 0.473 | D83: 0.510 | I83: 0.3077437
A84: 1972 | B84: 0.482 | D84: 0.520 | I84: 0.2821276
A85: 1973 | B85: 0.491 | D85: 0.530 | I85: 0.290607
A86: 1974 | B86: 0.510 | D86: 0.550 | I86: 0.2930981
A87: 1975 | B87: =D87*(C$88/D$88) -> 0.519 | D87: 0.560 | I87: 0.2657583
A88: 1976 | B88: =C88 -> 0.510 | C88: 0.51 | D88: 0.550 | I88: 0.2703715
A89: 1977 | D89: 0.550 | I89: 0.2709908
A90: 1978 | D90: 0.550 | I90: 0.2605684
A91: 1979 | D91: 0.550 | I91: 0.2671689
A92: 1980 | D92: 0.550 | I92: 0.2776214
A93: 1981 | D93: 0.540 | I93: 0.2798207
A94: 1982 | B94: =C94 -> 0.495 | C94: 0.495 | D94: 0.560 | I94: 0.2830495
A95: 1983 | D95: 0.560 | I95: 0.2885907
A96: 1984 | D96: 0.550 | I96: 0.2951908
A97: 1985 | I97: 0.3016275
A98: 1986 | B98: =C98 -> 0.456 | C98: 0.456 | I98: 0.3087122
A99: 1987 | I99: 0.3247029
A100: 1988 | B100: =C100 -> 0.416 | C100: 0.416 | I100: 0.3491662
A101: 1989 | I101: 0.3356155
A102: 1990 | B102: =C102 -> 0.405 | C102: 0.405 | I102: 0.3381615
A103: 1991 | I103: 0.3423536
A104: 1992 | B104: =C104 -> 0.396 | C104: 0.396 | I104: 0.3478518
A105: 1993 | I105: 0.3495579
A106: 1994 | B106: =C106 -> 0.350 | C106: 0.35 | I106: 0.3529488
A107: 1995 | B107: =C107 -> 0.327 | C107: 0.327 | I107: 0.3594948
A108: 1996 | B108: 0.311 | C108: 0.311 | I108: 0.3648077
A109: 1997 | B109: 0.303 | C109: 0.303 | I109: 0.3701888
A110: 1998 | B110: 0.281 | C110: 0.281 | I110: 0.3755033
A111: 1999 | I111: 0.3811573
A112: 2000 | B112: 0.247 | C112: 0.2471226391 | I112: 0.3833667
A113: 2001 | B113: 0.245 | C113: 0.244805898 | I113: 0.3779335
A114: 2002 | B114: 0.231 | C114: 0.2313189942 | I114: 0.3718161
A115: 2003 | B115: 0.230 | C115: 0.2303266233 | I115: 0.3735002
A116: 2004 | B116: 0.227 | C116: 0.2269573 | I116: 0.3779017
A117: 2005 | B117: 0.224 | C117: 0.2242316478 | I117: 0.3837848
A118: 2006 | B118: 0.203 | C118: 0.2034853851 | I118: 0.375429
A119: 2007 | B119: 0.189 | C119: 0.1887153473 | I119: 0.3753496
A120: 2008 | B120: 0.189 | C120: 0.1891306568 | I120: 0.3595539
A121: 2009 | B121: 0.197 | C121: 0.197 | I121: 0.3584145
A122: 2010 | B122: 0.183 | C122: 0.183 | I122: 0.3626146
A123: 2011 | B123: 0.184 | C123: 0.184
A124: 2012

Sheet Data 10
A1: Tax year starting 1 July… | B1: aus_inctax_wage | C1: aus_inctax_inv | D1: aus_inctax_wage_median | E1: aus_inctax_inv_median | F1: Top tax rate | G1: Tax rate paid by top 1% | H1: Earnings at P99.5 in dollars (note: $1=£2) | I1: Earnings at P99.5 in pounds (note: $1=£2)
A2: =A3-1 -> 1888
A3: 1889
A4: 1890
A5: 1891
A6: 1892
A7: 1893
A8: 1894
A9: 1895
A10: 1896
A11: 1897
A12: 1898
A13: 1899
A14: 1900
A15: 1901
A16: 1902
A17: 1903
A18: 1904
A19: 1905
A20: 1906
A21: 1907
A22: 1908
A23: 1909 | B23: 2.5 | C23: 2.5 | F23: =B23/100 -> 3%
A24: 1910 | B24: 5 | C24: 6.666666667 | F24: =B24/100 -> 5%
A25: 1911 | B25: 5 | C25: 6.666666667 | F25: 5%
A26: 1912 | B26: 5 | C26: 6.666666667 | F26: 5%
A27: 1913 | B27: 5.833333333 | C27: 7.777583333 | F27: 6%
A28: 1914 | B28: 6.25 | C28: 8.333333333 | F28: 6%
A29: 1915 | B29: 29.6875 | C29: 31.25 | F29: 30%
A30: 1916 | B30: 35.546875 | C30: 36.97916667 | F30: 36%
A31: 1917 | B31: 35.546875 | C31: 36.97916667 | F31: 36%
A32: 1918 | B32: 44.3359375 | C32: 45.57291667 | F32: 44%
A33: 1919 | B33: 44.3359375 | C33: 45.57291667 | F33: 44%
A34: 1920 | B34: 49.81875 | C34: 49.81875 | F34: 50%
A35: 1921 | B35: 45.3078125 | C35: 47.59564063 | D35: 11.1 | E35: 14.5 | F35: 45% | G35: =D35/100 -> 11% | H35: $2,388 | I35: =H35/2 -> £1,194
A36: 1922 | B36: 45.3078125 | C36: 47.59564063 | D36: 11.0 | E36: 14.3 | F36: 45% | G36: =D36/100 -> 11% | H36: $2,296 | I36: =H36/2 -> £1,148
A37: 1923 | B37: 41.86875 | C37: 44.3004375 | D37: 10.7 | E37: 14.0 | F37: 42% | G37: 11% | H37: $2,442 | I37: £1,221
A38: 1924 | B38: 37 | C38: 39.33333333 | D38: 9.3 | E38: 12.1 | F38: 37% | G38: 9% | H38: $2,761 | I38: £1,381
A39: 1925 | B39: 37 | C39: 39.33333333 | D39: 9.1 | E39: 11.8 | F39: 37% | G39: 9% | H39: $2,498 | I39: £1,249
A40: 1926 | B40: 40.5 | C40: 44 | D40: 9.4 | E40: 12.3 | F40: 41% | G40: 9% | H40: $2,484 | I40: £1,242
A41: 1927 | B41: 45.25 | C41: 45.25 | D41: 8.2 | E41: 10.9 | F41: 45% | G41: 8% | H41: $2,451 | I41: £1,226
A42: 1928 | B42: 48.455 | C42: 48.455 | D42: 8.5 | E42: 11.3 | F42: 48% | G42: 9% | H42: $2,493 | I42: £1,247
A43: 1929 | B43: 52.16075 | C43: 54.121375 | D43: 8.5 | E43: 14.4 | F43: 52% | G43: 8% | H43: $2,149 | I43: £1,075
A44: 1930 | B44: 54.296875 | C44: 55.46875 | D44: 10.3 | E44: 19.1 | F44: 54% | G44: 10% | H44: $1,605 | I44: £803
A45: 1931 | B45: 55.46875 | C45: 55.46875 | D45: 11.7 | E45: 18.4 | F45: 55% | G45: 12% | H45: $1,413 | I45: £706
A46: 1932 | B46: 49.19010417 | C46: 49.19010417 | D46: 10.0 | E46: 12.0 | F46: 49% | G46: 10% | H46: $1,386 | I46: £693
A47: 1933 | B47: 49.19010417 | C47: 49.19010417 | D47: 10.4 | E47: 12.8 | F47: 49% | G47: 10% | H47: $1,633 | I47: £817
A48: 1934 | B48: 49.19010417 | C48: 49.19010417 | D48: 10.5 | E48: 12.9 | F48: 49% | G48: 10% | H48: $1,653 | I48: £826
A49: 1935 | B49: 46.81276042 | C49: 50.58854167 | D49: 11.9 | E49: 14.2 | F49: 47% | G49: 12% | H49: $1,894 | I49: £947
A50: 1936 | B50: 46.81276042 | C50: 50.58854167 | D50: 12.5 | E50: 15.2 | F50: 47% | G50: 13% | H50: $2,199 | I50: £1,100
A51: 1937 | B51: 55.11 | C51: 62.56089844 | D51: 12.7 | E51: 15.6 | F51: 55% | G51: 13% | H51: $2,065 | I51: £1,033
A52: 1938 | B52: 58.98776042 | C52: 66.71582986 | D52: 9.2 | E52: 12.4 | F52: 59% | G52: 9% | H52: $1,985 | I52: £992
A53: 1939 | B53: 67.8125 | C53: 70.95833333 | D53: 22.9 | E53: 32.9 | F53: 68% | G53: 23% | H53: $2,161 | I53: £1,081
A54: 1940 | B54: 67.08333333 | C54: 67.08333333 | D54: 24.3 | E54: 29.4 | F54: 67% | G54: 24% | H54: $2,212 | I54: £1,106
A55: 1941 | B55: 90 | C55: 90 | D55: 33.6 | E55: 41.4 | F55: 90% | G55: 34% | H55: $2,741 | I55: £1,371
A56: 1942 | B56: 92.5 | C56: 92.5 | D56: 41.8 | E56: 51.6 | F56: 93% | G56: 42% | H56: $3,086 | I56: £1,543
A57: 1943 | B57: 92.5 | C57: 92.5 | D57: 42.7 | E57: 52.6 | F57: 93% | G57: 43% | H57: $3,226 | I57: £1,613
A58: 1944 | B58: 92.5 | C58: 92.5 | D58: 41.3 | E58: 51.1 | F58: 93% | G58: 41% | H58: $3,002 | I58: £1,501
A59: 1945 | B59: 84.16666667 | C59: 84.16666667 | D59: 35.5 | E59: 44.7 | F59: 84% | G59: 36% | H59: $3,071 | I59: £1,536
A60: 1946 | B60: 72.5 | C60: 72.5 | D60: 28.0 | E60: 35.5 | F60: 73% | G60: 28% | H60: $3,462 | I60: £1,731
A61: 1947 | B61: 67.5 | C61: 67.5 | D61: 29.3 | E61: 36.5 | F61: 68% | G61: 29% | H61: $4,585 | I61: £2,293
A62: 1948 | B62: 67.5 | C62: 67.5 | D62: 28.9 | E62: 35.6 | F62: 68% | G62: 29% | H62: $5,707 | I62: £2,854
A63: 1949 | B63: 67.5 | C63: 67.5 | D63: 23.9 | E63: 30.8 | F63: 68% | G63: 24% | H63: $6,385 | I63: £3,192
A64: 1950 | B64: 75 | C64: 75 | D64: 42.7 | E64: 62.4 | F64: 75% | G64: 43% | H64: $10,385 | I64: £5,193
A65: 1951 | B65: 75 | C65: 75 | D65: 36.7 | E65: 42.5 | F65: 75% | G65: 37% | H65: $8,007 | I65: £4,003
A66: 1952 | B66: 75 | C66: 75 | D66: 37.0 | E66: 43.2 | F66: 75% | G66: 37% | H66: $8,047 | I66: £4,023
A67: 1953 | B67: 70 | C67: 70 | D67: 32.6 | E67: 32.6 | F67: 70% | G67: 33% | H67: $8,007 | I67: £4,003
A68: 1954 | B68: 66.7 | C68: 66.7 | D68: 32.6 | E68: 32.6 | F68: 67% | G68: 33% | H68: $7,996 | I68: £3,998
A69: 1955 | B69: 66.7 | C69: 66.7 | D69: 29.9 | E69: 29.9 | F69: 67% | G69: 30% | H69: $7,981 | I69: £3,991
A70: 1956 | B70: 66.7 | C70: 66.7 | D70: 29.7 | E70: 29.7 | F70: 67% | G70: 30% | H70: $7,905 | I70: £3,952
A71: 1957 | B71: 66.7 | C71: 66.7 | D71: 29.8 | E71: 29.8 | F71: 67% | G71: 30% | H71: $7,938 | I71: £3,969
A72: 1958 | B72: 66.7 | C72: 66.7 | D72: 31.2 | E72: 31.2 | F72: 67% | G72: 31% | H72: $8,576 | I72: £4,288
A73: 1959 | B73: 63.4 | C73: 63.4 | D73: 31.1 | E73: 31.1 | F73: 63% | G73: 31% | H73: $9,294 | I73: £4,647
A74: 1960 | B74: 67 | C74: 67 | D74: 33.0 | E74: 33.0 | F74: 67% | G74: 33% | H74: $9,435 | I74: £4,717
A75: 1961 | B75: 63.4 | C75: 63.4 | D75: 31.4 | E75: 31.4 | F75: 63% | G75: 31% | H75: $9,488 | I75: £4,744
A76: 1962 | B76: 63.4 | C76: 63.4 | D76: 32.5 | E76: 32.5 | F76: 63% | G76: 32% | H76: $10,066 | I76: £5,033
A77: 1963 | B77: 63.4 | C77: 63.4 | D77: 34.4 | E77: 34.4 | F77: 63% | G77: 34% | H77: $11,160 | I77: £5,580
A78: 1964 | B78: 66.7 | C78: 66.7 | D78: 35.9 | E78: 35.9 | F78: 67% | G78: 36% | H78: $10,962 | I78: £5,481
A79: 1965 | B79: 68.4 | C79: 68.4 | D79: 55.0 | E79: 55.0 | F79: 68% | G79: 55% | H79: $11,168 | I79: £5,584
A80: 1966 | B80: 68.4 | C80: 68.4 | D80: 55.0 | E80: 55.0 | F80: 68% | G80: 55% | H80: $11,839 | I80: £5,920
A81: 1967 | B81: 68.4 | C81: 68.4 | D81: 57.9 | E81: 57.9 | F81: 68% | G81: 58% | H81: $12,228 | I81: £6,114
A82: 1968 | B82: 68.4 | C82: 68.4 | D82: 57.9 | E82: 57.9 | F82: 68% | G82: 58% | H82: $13,083 | I82: £6,541
A83: 1969 | B83: 68.4 | C83: 68.4 | D83: 57.9 | E83: 57.9 | F83: 68% | G83: 58% | H83: $13,727 | I83: £6,864
A84: 1970 | B84: 68.4 | C84: 68.4 | D84: 56.4 | E84: 56.4 | F84: 68% | G84: 56% | H84: $14,523 | I84: £7,262
A85: 1971 | B85: 69.6 | C85: 69.6 | D85: 56.4 | E85: 56.4 | F85: 70% | G85: 56% | H85: $15,483 | I85: £7,742
A86: 1972 | B86: 66.7 | C86: 66.7 | D86: 60.3 | E86: 60.3 | F86: 67% | G86: 60% | H86: $17,636 | I86: £8,818
A87: 1973 | B87: 66.7 | C87: 66.7 | D87: 64.0 | E87: 64.0 | F87: 67% | G87: 64% | H87: $20,599 | I87: £10,300
A88: 1974 | B88: 67 | C88: 67 | D88: 64.0 | E88: 64.0 | F88: =B88/100 -> 67% | G88: 64% | H88: $22,808 | I88: £11,404
A89: 1975 | B89: 65 | C89: 65 | D89: 65.0 | E89: 65.0 | F89: 65% | G89: 65% | H89: $25,490 | I89: £12,745
A90: 1976 | B90: 65 | C90: 65 | D90: 60.0 | E90: 60.0 | F90: 65% | G90: 60% | H90: $28,060 | I90: £14,030
A91: 1977 | B91: 62.9 | C91: 62.9 | D91: 46.0 | E91: 46.0 | F91: 63% | G91: 46% | H91: $29,818 | I91: £14,909
A92: 1978 | B92: 61.5 | C92: 61.5 | D92: 47.5 | E92: 47.5 | F92: 62% | G92: 48% | H92: $31,953 | I92: £15,976
A93: 1979 | B93: 61.1 | C93: 61.1 | D93: 61.1 | E93: 61.1 | F93: 61% | G93: 61% | H93: $34,522 | I93: £17,261
A94: 1980 | B94: 60 | C94: 60 | D94: 60.0 | E94: 60.0 | F94: 60% | G94: 60% | H94: $38,789 | I94: £19,394
A95: 1981 | B95: 60 | C95: 60 | D95: 60.0 | E95: 60.0 | F95: 60% | G95: 60% | H95: $42,019 | I95: £21,010
A96: 1982 | B96: 60 | C96: 60 | D96: 60.0 | E96: 60.0 | F96: 60% | G96: 60% | H96: $46,723 | I96: £23,362
A97: 1983 | B97: 60 | C97: 60 | D97: 60.0 | E97: 60.0 | F97: 60% | G97: 60% | H97: $48,856 | I97: £24,428
A98: 1984 | B98: 60 | C98: 60 | D98: 60.0 | E98: 60.0 | F98: 60% | G98: 60% | H98: $51,966 | I98: £25,983
A99: 1985 | B99: 60 | C99: 60 | D99: 60.0 | E99: 60.0 | F99: 60% | G99: 60% | H99: $60,074 | I99: £30,037
A100: 1986 | B100: 57.1 | C100: 57.1 | D100: 57.1 | E100: 57.1 | F100: 57% | G100: =D100/100 -> 57% | H100: $64,199 | I100: =H100/2 -> £32,099
A101: 1987 | B101: 49 | C101: 49 | D101: 49.0 | E101: 49.0 | F101: 49% | G101: 49% | H101: $84,945 | I101: £42,472
A102: 1988 | B102: 49 | C102: 49 | D102: 49.0 | E102: 49.0 | F102: 49% | G102: 49% | H102: $97,860 | I102: £48,930
A103: 1989 | B103: 48 | C103: 48 | D103: 48.0 | E103: 48.0 | F103: 48% | G103: 48% | H103: $98,192 | I103: £49,096
A104: 1990 | B104: 47 | C104: 47 | D104: 47.0 | E104: 47.0 | F104: 47% | G104: 47% | H104: $98,159 | I104: £49,080
A105: 1991 | B105: 47 | C105: 47 | D105: 47.0 | E105: 47.0 | F105: 47% | G105: 47% | H105: $98,494 | I105: £49,247
A106: 1992 | B106: 47 | C106: 47 | D106: 47.0 | E106: 47.0 | F106: 47% | G106: 47% | H106: $99,637 | I106: £49,819
A107: 1993 | B107: 47 | C107: 47 | D107: 47.0 | E107: 47.0 | F107: 47% | G107: 47% | H107: $109,230 | I107: £54,615
A108: 1994 | B108: 47 | C108: 47 | D108: 47.0 | E108: 47.0 | F108: 47% | G108: 47% | H108: $92,104 | I108: £46,052
A109: 1995 | B109: 47 | C109: 47 | D109: 47.0 | E109: 47.0 | F109: 47% | G109: 47% | H109: $125,181 | I109: £62,590
A110: 1996 | B110: 47 | C110: 47 | D110: 47.0 | E110: 47.0 | F110: 47% | G110: 47% | H110: $130,992 | I110: £65,496
A111: 1997 | B111: 47 | C111: 47 | D111: 47.0 | E111: 47.0 | F111: 47% | G111: 47% | H111: $138,687 | I111: £69,343
A112: 1998 | B112: 47 | C112: 47 | D112: 47.0 | E112: 47.0 | F112: 47% | G112: 47% | H112: $147,572 | I112: £73,786
A113: 1999 | B113: 47 | C113: 47 | D113: 47.0 | E113: 47.0 | F113: 47% | G113: 47% | H113: $149,088 | I113: £74,544
A114: 2000 | B114: 47 | C114: 47 | D114: 47.0 | E114: 47.0 | F114: 47% | G114: 47% | H114: $180,363 | I114: £90,181
A115: 2001 | B115: 47 | C115: 47 | D115: 47.0 | E115: 47.0 | F115: 47% | G115: 47% | H115: $181,820 | I115: £90,910
A116: 2002 | B116: 47 | C116: 47 | D116: 47.0 | E116: 47.0 | F116: 47% | G116: 47% | H116: $190,393 | I116: £95,197
A117: 2003 | B117: 47 | C117: 47 | D117: 47.0 | E117: 47.0 | F117: 47% | G117: 47%
A118: 2004 | B118: 47 | C118: 47 | D118: 47.0 | E118: 47.0 | F118: 47% | G118: 47%
A119: 2005 | B119: 47 | C119: 47 | D119: 47.0 | E119: 47.0 | F119: 47% | G119: 47%
A120: 2006 | B120: 45 | D120: 45 | F120: 45% | G120: 45%
A121: 2007 | B121: 45 | D121: 45 | F121: 45% | G121: 45%
A122: 2008 | B122: 45 | D122: 45 | F122: 45% | G122: 45%
A123: 2009 | B123: 45 | D123: 45 | F123: 45% | G123: 45%
A124: 2010 | B124: 45 | D124: 45 | F124: 45% | G124: 45%
A125: 2011 | B125: 45 | D125: 45.0 | F125: 45% | G125: 45%
A126: 2012 | B126: 45 | D126: 45.0 | F126: 45% | G126: 45%

Sheet Data 11
B1: 90/10 prose | C1: 90/10 earnings | E1: 95/5 prose | F1: 95/5 quant | H1: gini earnings
A2: UK | B2: 1.75 | C2: 3.35 | E2: 2.34 | F2: 2.56 | H2: 32.4 | K2: Data source: http://eprints.lse.ac.uk/20038/1/Poverty_and_Worklessness_in_Britain.pdf
A3: Australia | B3: 1.69 | C3: 2.9 | E3: 2.47 | F3: 2.41 | H3: 30.5 | K3: Macro for labels from http://support.microsoft.com/kb/213750
A4: Belgium | B4: 1.68 | C4: 2.25 | E4: 2.2 | F4: 2.33 | H4: 27.2
A5: Canada | B5: 1.78 | C5: 4.19 | E5: 2.51 | F5: 2.42 | H5: 28.5
A6: Denmark | B6: 1.39 | C6: 2.17 | E6: 1.57 | F6: 1.67 | H6: 21.7
A7: Finland | B7: 1.54 | C7: 2.38 | E7: 1.82 | F7: 1.81 | H7: 22.8
A8: Germany | B8: 1.51 | C8: 2.32 | E8: 1.75 | F8: 1.68 | H8: 28.2
A9: Ireland | B9: 1.71 | C9: 3.35 | E9: 2.21 | F9: 2.47 | H9: 32.4
A10: Netherlands | B10: 1.48 | C10: 2.59 | E10: 1.72 | F10: 1.79 | H10: 25.5
A11: Norway | B11: 1.44 | C11: 1.98 | E11: 1.68 | F11: 1.76 | H11: 25.6
A12: NZ | C12: 3.04 | E12: 2.2 | F12: 2.34 | H12: -
A13: Portugal | C13: 4.05 | E13: 3.48 | F13: 3.17 | H13: -
A14: Sweden | B14: 1.51 | C14: 2.13 | E14: 1.78 | F14: 1.81 | H14: 23
A15: Switzerland | B15: 1.72 | C15: 2.69 | E15: 2.25 | F15: 2.45 | H15: 26.9
A16: US | B16: 1.9 | C16: 4.37 | E16: 2.69 | F16: 2.72 | H16: 34.4

Sheet Data 12
A1: year | B1: Favour more spending over less tax | C1: Income and wealth should be redistributed
A2: 1985
A3: 1986
A4: 1987 | B4: 18% | C4: 57%
A5: 1988
A6: 1989
A7: 1990 | C7: 54%
A8: 1991
A9: 1992
A10: 1993 | B10: 25% | C10: 67%
A11: 1994
A12: 1995
A13: 1996 | B13: 23% | C13: 66%
A14: 1997
A15: 1998 | B15: 35% | C15: 68%
A16: 1999
A17: 2000
A18: 2001 | B18: 41% | C18: 76%
A19: 2002
A20: 2003
A21: 2004 | B21: 51% | C21: 72%
A22: 2005
A23: 2006
A24: 2007 | B24: 58% | C24: 70%
A25: 2008
A26: 2009
A27: 2010 | C27: 73%

Sheet Data 13
A1: Year | B1: Mentions of Inequality in House or Senate Hansard | C1: "Wednesday" | D1: Smoothed | E1: Top 1% | F1: Labor in Government for the majority of the year
A2: 1900
A3: 1901 | B3: 19 | C3: 126 | D3: =(AVERAGE(B1:B5)/AVERAGE(C1:C5))*10*(AVERAGE(C$3:C$114)/AVERAGE(B$3:B$114)) -> 9.196409881
A4: 1902 | B4: 9 | C4: 72 | D4: =(AVERAGE(B2:B6)/AVERAGE(C2:C6))*10*(AVERAGE(C$3:C$114)/AVERAGE(B$3:B$114)) -> 8.12374462
A5: 1903 | B5: 17 | C5: 83 | D5: =(AVERAGE(B3:B7)/AVERAGE(C3:C7))*10*(AVERAGE(C$3:C$114)/AVERAGE(B$3:B$114)) -> 8.745682677
A6: 1904 | B6: 13 | C6: 129 | D6: =(AVERAGE(B4:B8)/AVERAGE(C4:C8))*10*(AVERAGE(C$3:C$114)/AVERAGE(B$3:B$114)) -> 9.09252451
A7: 1905 | B7: 25 | C7: 135 | D7: 8.327378974
A8: 1906 | B8: 12 | C8: 61 | D8: 7.03755767
A9: 1907 | B9: 10 | C9: 123 | D9: 7.096604495
A10: 1908 | B10: 15 | C10: 164 | D10: 6.834056003
A11: 1909 | B11: 14 | C11: 132 | D11: 6.093816124 | F11: 1
A12: 1910 | B12: 16 | C12: 83 | D12: 6.946750474
A13: 1911 | B13: 4 | C13: 54 | D13: 6.664306463
A14: 1912 | B14: 11 | C14: 63 | D14: 6.417284679 | E14: 12.6893
A15: 1913 | B15: 2 | C15: 73 | D15: 4.94505719 | E15: 11.64644
A16: 1914 | B16: 6 | C16: 76 | D16: 5.067041522
A17: 1915 | B17: 8 | C17: 94 | D17: 4.317779743 | F17: 1
A18: 1916 | B18: 6 | C18: 68 | D18: 4.378924773
A19: 1917 | B19: 8 | C19: 88 | D19: 3.951362655
A20: 1918 | B20: 7 | C20: 133 | D20: 3.717338498
A21: 1919 | B21: 1 | C21: 53 | D21: 3.226206213 | E21: 12.55035
A22: 1920 | B22: 7 | C22: 106 | D22: 3.513148789 | E22: 10.1529
A23: 1921 | B23: 2 | C23: 65 | D23: 3.286454642 | E23: 11.6314
A24: 1922 | B24: 9 | C24: 68 | D24: 3.577973245 | E24: 10.68477
A25: 1923 | B25: 0 | C25: 40 | D25: 3.828431373 | E25: 11.76132
A26: 1924 | B26: 2 | C26: 42 | D26: 5.081988548 | E26: 11.67495
A27: 1925 | B27: 3 | C27: 25 | D27: 4.993606138 | E27: 11.31364
A28: 1926 | B28: 6 | C28: 51 | D28: 5.715430722 | E28: 11.07482
A29: 1927 | B29: 7 | C29: 49 | D29: 5.64009979 | E29: 11.68292
A30: 1928 | B30: 3 | C30: 44 | D30: 6.314938346 | E30: 11.84713
A31: 1929 | B31: 3 | C31: 55 | D31: 6.619766062 | E31: 10.66542
A32: 1930 | B32: 13 | C32: 92 | D32: 6.225091663 | E32: 9.749785 | F32: 1
A33: 1931 | B33: 14 | C33: 107 | D33: 7.625737287 | E33: 9.343923 | F33: 1
A34: 1932 | B34: 7 | C34: 71 | D34: 7.80869855 | E34: 9.267618
A35: 1933 | B35: 12 | C35: 44 | D35: 7.570692264 | E35: 10.32351
A36: 1934 | B36: 2 | C36: 39 | D36: 7.178308824 | E36: 10.35757
A37: 1935 | B37: 6 | C37: 50 | D37: 7.336421353 | E37: 10.53739
A38: 1936 | B38: 7 | C38: 68 | D38: 6.550547976 | E38: 11.28367
A39: 1937 | B39: 2 | C39: 26 | D39: 6.923758865 | E39: 9.834606
A40: 1938 | B40: 13 | C40: 80 | D40: 7.941958698 | E40: 10.38586
A41: 1939 | B41: 6 | C41: 58 | D41: 7.893672933 | E41: 10.72735
A42: 1940 | B42: 11 | C42: 50 | D42: 7.994025735 | E42: 10.29801
A43: 1941 | B43: 8 | C43: 77 | D43: 6.816198289 | E43: 10.7823
A44: 1942 | B44: 11 | C44: 87 | D44: 5.957789456 | E44: 10.42831 | F44: 1
A45: 1943 | B45: 4 | C45: 65 | D45: 4.651864936 | E45: 10.44749 | F45: 1
A46: 1944 | B46: 2 | C46: 68 | D46: 3.755409521 | E46: 9.031387 | F46: 1
A47: 1945 | B47: 4 | C47: 61 | D47: 2.936580882 | E47: 8.436974 | F47: 1
A48: 1946 | B48: 3 | C48: 86 | D48: 3.351146825 | E48: 9.50908 | F48: 1
A49: 1947 | B49: 5 | C49: 72 | D49: 3.608767277 | E49: 10.62005 | F49: 1
A50: 1948 | B50: 8 | C50: 90 | D50: 3.779970216 | E50: 10.79862 | F50: 1
A51: 1949 | B51: 3 | C51: 57 | D51: 3.646125117 | E51: 11.25572 | F51: 1
A52: 1950 | B52: 7 | C52: 90 | D52: 3.720588235 | E52: 14.12984
A53: 1951 | B53: 1 | C53: 69 | D53: 3.445588235 | E53: 9.084048
A54: 1952 | B54: 4 | C54: 49 | D54: 3.428446005 | E54: 8.989485
A55: 1953 | B55: 3 | C55: 35 | D55: 3.265960413 | E55: 8.711291
A56: 1954 | B56: 1 | C56: 25 | D56: 5.859843938 | E56: 8.059411
A57: 1955 | B57: 3 | C57: 33 | D57: 5.322453372 | E57: 7.542427
A58: 1956 | B58: 9 | C58: 54 | D58: 5.575385494 | E58: 7.905793
A59: 1957 | B59: 3 | C59: 58 | D59: 8.336100569 | E59: 7.040835
A60: 1958 | B60: 4 | C60: 36 | D60: 7.669973811 | E60: 7.443652
A61: 1959 | B61: 17 | C61: 67 | D61: 5.539530925 | E61: 7.394512
A62: 1960 | B62: 6 | C62: 77 | D62: 6.568387159 | E62: 7.092422
A63: 1961 | B63: 0 | C63: 73 | D63: 6.152836134 | E63: 7.095926
A64: 1962 | B64: 8 | C64: 53 | D64: 4.698529412 | E64: 7.226224
A65: 1963 | B65: 5 | C65: 66 | D65: 5.135700622 | E65: 7.35788
A66: 1964 | B66: 8 | C66: 61 | D66: 7.258963979 | E66: 6.838895
A67: 1965 | B67: 12 | C67: 116 | D67: 6.973214286 | E67: 6.693832
A68: 1966 | B68: 12 | C68: 60 | D68: 8.43412527 | E68: 6.474776
A69: 1967 | B69: 14 | C69: 117 | D69: 8.586093661 | E69: 6.582019
A70: 1968 | B70: 22 | C70: 109 | D70: =(AVERAGE(B68:B72)/AVERAGE(C68:C72))*10*(AVERAGE(C$3:C$114)/AVERAGE(B$3:B$114)) -> 10.24710256 | E70: 6.380515
A71: 1969 | B71: 17 | C71: 113 | D71: 9.512360159 | E71: 6.247537
A72: 1970 | B72: 31 | C72: 139 | D72: 10.76220825 | E72: 5.915835
A73: 1971 | B73: 24 | C73: 174 | D73: 12.43728374 | E73: 5.923273
A74: 1972 | B74: 34 | C74: 148 | D74: 12.7857918 | E74: 6.063846
A75: 1973 | B75: 56 | C75: 174 | D75: 12.42048346 | E75: 5.67231 | F75: 1
A76: 1974 | B76: 30 | C76: 151 | D76: 12.13652213 | E76: 5.221173 | F76: 1
A77: 1975 | B77: 26 | C77: 139 | D77: 11.33515955 | E77: 5.134846 | F77: 1
A78: 1976 | B78: 18 | C78: 164 | D78: 9.817822651 | E78: 4.985606
A79: 1977 | B79: 21 | C79: 137 | D79: 10.16678871 | E79: 4.923252
A80: 1978 | B80: 31 | C80: 146 | D80: 9.571078431 | E80: 4.870783
A81: 1979 | B81: 32 | C81: 137 | D81: 11.10191851 | E81: 4.825983
A82: 1980 | B82: 15 | C82: 118 | D82: 10.80074016 | E82: 4.78862
A83: 1981 | B83: 40 | C83: 181 | D83: 10.11658031 | E83: 4.61483
A84: 1982 | B84: 24 | C84: 173 | D84: 8.900043412 | E84: 4.668778
A85: 1983 | B85: 25 | C85: 163 | D85: 9.175402563 | E85: 4.682786 | F85: 1
A86: 1984 | B86: 22 | C86: 178 | D86: 10.12305575 | E86: 4.75242 | F86: 1
A87: 1985 | B87: 32 | C87: 200 | D87: 9.939196833 | E87: 5.018337 | F87: 1
A88: 1986 | B88: 59 | C88: 205 | D88: 8.75711575 | E88: 5.393577 | F88: 1
A89: 1987 | B89: 24 | C89: 190 | D89: 8.098604827 | E89: 6.667771 | F89: 1
A90: 1988 | B90: 19 | C90: 250 | D90: 8.026140574 | E90: 8.41053 | F90: 1
A91: 1989 | B91: 20 | C91: 247 | D91: 7.03755767 | E91: 6.430696 | F91: 1
A92: 1990 | B92: 20 | C92: 124 | D92: 7.660484724 | E92: 6.336555 | F92: 1
A93: 1991 | B93: 42 | C93: 209 | D93: 8.354003351 | E93: 6.412619 | F93: 1
A94: 1992 | B94: 40 | C94: 227 | D94: 11.31849524 | E94: 6.546458 | F94: 1
A95: 1993 | B95: 21 | C95: 176 | D95: 13.58703925 | E95: 6.955285 | F95: 1
A96: 1994 | B96: 67 | C96: 228 | D96: 13.95746505 | E96: 7.130435 | F96: 1
A97: 1995 | B97: 86 | C97: 242 | D97: 14.26838558 | E97: 7.22511 | F97: 1
A98: 1996 | B98: 57 | C98: 242 | D98: 14.95157658 | E98: 7.235911
A99: 1997 | B99: 52 | C99: 251 | D99: 16.54391396 | E99: 7.808034
A100: 1998 | B100: 27 | C100: 147 | D100: 16.30351506 | E100: 7.836614
A101: 1999 | B101: 90 | C101: 201 | D101: 16.39872274 | E101: 8.84167
A102: 2000 | B102: 65 | C102: 184 | D102: 17.1816828 | E102: 9.027678
A103: 2001 | B103: 31 | C103: 145 | D103: 18.32377477 | E103: 8.308864
A104: 2002 | B104: 47 | C104: 192 | D104: 16.35446412 | E104: 8.785147
A105: 2003 | B105: 73 | C105: 237 | D105: 17.16619228 | E105: 9.177134
A106: 2004 | B106: 48 | C106: 169 | D106: 17.75955957 | E106: 8.887907
A107: 2005 | B107: 79 | C107: 187 | D107: 18.19452533 | E107: 9.116723
A108: 2006 | B108: 57 | C108: 198 | D108: 17.15085867 | E108: 10.05767
A109: 2007 | B109: 31 | C109: 118 | D109: 14.28547484 | E109: 9.838809
A110: 2008 | B110: 52 | C110: 222 | D110: 11.61303753 | E110: 8.591668 | F110: 1
A111: 2009 | B111: 32 | C111: 284 | D111: 10.1644337 | E111: 8.878251 | F111: 1
A112: 2010 | B112: 28 | C112: 167 | D112: 11.03352763 | E112: 9.165363 | F112: 1
A113: 2011 | B113: 54 | C113: 322 | D113: 10.54558824 | F113: 1
A114: 2012 | B114: 88 | C114: 327 | D114: 11.96384804 | F114: 1
B119: =SUM(B2:B114) -> 2312
